{"text_format":"3","workbook":"xlsx","n_sheets":11,"sheets":["1-е классы","2-е классы","3-е классы","4-е классы","5-е классы","6-е классы","7-е классы","8-е классы","9-е классы","10-е классы","11-е классы"],"read":"whole","date_system":"1900"}

{"sheet":"1-е классы","index":0,"n_rows":131,"n_cols":22,"rows_kept":131,"merged":[[0,1,0,5],[0,6,0,10],[0,11,0,15],[0,16,0,20],[2,0,2,21],[21,1,21,5],[21,6,21,10],[21,11,21,15],[21,16,21,20],[23,0,24,21],[44,1,44,5],[44,6,44,10],[44,11,44,15],[44,16,44,20],[46,0,47,21],[67,1,67,5],[67,6,67,10],[67,11,67,15],[67,16,67,20],[69,0,70,21],[90,1,90,5],[90,6,90,10],[90,11,90,15],[90,16,90,20],[92,0,93,21],[113,1,113,5],[113,6,113,10],[113,11,113,15],[113,16,113,20],[115,0,116,21]]}
["Период проведения оценочной процедуры","Сентябрь",{"$nulls":4},"Октябрь",{"$nulls":4},"Ноябрь",{"$nulls":4},"Декабрь",{"$nulls":4},"Всего"]
["Вид оценочных процедур","Федеральные оценочные процедуры","Региональные оценочные процедуры","Муниципальные оценочные процедуры","Оценочные процедуры по инициативе ОО","Всего","Федеральные оценочные процедуры","Региональные оценочные процедуры","Муниципальные оценочные процедуры","Оценочные процедуры по инициативе ОО","Всего","Федеральные оценочные процедуры","Региональные оценочные процедуры","Муниципальные оценочные процедуры","Оценочные процедуры по инициативе ОО","Всего","Федеральные оценочные процедуры","Региональные оценочные процедуры","Муниципальные оценочные процедуры","Оценочные процедуры по инициативе ОО","Всего","В первом полугодии 2025-2026 уч. года"]
["1 а класс"]
["Русский язык",{"$nulls":3},0,0,{"$nulls":3},0,0,{"$nulls":3},0,0,{"$nulls":3},0,0,0]
["Лит. чтение",{"$nulls":3},0,0,{"$nulls":3},0,0,{"$nulls":3},0,0,{"$nulls":3},0,0,0]
["Математика",{"$nulls":3},0,0,{"$nulls":3},0,0,{"$nulls":3},0,0,{"$nulls":3},0,0,0]
["Окруж. мир",{"$nulls":3},0,0,{"$nulls":3},0,0,{"$nulls":3},0,0,{"$nulls":3},0,0,0]
["ОРКСЭ",{"$nulls":3},0,0,{"$nulls":3},0,0,{"$nulls":3},0,0,{"$nulls":3},0,0,0]
["ИЗО",{"$nulls":3},0,0,{"$nulls":3},0,0,{"$nulls":3},0,0,{"$nulls":3},0,0,0]
["Музыка",{"$nulls":3},0,0,{"$nulls":3},0,0,{"$nulls":3},0,0,{"$nulls":3},0,0,0]
["Труд (технология)",{"$nulls":3},0,0,{"$nulls":3},0,0,{"$nulls":3},0,0,{"$nulls":3},0,0,0]
["Физкультура",{"$nulls":3},0,0,{"$nulls":3},0,0,{"$nulls":3},0,0,{"$nulls":3},0,0,0]
["Умные клетки",{"$nulls":3},0,0,{"$nulls":3},0,0,{"$nulls":3},0,0,{"$nulls":3},0,0,0]
["Информатика. Программирование",{"$nulls":3},0,0,{"$nulls":3},0,0,{"$nulls":3},0,0,{"$nulls":3},0,0,0]
["Чистописание",{"$nulls":3},0,0,{"$nulls":3},0,0,{"$nulls":3},0,0,{"$nulls":3},0,0,0]
["Труд. Робототехника",{"$nulls":3},0,0,{"$nulls":3},0,0,{"$nulls":3},0,0,{"$nulls":3},0,0,0]
["Труд. Технологии ручной обработки материалов",{"$nulls":3},0,0,{"$nulls":3},0,0,{"$nulls":3},0,0,{"$nulls":3},0,0,0]
[]
[]
[]
[]
["Период проведения оценочной процедуры","Сентябрь",{"$nulls":4},"Октябрь",{"$nulls":4},"Ноябрь",{"$nulls":4},"Декабрь",{"$nulls":4},"Всего"]
["Вид оценочных процедур","Федеральные оценочные процедуры","Региональные оценочные процедуры","Муниципальные оценочные процедуры","Оценочные процедуры по инициативе ОО","Всего","Федеральные оценочные процедуры","Региональные оценочные процедуры","Муниципальные оценочные процедуры","Оценочные процедуры по инициативе ОО","Всего","Федеральные оценочные процедуры","Региональные оценочные процедуры","Муниципальные оценочные процедуры","Оценочные процедуры по инициативе ОО","Всего","Федеральные оценочные процедуры","Региональные оценочные процедуры","Муниципальные оценочные процедуры","Оценочные процедуры по инициативе ОО","Всего","В первом полугодии 2025-2026 уч. года"]
["1 б класс"]
[]
["Русский язык",{"$nulls":3},0,{"$f":"MIN(E26)*0","v":0},{"$nulls":3},{"$f":"MIN(E26:I26)*0","v":0},{"$f":"MIN(J26)*0","v":0},{"$nulls":3},0,0,{"$nulls":3},0,0,0]
["Лит. чтение",{"$nulls":3},0,0,{"$nulls":3},0,0,{"$nulls":3},0,0,{"$nulls":3},0,0,0]
["Математика",{"$nulls":3},0,0,{"$nulls":3},0,0,{"$nulls":3},0,0,{"$nulls":3},0,0,0]
["Окруж. мир",{"$nulls":3},0,0,{"$nulls":3},0,0,{"$nulls":3},0,0,{"$nulls":3},0,0,0]
["ОРКСЭ",{"$nulls":3},0,0,{"$nulls":3},0,0,{"$nulls":3},0,0,{"$nulls":3},0,0,0]
["ИЗО",{"$nulls":3},0,0,{"$nulls":3},0,0,{"$nulls":3},0,0,{"$nulls":3},0,0,0]
["Музыка",{"$nulls":3},0,0,{"$nulls":3},0,0,{"$nulls":3},0,0,{"$nulls":3},0,0,0]
["Труд (технология)",{"$nulls":3},0,0,{"$nulls":3},0,0,{"$nulls":3},0,0,{"$nulls":3},0,0,0]
["Физкультура",{"$nulls":3},0,0,{"$nulls":3},0,0,{"$nulls":3},0,0,{"$nulls":3},0,0,0]
["Умные клетки",{"$nulls":3},0,0,{"$nulls":3},0,0,{"$nulls":3},0,0,{"$nulls":3},0,0,0]
["Информатика. Программирование",{"$nulls":3},0,0,{"$nulls":3},0,0,{"$nulls":3},0,0,{"$nulls":3},0,0,0]
["Чистописание",{"$nulls":3},0,0,{"$nulls":3},0,0,{"$nulls":3},0,0,{"$nulls":3},0,0,0]
["Труд. Робототехника",{"$nulls":3},0,0,{"$nulls":3},0,0,{"$nulls":3},0,0,{"$nulls":3},0,0,0]
["Труд. Технологии ручной обработки материалов",{"$nulls":3},0,0,{"$nulls":3},0,0,{"$nulls":3},0,0,{"$nulls":3},0,0,0]
[]
[]
[]
[]
[]
["Период проведения оценочной процедуры","Сентябрь",{"$nulls":4},"Октябрь",{"$nulls":4},"Ноябрь",{"$nulls":4},"Декабрь",{"$nulls":4},"Всего"]
["Вид оценочных процедур","Федеральные оценочные процедуры","Региональные оценочные процедуры","Муниципальные оценочные процедуры","Оценочные процедуры по инициативе ОО","Всего","Федеральные оценочные процедуры","Региональные оценочные процедуры","Муниципальные оценочные процедуры","Оценочные процедуры по инициативе ОО","Всего","Федеральные оценочные процедуры","Региональные оценочные процедуры","Муниципальные оценочные процедуры","Оценочные процедуры по инициативе ОО","Всего","Федеральные оценочные процедуры","Региональные оценочные процедуры","Муниципальные оценочные процедуры","Оценочные процедуры по инициативе ОО","Всего","В первом полугодии 2025-2026 уч. года"]
["1 в класс"]
[]
["Русский язык",{"$nulls":3},0,0,{"$nulls":3},0,0,{"$nulls":3},0,0,{"$nulls":3},0,0,0]
["Лит. чтение",{"$nulls":3},0,0,{"$nulls":3},0,0,{"$nulls":3},0,0,{"$nulls":3},0,0,0]
["Математика",{"$nulls":3},0,0,{"$nulls":3},0,0,{"$nulls":3},0,0,{"$nulls":3},0,0,0]
["Окруж. мир",{"$nulls":3},0,0,{"$nulls":3},0,0,{"$nulls":3},0,0,{"$nulls":3},0,0,0]
["ОРКСЭ",{"$nulls":3},0,0,{"$nulls":3},0,0,{"$nulls":3},0,0,{"$nulls":3},0,0,0]
["ИЗО",{"$nulls":3},0,0,{"$nulls":3},0,0,{"$nulls":3},0,0,{"$nulls":3},0,0,0]
["Музыка",{"$nulls":3},0,0,{"$nulls":3},0,0,{"$nulls":3},0,0,{"$nulls":3},0,0,0]
["Труд (технология)",{"$nulls":3},0,0,{"$nulls":3},0,0,{"$nulls":3},0,0,{"$nulls":3},0,0,0]
["Физкультура",{"$nulls":3},0,0,{"$nulls":3},0,0,{"$nulls":3},0,0,{"$nulls":3},0,0,0]
["Умные клетки",{"$nulls":3},0,0,{"$nulls":3},0,0,{"$nulls":3},0,0,{"$nulls":3},0,0,0]
["Информатика. Программирование",{"$nulls":3},0,0,{"$nulls":3},0,0,{"$nulls":3},0,0,{"$nulls":3},0,0,0]
["Чистописание",{"$nulls":3},0,0,{"$nulls":3},0,0,{"$nulls":3},0,0,{"$nulls":3},0,0,0]
["Труд. Робототехника",{"$nulls":3},0,0,{"$nulls":3},0,0,{"$nulls":3},0,0,{"$nulls":3},0,0,0]
["Труд. Технологии ручной обработки материалов",{"$nulls":3},0,0,{"$nulls":3},0,0,{"$nulls":3},0,0,{"$nulls":3},0,0,0]
[]
[]
[]
[]
[]
["Период проведения оценочной процедуры","Сентябрь",{"$nulls":4},"Октябрь",{"$nulls":4},"Ноябрь",{"$nulls":4},"Декабрь",{"$nulls":4},"Всего"]
["Вид оценочных процедур","Федеральные оценочные процедуры","Региональные оценочные процедуры","Муниципальные оценочные процедуры","Оценочные процедуры по инициативе ОО","Всего","Федеральные оценочные процедуры","Региональные оценочные процедуры","Муниципальные оценочные процедуры","Оценочные процедуры по инициативе ОО","Всего","Федеральные оценочные процедуры","Региональные оценочные процедуры","Муниципальные оценочные процедуры","Оценочные процедуры по инициативе ОО","Всего","Федеральные оценочные процедуры","Региональные оценочные процедуры","Муниципальные оценочные процедуры","Оценочные процедуры по инициативе ОО","Всего","В первом полугодии 2025-2026 уч. года"]
["1 г класс"]
[]
["Русский язык",{"$nulls":3},0,0,{"$nulls":3},0,0,{"$nulls":3},0,0,{"$nulls":3},0,0,0]
["Лит. чтение",{"$nulls":3},0,0,{"$nulls":3},0,0,{"$nulls":3},0,0,{"$nulls":3},0,0,0]
["Математика",{"$nulls":3},0,0,{"$nulls":3},0,0,{"$nulls":3},0,0,{"$nulls":3},0,0,0]
["Окруж. мир",{"$nulls":3},0,0,{"$nulls":3},0,0,{"$nulls":3},0,0,{"$nulls":3},0,0,0]
["ОРКСЭ",{"$nulls":3},0,0,{"$nulls":3},0,0,{"$nulls":3},0,0,{"$nulls":3},0,0,0]
["ИЗО",{"$nulls":3},0,0,{"$nulls":3},0,0,{"$nulls":3},0,0,{"$nulls":3},0,0,0]
["Музыка",{"$nulls":3},0,0,{"$nulls":3},0,0,{"$nulls":3},0,0,{"$nulls":3},0,0,0]
["Труд (технология)",{"$nulls":3},0,0,{"$nulls":3},0,0,{"$nulls":3},0,0,{"$nulls":3},0,0,0]
["Физкультура",{"$nulls":3},0,0,{"$nulls":3},0,0,{"$nulls":3},0,0,{"$nulls":3},0,0,0]
["Умные клетки",{"$nulls":3},0,0,{"$nulls":3},0,0,{"$nulls":3},0,0,{"$nulls":3},0,0,0]
["Информатика. Программирование",{"$nulls":3},0,0,{"$nulls":3},0,0,{"$nulls":3},0,0,{"$nulls":3},0,0,0]
["Чистописание",{"$nulls":3},0,0,{"$nulls":3},0,0,{"$nulls":3},0,0,{"$nulls":3},0,0,0]
["Труд. Робототехника",{"$nulls":3},0,0,{"$nulls":3},0,0,{"$nulls":3},0,0,{"$nulls":3},0,0,0]
["Труд. Технологии ручной обработки материалов",{"$nulls":3},0,0,{"$nulls":3},0,0,{"$nulls":3},0,0,{"$nulls":3},0,0,0]
[]
[]
[]
[]
[]
["Период проведения оценочной процедуры","Сентябрь",{"$nulls":4},"Октябрь",{"$nulls":4},"Ноябрь",{"$nulls":4},"Декабрь",{"$nulls":4},"Всего"]
["Вид оценочных процедур","Федеральные оценочные процедуры","Региональные оценочные процедуры","Муниципальные оценочные процедуры","Оценочные процедуры по инициативе ОО","Всего","Федеральные оценочные процедуры","Региональные оценочные процедуры","Муниципальные оценочные процедуры","Оценочные процедуры по инициативе ОО","Всего","Федеральные оценочные процедуры","Региональные оценочные процедуры","Муниципальные оценочные процедуры","Оценочные процедуры по инициативе ОО","Всего","Федеральные оценочные процедуры","Региональные оценочные процедуры","Муниципальные оценочные процедуры","Оценочные процедуры по инициативе ОО","Всего","В первом полугодии 2025-2026 уч. года"]
["1 д класс"]
[]
["Русский язык",{"$nulls":3},0,0,{"$nulls":3},0,0,{"$nulls":3},0,0,{"$nulls":3},0,0,0]
["Лит. чтение",{"$nulls":3},0,0,{"$nulls":3},0,0,{"$nulls":3},0,0,{"$nulls":3},0,0,0]
["Математика",{"$nulls":3},0,0,{"$nulls":3},0,0,{"$nulls":3},0,0,{"$nulls":3},0,0,0]
["Окруж. мир",{"$nulls":3},0,0,{"$nulls":3},0,0,{"$nulls":3},0,0,{"$nulls":3},0,0,0]
["ОРКСЭ",{"$nulls":3},0,0,{"$nulls":3},0,0,{"$nulls":3},0,0,{"$nulls":3},0,0,0]
["ИЗО",{"$nulls":3},0,0,{"$nulls":3},0,0,{"$nulls":3},0,0,{"$nulls":3},0,0,0]
["Музыка",{"$nulls":3},0,0,{"$nulls":3},0,0,{"$nulls":3},0,0,{"$nulls":3},0,0,0]
["Труд (технология)",{"$nulls":3},0,0,{"$nulls":3},0,0,{"$nulls":3},0,0,{"$nulls":3},0,0,0]
["Физкультура",{"$nulls":3},0,0,{"$nulls":3},0,0,{"$nulls":3},0,0,{"$nulls":3},0,0,0]
["Умные клетки",{"$nulls":3},0,0,{"$nulls":3},0,0,{"$nulls":3},0,0,{"$nulls":3},0,0,0]
["Информатика. Программирование",{"$nulls":3},0,0,{"$nulls":3},0,0,{"$nulls":3},0,0,{"$nulls":3},0,0,0]
["Чистописание",{"$nulls":3},0,0,{"$nulls":3},0,0,{"$nulls":3},0,0,{"$nulls":3},0,0,0]
["Труд. Робототехника",{"$nulls":3},0,0,{"$nulls":3},0,0,{"$nulls":3},0,0,{"$nulls":3},0,0,0]
["Труд. Технологии ручной обработки материалов",{"$nulls":3},0,0,{"$nulls":3},0,0,{"$nulls":3},0,0,{"$nulls":3},0,0,0]
[]
[]
[]
[]
[]
["Период проведения оценочной процедуры","Сентябрь",{"$nulls":4},"Октябрь",{"$nulls":4},"Ноябрь",{"$nulls":4},"Декабрь",{"$nulls":4},"Всего"]
["Вид оценочных процедур","Федеральные оценочные процедуры","Региональные оценочные процедуры","Муниципальные оценочные процедуры","Оценочные процедуры по инициативе ОО","Всего","Федеральные оценочные процедуры","Региональные оценочные процедуры","Муниципальные оценочные процедуры","Оценочные процедуры по инициативе ОО","Всего","Федеральные оценочные процедуры","Региональные оценочные процедуры","Муниципальные оценочные процедуры","Оценочные процедуры по инициативе ОО","Всего","Федеральные оценочные процедуры","Региональные оценочные процедуры","Муниципальные оценочные процедуры","Оценочные процедуры по инициативе ОО","Всего","В первом полугодии 2025-2026 уч. года"]
["1 е класс"]
[]
["Русский язык",{"$nulls":3},0,0,{"$nulls":3},0,0,{"$nulls":3},0,0,{"$nulls":3},0,0,0]
["Лит. чтение",{"$nulls":3},0,0,{"$nulls":3},0,0,{"$nulls":3},0,0,{"$nulls":3},0,0,0]
["Математика",{"$nulls":3},0,0,{"$nulls":3},0,0,{"$nulls":3},0,0,{"$nulls":3},0,0,0]
["Окруж. мир",{"$nulls":3},0,0,{"$nulls":3},0,0,{"$nulls":3},0,0,{"$nulls":3},0,0,0]
["ОРКСЭ",{"$nulls":3},0,0,{"$nulls":3},0,0,{"$nulls":3},0,0,{"$nulls":3},0,0,0]
["ИЗО",{"$nulls":3},0,0,{"$nulls":3},0,0,{"$nulls":3},0,0,{"$nulls":3},0,0,0]
["Музыка",{"$nulls":3},0,0,{"$nulls":3},0,0,{"$nulls":3},0,0,{"$nulls":3},0,0,0]
["Труд (технология)",{"$nulls":3},0,0,{"$nulls":3},0,0,{"$nulls":3},0,0,{"$nulls":3},0,0,0]
["Физкультура",{"$nulls":3},0,0,{"$nulls":3},0,0,{"$nulls":3},0,0,{"$nulls":3},0,0,0]
["Умные клетки",{"$nulls":3},0,0,{"$nulls":3},0,0,{"$nulls":3},0,0,{"$nulls":3},0,0,0]
["Информатика. Программирование",{"$nulls":3},0,0,{"$nulls":3},0,0,{"$nulls":3},0,0,{"$nulls":3},0,0,0]
["Чистописание",{"$nulls":3},0,0,{"$nulls":3},0,0,{"$nulls":3},0,0,{"$nulls":3},0,0,0]
["Труд. Робототехника",{"$nulls":3},0,0,{"$nulls":3},0,0,{"$nulls":3},0,0,{"$nulls":3},0,0,0]
["Труд. Технологии ручной обработки материалов",{"$nulls":3},0,0,{"$nulls":3},0,0,{"$nulls":3},0,0,{"$nulls":3},0,0,0]

{"sheet":"2-е классы","index":1,"n_rows":144,"n_cols":22,"rows_kept":144,"merged":[[0,1,0,5],[0,6,0,10],[0,11,0,15],[0,16,0,20],[2,0,3,21],[21,1,21,5],[21,6,21,10],[21,11,21,15],[21,16,21,20],[23,0,24,21],[42,1,42,5],[42,6,42,10],[42,11,42,15],[42,16,42,20],[44,0,45,21],[63,1,63,5],[63,6,63,10],[63,11,63,15],[63,16,63,20],[65,0,66,21],[84,1,84,5],[84,6,84,10],[84,11,84,15],[84,16,84,20],[86,0,87,21],[105,1,105,5],[105,6,105,10],[105,11,105,15],[105,16,105,20],[107,0,108,21],[126,1,126,5],[126,6,126,10],[126,11,126,15],[126,16,126,20],[128,0,129,21]]}
["Период проведения оценочной процедуры","Сентябрь",{"$nulls":4},"Октябрь",{"$nulls":4},"Ноябрь",{"$nulls":4},"Декабрь",{"$nulls":4},"Всего"]
["Вид оценочных процедур","Федеральные оценочные процедуры","Региональные оценочные процедуры","Муниципальные оценочные процедуры","Оценочные процедуры по инициативе ОО","Всего","Федеральные оценочные процедуры","Региональные оценочные процедуры","Муниципальные оценочные процедуры","Оценочные процедуры по инициативе ОО","Всего","Федеральные оценочные процедуры","Региональные оценочные процедуры","Муниципальные оценочные процедуры","Оценочные процедуры по инициативе ОО","Всего","Федеральные оценочные процедуры","Региональные оценочные процедуры","Муниципальные оценочные процедуры","Оценочные процедуры по инициативе ОО","Всего","В первом полугодии 2025-2026 уч. года"]
["2 а класс"]
[]
["Русский язык",{"$nulls":3},0,0,{"$nulls":3},0,0,{"$nulls":3},0,0,{"$nulls":3},0,0,0]
["Лит. чтение",{"$nulls":3},0,0,{"$nulls":3},0,0,{"$nulls":3},0,0,{"$nulls":3},0,0,0]
["Ин. язык",{"$nulls":3},0,0,{"$nulls":3},0,0,{"$nulls":3},0,0,{"$nulls":3},0,0,0]
["Математика",{"$nulls":3},0,0,{"$nulls":3},0,0,{"$nulls":3},0,0,{"$nulls":3},0,0,0]
["Окруж. мир",{"$nulls":3},0,0,{"$nulls":3},0,0,{"$nulls":3},0,0,{"$nulls":3},0,0,0]
["ОРКСЭ",{"$nulls":3},0,0,{"$nulls":3},0,0,{"$nulls":3},0,0,{"$nulls":3},0,0,0]
["ИЗО",{"$nulls":3},0,0,{"$nulls":3},0,0,{"$nulls":3},0,0,{"$nulls":3},0,0,0]
["Музыка",{"$nulls":3},0,0,{"$nulls":3},0,0,{"$nulls":3},0,0,{"$nulls":3},0,0,0]
["Труд (технология)",{"$nulls":3},0,0,{"$nulls":3},0,0,{"$nulls":3},0,0,{"$nulls":3},0,0,0]
["Физкультура",{"$nulls":3},0,0,{"$nulls":3},0,0,{"$nulls":3},0,0,{"$nulls":3},0,0,0]
["Наглядная геометрия",{"$nulls":3},0,0,{"$nulls":3},0,0,{"$nulls":3},0,0,{"$nulls":3},0,0,0]
["Информатика. Программирование",{"$nulls":3},0,0,{"$nulls":3},0,0,{"$nulls":3},0,0,{"$nulls":3},0,0,0]
["Труд. Робототехника",{"$nulls":3},0,0,{"$nulls":3},0,0,{"$nulls":3},0,0,{"$nulls":3},0,0,0]
["Труд. Технологии ручной обработки материалов",{"$nulls":3},0,0,{"$nulls":3},0,0,{"$nulls":3},0,0,{"$nulls":3},0,0,0]
[]
[]
[]
["Период проведения оценочной процедуры","Сентябрь",{"$nulls":4},"Октябрь",{"$nulls":4},"Ноябрь",{"$nulls":4},"Декабрь",{"$nulls":4},"Всего"]
["Вид оценочных процедур","Федеральные оценочные процедуры","Региональные оценочные процедуры","Муниципальные оценочные процедуры","Оценочные процедуры по инициативе ОО","Всего","Федеральные оценочные процедуры","Региональные оценочные процедуры","Муниципальные оценочные процедуры","Оценочные процедуры по инициативе ОО","Всего","Федеральные оценочные процедуры","Региональные оценочные процедуры","Муниципальные оценочные процедуры","Оценочные процедуры по инициативе ОО","Всего","Федеральные оценочные процедуры","Региональные оценочные процедуры","Муниципальные оценочные процедуры","Оценочные процедуры по инициативе ОО","Всего","В первом полугодии 2025-2026 уч. года"]
["2 б класс"]
[]
["Русский язык",{"$nulls":3},0,0,{"$nulls":3},0,0,{"$nulls":3},0,0,{"$nulls":3},0,0,0]
["Лит. чтение",{"$nulls":3},0,0,{"$nulls":3},0,0,{"$nulls":3},0,0,{"$nulls":3},0,0,0]
["Ин. язык",{"$nulls":3},0,0,{"$nulls":3},0,0,{"$nulls":3},0,0,{"$nulls":3},0,0,0]
["Математика",{"$nulls":3},0,0,{"$nulls":3},0,0,{"$nulls":3},0,0,{"$nulls":3},0,0,0]
["Окруж. мир",{"$nulls":3},0,0,{"$nulls":3},0,0,{"$nulls":3},0,0,{"$nulls":3},0,0,0]
["ОРКСЭ",{"$nulls":3},0,0,{"$nulls":3},0,0,{"$nulls":3},0,0,{"$nulls":3},0,0,0]
["ИЗО",{"$nulls":3},0,0,{"$nulls":3},0,0,{"$nulls":3},0,0,{"$nulls":3},0,0,0]
["Музыка",{"$nulls":3},0,0,{"$nulls":3},0,0,{"$nulls":3},0,0,{"$nulls":3},0,0,0]
["Труд (технология)",{"$nulls":3},0,0,{"$nulls":3},0,0,{"$nulls":3},0,0,{"$nulls":3},0,0,0]
["Физкультура",{"$nulls":3},0,0,{"$nulls":3},0,0,{"$nulls":3},0,0,{"$nulls":3},0,0,0]
["Наглядная геометрия",{"$nulls":3},0,0,{"$nulls":3},0,0,{"$nulls":3},0,0,{"$nulls":3},0,0,0]
["Информатика. Программирование",{"$nulls":3},0,0,{"$nulls":3},0,0,{"$nulls":3},0,0,{"$nulls":3},0,0,0]
["Труд. Робототехника",{"$nulls":3},0,0,{"$nulls":3},0,0,{"$nulls":3},0,0,{"$nulls":3},0,0,0]
["Труд. Технологии ручной обработки материалов",{"$nulls":3},0,0,{"$nulls":3},0,0,{"$nulls":3},0,0,{"$nulls":3},0,0,0]
[]
[]
[]
["Период проведения оценочной процедуры","Сентябрь",{"$nulls":4},"Октябрь",{"$nulls":4},"Ноябрь",{"$nulls":4},"Декабрь",{"$nulls":4},"Всего"]
["Вид оценочных процедур","Федеральные оценочные процедуры","Региональные оценочные процедуры","Муниципальные оценочные процедуры","Оценочные процедуры по инициативе ОО","Всего","Федеральные оценочные процедуры","Региональные оценочные процедуры","Муниципальные оценочные процедуры","Оценочные процедуры по инициативе ОО","Всего","Федеральные оценочные процедуры","Региональные оценочные процедуры","Муниципальные оценочные процедуры","Оценочные процедуры по инициативе ОО","Всего","Федеральные оценочные процедуры","Региональные оценочные процедуры","Муниципальные оценочные процедуры","Оценочные процедуры по инициативе ОО","Всего","В первом полугодии 2025-2026 уч. года"]
["2 в класс"]
[]
["Русский язык",{"$nulls":3},0,0,{"$nulls":3},0,0,{"$nulls":3},0,0,{"$nulls":3},0,0,0]
["Лит. чтение",{"$nulls":3},0,0,{"$nulls":3},0,0,{"$nulls":3},0,0,{"$nulls":3},0,0,0]
["Ин. язык",{"$nulls":3},0,0,{"$nulls":3},0,0,{"$nulls":3},0,0,{"$nulls":3},0,0,0]
["Математика",{"$nulls":3},0,0,{"$nulls":3},0,0,{"$nulls":3},0,0,{"$nulls":3},0,0,0]
["Окруж. мир",{"$nulls":3},0,0,{"$nulls":3},0,0,{"$nulls":3},0,0,{"$nulls":3},0,0,0]
["ОРКСЭ",{"$nulls":3},0,0,{"$nulls":3},0,0,{"$nulls":3},0,0,{"$nulls":3},0,0,0]
["ИЗО",{"$nulls":3},0,0,{"$nulls":3},0,0,{"$nulls":3},0,0,{"$nulls":3},0,0,0]
["Музыка",{"$nulls":3},0,0,{"$nulls":3},0,0,{"$nulls":3},0,0,{"$nulls":3},0,0,0]
["Труд (технология)",{"$nulls":3},0,0,{"$nulls":3},0,0,{"$nulls":3},0,0,{"$nulls":3},0,0,0]
["Физкультура",{"$nulls":3},0,0,{"$nulls":3},0,0,{"$nulls":3},0,0,{"$nulls":3},0,0,0]
["Наглядная геометрия",{"$nulls":3},0,0,{"$nulls":3},0,0,{"$nulls":3},0,0,{"$nulls":3},0,0,0]
["Информатика. Программирование",{"$nulls":3},0,0,{"$nulls":3},0,0,{"$nulls":3},0,0,{"$nulls":3},0,0,0]
["Труд. Робототехника",{"$nulls":3},0,0,{"$nulls":3},0,0,{"$nulls":3},0,0,{"$nulls":3},0,0,0]
["Труд. Технологии ручной обработки материалов",{"$nulls":3},0,0,{"$nulls":3},0,0,{"$nulls":3},0,0,{"$nulls":3},0,0,0]
[]
[]
[]
["Период проведения оценочной процедуры","Сентябрь",{"$nulls":4},"Октябрь",{"$nulls":4},"Ноябрь",{"$nulls":4},"Декабрь",{"$nulls":4},"Всего"]
["Вид оценочных процедур","Федеральные оценочные процедуры","Региональные оценочные процедуры","Муниципальные оценочные процедуры","Оценочные процедуры по инициативе ОО","Всего","Федеральные оценочные процедуры","Региональные оценочные процедуры","Муниципальные оценочные процедуры","Оценочные процедуры по инициативе ОО","Всего","Федеральные оценочные процедуры","Региональные оценочные процедуры","Муниципальные оценочные процедуры","Оценочные процедуры по инициативе ОО","Всего","Федеральные оценочные процедуры","Региональные оценочные процедуры","Муниципальные оценочные процедуры","Оценочные процедуры по инициативе ОО","Всего","В первом полугодии 2025-2026 уч. года"]
["2 г класс"]
[]
["Русский язык",{"$nulls":3},0,0,{"$nulls":3},0,0,{"$nulls":3},0,0,{"$nulls":3},0,0,0]
["Лит. чтение",{"$nulls":3},0,0,{"$nulls":3},0,0,{"$nulls":3},0,0,{"$nulls":3},0,0,0]
["Ин. язык",{"$nulls":3},0,0,{"$nulls":3},0,0,{"$nulls":3},0,0,{"$nulls":3},0,0,0]
["Математика",{"$nulls":3},0,0,{"$nulls":3},0,0,{"$nulls":3},0,0,{"$nulls":3},0,0,0]
["Окруж. мир",{"$nulls":3},0,0,{"$nulls":3},0,0,{"$nulls":3},0,0,{"$nulls":3},0,0,0]
["ОРКСЭ",{"$nulls":3},0,0,{"$nulls":3},0,0,{"$nulls":3},0,0,{"$nulls":3},0,0,0]
["ИЗО",{"$nulls":3},0,0,{"$nulls":3},0,0,{"$nulls":3},0,0,{"$nulls":3},0,0,0]
["Музыка",{"$nulls":3},0,0,{"$nulls":3},0,0,{"$nulls":3},0,0,{"$nulls":3},0,0,0]
["Труд (технология)",{"$nulls":3},0,0,{"$nulls":3},0,0,{"$nulls":3},0,0,{"$nulls":3},0,0,0]
["Физкультура",{"$nulls":3},0,0,{"$nulls":3},0,0,{"$nulls":3},0,0,{"$nulls":3},0,0,0]
["Наглядная геометрия",{"$nulls":3},0,0,{"$nulls":3},0,0,{"$nulls":3},0,0,{"$nulls":3},0,0,0]
["Информатика. Программирование",{"$nulls":3},0,0,{"$nulls":3},0,0,{"$nulls":3},0,0,{"$nulls":3},0,0,0]
["Труд. Робототехника",{"$nulls":3},0,0,{"$nulls":3},0,0,{"$nulls":3},0,0,{"$nulls":3},0,0,0]
["Труд. Технологии ручной обработки материалов",{"$nulls":3},0,0,{"$nulls":3},0,0,{"$nulls":3},0,0,{"$nulls":3},0,0,0]
[]
[]
[]
["Период проведения оценочной процедуры","Сентябрь",{"$nulls":4},"Октябрь",{"$nulls":4},"Ноябрь",{"$nulls":4},"Декабрь",{"$nulls":4},"Всего"]
["Вид оценочных процедур","Федеральные оценочные процедуры","Региональные оценочные процедуры","Муниципальные оценочные процедуры","Оценочные процедуры по инициативе ОО","Всего","Федеральные оценочные процедуры","Региональные оценочные процедуры","Муниципальные оценочные процедуры","Оценочные процедуры по инициативе ОО","Всего","Федеральные оценочные процедуры","Региональные оценочные процедуры","Муниципальные оценочные процедуры","Оценочные процедуры по инициативе ОО","Всего","Федеральные оценочные процедуры","Региональные оценочные процедуры","Муниципальные оценочные процедуры","Оценочные процедуры по инициативе ОО","Всего","В первом полугодии 2025-2026 уч. года"]
["2 д класс"]
[]
["Русский язык",{"$nulls":3},0,0,{"$nulls":3},0,0,{"$nulls":3},0,0,{"$nulls":3},0,0,0]
["Лит. чтение",{"$nulls":3},0,0,{"$nulls":3},0,0,{"$nulls":3},0,0,{"$nulls":3},0,0,0]
["Ин. язык",{"$nulls":3},0,0,{"$nulls":3},0,0,{"$nulls":3},0,0,{"$nulls":3},0,0,0]
["Математика",{"$nulls":3},0,0,{"$nulls":3},0,0,{"$nulls":3},0,0,{"$nulls":3},0,0,0]
["Окруж. мир",{"$nulls":3},0,0,{"$nulls":3},0,0,{"$nulls":3},0,0,{"$nulls":3},0,0,0]
["ОРКСЭ",{"$nulls":3},0,0,{"$nulls":3},0,0,{"$nulls":3},0,0,{"$nulls":3},0,0,0]
["ИЗО",{"$nulls":3},0,0,{"$nulls":3},0,0,{"$nulls":3},0,0,{"$nulls":3},0,0,0]
["Музыка",{"$nulls":3},0,0,{"$nulls":3},0,0,{"$nulls":3},0,0,{"$nulls":3},0,0,0]
["Труд (технология)",{"$nulls":3},0,0,{"$nulls":3},0,0,{"$nulls":3},0,0,{"$nulls":3},0,0,0]
["Физкультура",{"$nulls":3},0,0,{"$nulls":3},0,0,{"$nulls":3},0,0,{"$nulls":3},0,0,0]
["Наглядная геометрия",{"$nulls":3},0,0,{"$nulls":3},0,0,{"$nulls":3},0,0,{"$nulls":3},0,0,0]
["Информатика. Программирование",{"$nulls":3},0,0,{"$nulls":3},0,0,{"$nulls":3},0,0,{"$nulls":3},0,0,0]
["Труд. Робототехника",{"$nulls":3},0,0,{"$nulls":3},0,0,{"$nulls":3},0,0,{"$nulls":3},0,0,0]
["Труд. Технологии ручной обработки материалов",{"$nulls":3},0,0,{"$nulls":3},0,0,{"$nulls":3},0,0,{"$nulls":3},0,0,0]
[]
[]
[]
["Период проведения оценочной процедуры","Сентябрь",{"$nulls":4},"Октябрь",{"$nulls":4},"Ноябрь",{"$nulls":4},"Декабрь",{"$nulls":4},"Всего"]
["Вид оценочных процедур","Федеральные оценочные процедуры","Региональные оценочные процедуры","Муниципальные оценочные процедуры","Оценочные процедуры по инициативе ОО","Всего","Федеральные оценочные процедуры","Региональные оценочные процедуры","Муниципальные оценочные процедуры","Оценочные процедуры по инициативе ОО","Всего","Федеральные оценочные процедуры","Региональные оценочные процедуры","Муниципальные оценочные процедуры","Оценочные процедуры по инициативе ОО","Всего","Федеральные оценочные процедуры","Региональные оценочные процедуры","Муниципальные оценочные процедуры","Оценочные процедуры по инициативе ОО","Всего","В первом полугодии 2025-2026 уч. года"]
["2 е класс"]
[]
["Русский язык",{"$nulls":3},0,0,{"$nulls":3},0,0,{"$nulls":3},0,0,{"$nulls":3},0,0,0]
["Лит. чтение",{"$nulls":3},0,0,{"$nulls":3},0,0,{"$nulls":3},0,0,{"$nulls":3},0,0,0]
["Ин. язык",{"$nulls":3},0,0,{"$nulls":3},0,0,{"$nulls":3},0,0,{"$nulls":3},0,0,0]
["Математика",{"$nulls":3},0,0,{"$nulls":3},0,0,{"$nulls":3},0,0,{"$nulls":3},0,0,0]
["Окруж. мир",{"$nulls":3},0,0,{"$nulls":3},0,0,{"$nulls":3},0,0,{"$nulls":3},0,0,0]
["ОРКСЭ",{"$nulls":3},0,0,{"$nulls":3},0,0,{"$nulls":3},0,0,{"$nulls":3},0,0,0]
["ИЗО",{"$nulls":3},0,0,{"$nulls":3},0,0,{"$nulls":3},0,0,{"$nulls":3},0,0,0]
["Музыка",{"$nulls":3},0,0,{"$nulls":3},0,0,{"$nulls":3},0,0,{"$nulls":3},0,0,0]
["Труд (технология)",{"$nulls":3},0,0,{"$nulls":3},0,0,{"$nulls":3},0,0,{"$nulls":3},0,0,0]
["Физкультура",{"$nulls":3},0,0,{"$nulls":3},0,0,{"$nulls":3},0,0,{"$nulls":3},0,null,0]
["Наглядная геометрия",{"$nulls":3},0,0,{"$nulls":3},0,0,{"$nulls":4},0,{"$nulls":3},0,0,0]
["Информатика. Программирование",{"$nulls":3},0,0,{"$nulls":3},0,0,{"$nulls":3},0,0,{"$nulls":3},0,0,0]
["Труд. Робототехника",{"$nulls":3},0,0,{"$nulls":3},0,0,{"$nulls":3},0,0,{"$nulls":3},0,0,0]
["Труд. Технологии ручной обработки материалов",{"$nulls":3},0,0,{"$nulls":3},0,0,{"$nulls":3},0,0,{"$nulls":3},0,0,0]
[]
[]
[]
["Период проведения оценочной процедуры","Сентябрь",{"$nulls":4},"Октябрь",{"$nulls":4},"Ноябрь",{"$nulls":4},"Декабрь",{"$nulls":4},"Всего"]
["Вид оценочных процедур","Федеральные оценочные процедуры","Региональные оценочные процедуры","Муниципальные оценочные процедуры","Оценочные процедуры по инициативе ОО","Всего","Федеральные оценочные процедуры","Региональные оценочные процедуры","Муниципальные оценочные процедуры","Оценочные процедуры по инициативе ОО","Всего","Федеральные оценочные процедуры","Региональные оценочные процедуры","Муниципальные оценочные процедуры","Оценочные процедуры по инициативе ОО","Всего","Федеральные оценочные процедуры","Региональные оценочные процедуры","Муниципальные оценочные процедуры","Оценочные процедуры по инициативе ОО","Всего","В первом полугодии 2025-2026 уч. года"]
["2 ж класс"]
[]
["Русский язык",{"$nulls":3},0,0,{"$nulls":3},0,0,{"$nulls":3},0,0,{"$nulls":3},0,0,0]
["Лит. чтение",{"$nulls":3},0,0,{"$nulls":3},0,0,{"$nulls":3},0,0,{"$nulls":3},0,0,0]
["Ин. язык",{"$nulls":3},0,0,{"$nulls":3},0,0,{"$nulls":3},0,0,{"$nulls":3},0,0,0]
["Математика",{"$nulls":3},0,0,{"$nulls":3},0,0,{"$nulls":3},0,0,{"$nulls":3},0,0,0]
["Окруж. мир",{"$nulls":3},0,0,{"$nulls":3},0,0,{"$nulls":3},0,0,{"$nulls":3},0,0,0]
["ОРКСЭ",{"$nulls":3},0,0,{"$nulls":3},0,0,{"$nulls":3},0,0,{"$nulls":3},0,0,0]
["ИЗО",{"$nulls":3},0,0,{"$nulls":3},0,0,{"$nulls":3},0,0,{"$nulls":3},0,0,0]
["Музыка",{"$nulls":3},0,0,{"$nulls":3},0,0,{"$nulls":3},0,0,{"$nulls":3},0,0,0]
["Труд (технология)",{"$nulls":3},0,0,{"$nulls":3},0,0,{"$nulls":3},0,0,{"$nulls":3},0,0,0]
["Физкультура",{"$nulls":3},0,0,{"$nulls":3},0,0,{"$nulls":3},0,0,{"$nulls":3},0,0,0]
["Наглядная геометрия",{"$nulls":3},0,0,{"$nulls":3},0,0,{"$nulls":3},0,0,{"$nulls":3},0,0,0]
["Информатика. Программирование",{"$nulls":3},0,0,{"$nulls":3},0,0,{"$nulls":3},0,0,{"$nulls":3},0,0,0]
["Труд. Робототехника",{"$nulls":3},0,0,{"$nulls":3},0,0,{"$nulls":3},0,0,{"$nulls":3},0,0,0]
["Труд. Технологии ручной обработки материалов",{"$nulls":3},0,0,{"$nulls":3},0,0,{"$nulls":3},0,0,{"$nulls":3},0,0,0]

{"sheet":"3-е классы","index":2,"n_rows":123,"n_cols":22,"rows_kept":123,"merged":[[0,1,0,5],[0,6,0,10],[0,11,0,15],[0,16,0,20],[2,0,3,21],[18,1,18,5],[18,6,18,10],[18,11,18,15],[18,16,18,20],[20,0,21,21],[36,1,36,5],[36,6,36,10],[36,11,36,15],[36,16,36,20],[38,0,39,21],[54,1,54,5],[54,6,54,10],[54,11,54,15],[54,16,54,20],[56,0,57,21],[72,1,72,5],[72,6,72,10],[72,11,72,15],[72,16,72,20],[74,0,75,21],[90,1,90,5],[90,6,90,10],[90,11,90,15],[90,16,90,20],[92,0,93,21],[108,1,108,5],[108,6,108,10],[108,11,108,15],[108,16,108,20],[110,0,111,21]]}
["Период проведения оценочной процедуры","Сентябрь",{"$nulls":4},"Октябрь",{"$nulls":4},"Ноябрь",{"$nulls":4},"Декабрь",{"$nulls":4},"Всего"]
["Вид оценочных процедур","Федеральные оценочные процедуры","Региональные оценочные процедуры","Муниципальные оценочные процедуры","Оценочные процедуры по инициативе ОО","Всего","Федеральные оценочные процедуры","Региональные оценочные процедуры","Муниципальные оценочные процедуры","Оценочные процедуры по инициативе ОО","Всего","Федеральные оценочные процедуры","Региональные оценочные процедуры","Муниципальные оценочные процедуры","Оценочные процедуры по инициативе ОО","Всего","Федеральные оценочные процедуры","Региональные оценочные процедуры","Муниципальные оценочные процедуры","Оценочные процедуры по инициативе ОО","Всего","В первом полугодии 2025-2026 уч. года"]
["3 а класс"]
[]
["Русский язык",{"$nulls":3},0,0,{"$nulls":3},0,0,null,null,0,0,{"$nulls":4},0,0,0]
["Лит. чтение",{"$nulls":3},0,0,{"$nulls":3},0,0,null,null,0,0,{"$nulls":4},0,0,0]
["Ин. язык",{"$nulls":3},0,0,{"$nulls":3},0,0,null,null,0,0,{"$nulls":4},0,0,0]
["Математика",{"$nulls":3},0,0,{"$nulls":3},0,0,null,null,0,0,{"$nulls":4},0,0,0]
["Окруж. мир",{"$nulls":3},0,0,{"$nulls":3},0,0,null,null,0,0,{"$nulls":4},0,0,0]
["ОРКСЭ",{"$nulls":3},0,0,{"$nulls":3},0,0,null,null,0,0,{"$nulls":4},0,0,0]
["ИЗО",{"$nulls":3},0,0,{"$nulls":3},0,0,null,null,0,0,{"$nulls":4},0,0,0]
["Музыка",{"$nulls":3},0,0,{"$nulls":3},0,0,null,null,0,0,{"$nulls":4},0,0,0]
["Труд (технология)",{"$nulls":3},0,0,{"$nulls":3},0,0,null,null,0,0,{"$nulls":4},0,0,0]
["Физкультура",{"$nulls":3},0,0,{"$nulls":3},0,0,null,null,0,0,{"$nulls":4},0,0,0]
["Наглядная геометрия",{"$nulls":3},0,0,{"$nulls":3},0,0,null,null,0,0,{"$nulls":4},0,0,0]
[]
[]
[]
["Период проведения оценочной процедуры","Сентябрь",{"$nulls":4},"Октябрь",{"$nulls":4},"Ноябрь",{"$nulls":4},"Декабрь",{"$nulls":4},"Всего"]
["Вид оценочных процедур","Федеральные оценочные процедуры","Региональные оценочные процедуры","Муниципальные оценочные процедуры","Оценочные процедуры по инициативе ОО","Всего","Федеральные оценочные процедуры","Региональные оценочные процедуры","Муниципальные оценочные процедуры","Оценочные процедуры по инициативе ОО","Всего","Федеральные оценочные процедуры","Региональные оценочные процедуры","Муниципальные оценочные процедуры","Оценочные процедуры по инициативе ОО","Всего","Федеральные оценочные процедуры","Региональные оценочные процедуры","Муниципальные оценочные процедуры","Оценочные процедуры по инициативе ОО","Всего","В первом полугодии 2025-2026 уч. года"]
["3 б класс"]
[]
["Русский язык",{"$nulls":3},0,0,{"$nulls":3},0,0,{"$nulls":3},0,0,{"$nulls":3},0,0,0]
["Лит. чтение",{"$nulls":3},0,0,{"$nulls":3},0,0,{"$nulls":3},0,0,{"$nulls":3},0,0,0]
["Ин. язык",{"$nulls":3},0,0,{"$nulls":3},0,0,{"$nulls":3},0,0,{"$nulls":3},0,0,0]
["Математика",{"$nulls":3},0,0,{"$nulls":3},0,0,{"$nulls":3},0,0,{"$nulls":3},0,0,0]
["Окруж. мир",{"$nulls":3},0,0,{"$nulls":3},0,0,{"$nulls":3},0,0,{"$nulls":3},0,0,0]
["ОРКСЭ",{"$nulls":3},0,0,{"$nulls":3},0,0,{"$nulls":3},0,0,{"$nulls":3},0,0,0]
["ИЗО",{"$nulls":3},0,0,{"$nulls":3},0,0,{"$nulls":3},0,0,{"$nulls":3},0,0,0]
["Музыка",{"$nulls":3},0,0,{"$nulls":3},0,0,{"$nulls":3},0,0,{"$nulls":3},0,0,0]
["Труд (технология)",{"$nulls":3},0,0,{"$nulls":3},0,0,{"$nulls":3},0,0,{"$nulls":3},0,0,0]
["Физкультура",{"$nulls":3},0,0,{"$nulls":3},0,0,{"$nulls":3},0,0,{"$nulls":3},0,0,0]
["Наглядная геометрия",{"$nulls":3},0,0,{"$nulls":3},0,0,{"$nulls":3},0,0,{"$nulls":3},0,0,0]
[]
[]
[]
["Период проведения оценочной процедуры","Сентябрь",{"$nulls":4},"Октябрь",{"$nulls":4},"Ноябрь",{"$nulls":4},"Декабрь",{"$nulls":4},"Всего"]
["Вид оценочных процедур","Федеральные оценочные процедуры","Региональные оценочные процедуры","Муниципальные оценочные процедуры","Оценочные процедуры по инициативе ОО","Всего","Федеральные оценочные процедуры","Региональные оценочные процедуры","Муниципальные оценочные процедуры","Оценочные процедуры по инициативе ОО","Всего","Федеральные оценочные процедуры","Региональные оценочные процедуры","Муниципальные оценочные процедуры","Оценочные процедуры по инициативе ОО","Всего","Федеральные оценочные процедуры","Региональные оценочные процедуры","Муниципальные оценочные процедуры","Оценочные процедуры по инициативе ОО","Всего","В первом полугодии 2025-2026 уч. года"]
["3 в класс"]
[]
["Русский язык",{"$nulls":3},0,0,{"$nulls":3},0,0,{"$nulls":3},0,0,{"$nulls":3},0,0,0]
["Лит. чтение",{"$nulls":3},0,0,{"$nulls":3},0,0,{"$nulls":3},0,0,{"$nulls":3},0,0,0]
["Ин. язык",{"$nulls":3},0,0,{"$nulls":3},0,0,{"$nulls":3},0,0,{"$nulls":3},0,0,0]
["Математика",{"$nulls":3},0,0,{"$nulls":3},0,0,{"$nulls":3},0,0,{"$nulls":3},0,0,0]
["Окруж. мир",{"$nulls":3},0,0,{"$nulls":3},0,0,{"$nulls":3},0,0,{"$nulls":3},0,0,0]
["ОРКСЭ",{"$nulls":3},0,0,{"$nulls":3},0,0,{"$nulls":3},0,0,{"$nulls":3},0,0,0]
["ИЗО",{"$nulls":3},0,0,{"$nulls":3},0,0,{"$nulls":3},0,0,{"$nulls":3},0,0,0]
["Музыка",{"$nulls":3},0,0,{"$nulls":3},0,0,{"$nulls":3},0,0,{"$nulls":3},0,0,0]
["Труд (технология)",{"$nulls":3},0,0,{"$nulls":3},0,0,{"$nulls":3},0,0,{"$nulls":3},0,0,0]
["Физкультура",{"$nulls":3},0,0,{"$nulls":3},0,0,{"$nulls":3},0,0,{"$nulls":3},0,0,0]
["Наглядная геометрия",{"$nulls":3},0,0,{"$nulls":3},0,0,{"$nulls":3},0,0,{"$nulls":3},0,0,0]
[]
[]
[]
["Период проведения оценочной процедуры","Сентябрь",{"$nulls":4},"Октябрь",{"$nulls":4},"Ноябрь",{"$nulls":4},"Декабрь",{"$nulls":4},"Всего"]
["Вид оценочных процедур","Федеральные оценочные процедуры","Региональные оценочные процедуры","Муниципальные оценочные процедуры","Оценочные процедуры по инициативе ОО","Всего","Федеральные оценочные процедуры","Региональные оценочные процедуры","Муниципальные оценочные процедуры","Оценочные процедуры по инициативе ОО","Всего","Федеральные оценочные процедуры","Региональные оценочные процедуры","Муниципальные оценочные процедуры","Оценочные процедуры по инициативе ОО","Всего","Федеральные оценочные процедуры","Региональные оценочные процедуры","Муниципальные оценочные процедуры","Оценочные процедуры по инициативе ОО","Всего","В первом полугодии 2025-2026 уч. года"]
["3 г класс"]
[]
["Русский язык",{"$nulls":3},0,0,{"$nulls":3},0,0,{"$nulls":3},0,0,{"$nulls":3},0,0,0]
["Лит. чтение",{"$nulls":3},0,0,{"$nulls":3},0,0,{"$nulls":3},0,0,{"$nulls":3},0,0,0]
["Ин. язык",{"$nulls":3},0,0,{"$nulls":3},0,0,{"$nulls":3},0,0,{"$nulls":3},0,0,0]
["Математика",{"$nulls":3},0,0,{"$nulls":3},0,0,{"$nulls":3},0,0,{"$nulls":3},0,0,0]
["Окруж. мир",{"$nulls":3},0,0,{"$nulls":3},0,0,{"$nulls":3},0,0,{"$nulls":3},0,0,0]
["ОРКСЭ",{"$nulls":3},0,0,{"$nulls":3},0,0,{"$nulls":3},0,0,{"$nulls":3},0,0,0]
["ИЗО",{"$nulls":3},0,0,{"$nulls":3},0,0,{"$nulls":3},0,0,{"$nulls":3},0,0,0]
["Музыка",{"$nulls":3},0,0,{"$nulls":3},0,0,{"$nulls":3},0,0,{"$nulls":3},0,0,0]
["Труд (технология)",{"$nulls":3},0,0,{"$nulls":3},0,0,{"$nulls":3},0,0,{"$nulls":3},0,0,0]
["Физкультура",{"$nulls":3},0,0,{"$nulls":3},0,0,{"$nulls":3},0,0,{"$nulls":3},0,0,0]
["Наглядная геометрия",{"$nulls":3},0,0,{"$nulls":3},0,0,{"$nulls":3},0,0,{"$nulls":3},0,0,0]
[]
[]
[]
["Период проведения оценочной процедуры","Сентябрь",{"$nulls":4},"Октябрь",{"$nulls":4},"Ноябрь",{"$nulls":4},"Декабрь",{"$nulls":4},"Всего"]
["Вид оценочных процедур","Федеральные оценочные процедуры","Региональные оценочные процедуры","Муниципальные оценочные процедуры","Оценочные процедуры по инициативе ОО","Всего","Федеральные оценочные процедуры","Региональные оценочные процедуры","Муниципальные оценочные процедуры","Оценочные процедуры по инициативе ОО","Всего","Федеральные оценочные процедуры","Региональные оценочные процедуры","Муниципальные оценочные процедуры","Оценочные процедуры по инициативе ОО","Всего","Федеральные оценочные процедуры","Региональные оценочные процедуры","Муниципальные оценочные процедуры","Оценочные процедуры по инициативе ОО","Всего","В первом полугодии 2025-2026 уч. года"]
["3 д класс"]
[]
["Русский язык",{"$nulls":3},0,0,{"$nulls":3},0,0,{"$nulls":3},0,0,{"$nulls":3},0,0,0]
["Лит. чтение",{"$nulls":3},0,0,{"$nulls":3},0,0,{"$nulls":3},0,0,{"$nulls":3},0,0,0]
["Ин. язык",{"$nulls":3},0,0,{"$nulls":3},0,0,{"$nulls":3},0,0,{"$nulls":3},0,0,0]
["Математика",{"$nulls":3},0,0,{"$nulls":3},0,0,{"$nulls":3},0,0,{"$nulls":3},0,0,0]
["Окруж. мир",{"$nulls":3},0,0,{"$nulls":3},0,0,{"$nulls":3},0,0,{"$nulls":3},0,0,0]
["ОРКСЭ",{"$nulls":3},0,0,{"$nulls":3},0,0,{"$nulls":3},0,0,{"$nulls":3},0,0,0]
["ИЗО",{"$nulls":3},0,0,{"$nulls":3},0,0,{"$nulls":3},0,0,{"$nulls":3},0,0,0]
["Музыка",{"$nulls":3},0,0,{"$nulls":3},0,0,{"$nulls":3},0,0,{"$nulls":3},0,0,0]
["Труд (технология)",{"$nulls":3},0,0,{"$nulls":3},0,0,{"$nulls":3},0,0,{"$nulls":3},0,0,0]
["Физкультура",{"$nulls":3},0,0,{"$nulls":3},0,0,{"$nulls":3},0,0,{"$nulls":3},0,0,0]
["Наглядная геометрия",{"$nulls":3},0,0,{"$nulls":3},0,0,{"$nulls":3},0,0,{"$nulls":3},0,0,0]
[]
[]
[]
["Период проведения оценочной процедуры","Сентябрь",{"$nulls":4},"Октябрь",{"$nulls":4},"Ноябрь",{"$nulls":4},"Декабрь",{"$nulls":4},"Всего"]
["Вид оценочных процедур","Федеральные оценочные процедуры","Региональные оценочные процедуры","Муниципальные оценочные процедуры","Оценочные процедуры по инициативе ОО","Всего","Федеральные оценочные процедуры","Региональные оценочные процедуры","Муниципальные оценочные процедуры","Оценочные процедуры по инициативе ОО","Всего","Федеральные оценочные процедуры","Региональные оценочные процедуры","Муниципальные оценочные процедуры","Оценочные процедуры по инициативе ОО","Всего","Федеральные оценочные процедуры","Региональные оценочные процедуры","Муниципальные оценочные процедуры","Оценочные процедуры по инициативе ОО","Всего","В первом полугодии 2025-2026 уч. года"]
["3 е класс"]
[]
["Русский язык",{"$nulls":3},0,0,{"$nulls":3},0,0,{"$nulls":3},0,0,{"$nulls":3},0,0,0]
["Лит. чтение",{"$nulls":3},0,0,{"$nulls":3},0,0,{"$nulls":3},0,0,{"$nulls":3},0,0,0]
["Ин. язык",{"$nulls":3},0,0,{"$nulls":3},0,0,{"$nulls":3},0,0,{"$nulls":3},0,0,0]
["Математика",{"$nulls":3},0,0,{"$nulls":3},0,0,{"$nulls":3},0,0,{"$nulls":3},0,0,0]
["Окруж. мир",{"$nulls":3},0,0,{"$nulls":3},0,0,{"$nulls":3},0,0,{"$nulls":3},0,0,0]
["ОРКСЭ",{"$nulls":3},0,0,{"$nulls":3},0,0,{"$nulls":3},0,0,{"$nulls":3},0,0,0]
["ИЗО",{"$nulls":3},0,0,{"$nulls":3},0,0,{"$nulls":3},0,0,{"$nulls":3},0,0,0]
["Музыка",{"$nulls":3},0,0,{"$nulls":3},0,0,{"$nulls":3},0,0,{"$nulls":3},0,0,0]
["Труд (технология)",{"$nulls":3},0,0,{"$nulls":3},0,0,{"$nulls":3},0,0,{"$nulls":3},0,0,0]
["Физкультура",{"$nulls":3},0,0,{"$nulls":3},0,0,{"$nulls":3},0,0,{"$nulls":3},0,0,0]
["Наглядная геометрия",{"$nulls":3},0,0,{"$nulls":3},0,0,{"$nulls":3},0,0,{"$nulls":3},0,0,0]
[]
[]
[]
["Период проведения оценочной процедуры","Сентябрь",{"$nulls":4},"Октябрь",{"$nulls":4},"Ноябрь",{"$nulls":4},"Декабрь",{"$nulls":4},"Всего"]
["Вид оценочных процедур","Федеральные оценочные процедуры","Региональные оценочные процедуры","Муниципальные оценочные процедуры","Оценочные процедуры по инициативе ОО","Всего","Федеральные оценочные процедуры","Региональные оценочные процедуры","Муниципальные оценочные процедуры","Оценочные процедуры по инициативе ОО","Всего","Федеральные оценочные процедуры","Региональные оценочные процедуры","Муниципальные оценочные процедуры","Оценочные процедуры по инициативе ОО","Всего","Федеральные оценочные процедуры","Региональные оценочные процедуры","Муниципальные оценочные процедуры","Оценочные процедуры по инициативе ОО","Всего","В первом полугодии 2025-2026 уч. года"]
["3 ж класс"]
[]
["Русский язык",{"$nulls":3},0,0,{"$nulls":3},0,0,{"$nulls":3},0,0,{"$nulls":3},0,0,0]
["Лит. чтение",{"$nulls":3},0,0,{"$nulls":3},0,0,{"$nulls":3},0,0,{"$nulls":3},0,0,0]
["Ин. язык",{"$nulls":3},0,0,{"$nulls":3},0,0,{"$nulls":3},0,0,{"$nulls":3},0,0,0]
["Математика",{"$nulls":3},0,0,{"$nulls":3},0,0,{"$nulls":3},0,0,{"$nulls":3},0,0,0]
["Окруж. мир",{"$nulls":3},0,0,{"$nulls":3},0,0,{"$nulls":3},0,0,{"$nulls":3},0,0,0]
["ОРКСЭ",{"$nulls":3},0,0,{"$nulls":3},0,0,{"$nulls":3},0,0,{"$nulls":3},0,0,0]
["ИЗО",{"$nulls":3},0,0,{"$nulls":3},0,0,{"$nulls":3},0,0,{"$nulls":3},0,0,0]
["Музыка",{"$nulls":3},0,0,{"$nulls":3},0,0,{"$nulls":3},0,0,{"$nulls":3},0,0,0]
["Труд (технология)",{"$nulls":3},0,0,{"$nulls":3},0,0,{"$nulls":3},0,0,{"$nulls":3},0,0,0]
["Физкультура",{"$nulls":3},0,0,{"$nulls":3},0,0,{"$nulls":3},0,0,{"$nulls":3},0,0,0]
["Наглядная геометрия",{"$nulls":3},0,0,{"$nulls":3},0,0,{"$nulls":3},0,0,{"$nulls":3},0,0,0]

{"sheet":"4-е классы","index":3,"n_rows":123,"n_cols":22,"rows_kept":123,"merged":[[0,1,0,5],[0,6,0,10],[0,11,0,15],[0,16,0,20],[2,0,3,21],[18,1,18,5],[18,6,18,10],[18,11,18,15],[18,16,18,20],[20,0,21,21],[36,1,36,5],[36,6,36,10],[36,11,36,15],[36,16,36,20],[38,0,39,21],[54,1,54,5],[54,6,54,10],[54,11,54,15],[54,16,54,20],[56,0,57,21],[72,1,72,5],[72,6,72,10],[72,11,72,15],[72,16,72,20],[74,0,75,21],[90,1,90,5],[90,6,90,10],[90,11,90,15],[90,16,90,20],[92,0,93,21],[108,1,108,5],[108,6,108,10],[108,11,108,15],[108,16,108,20],[110,0,111,21]]}
["Период проведения оценочной процедуры","Сентябрь",{"$nulls":4},"Октябрь",{"$nulls":4},"Ноябрь",{"$nulls":4},"Декабрь",{"$nulls":4},"Всего"]
["Вид оценочных процедур","Федеральные оценочные процедуры","Региональные оценочные процедуры","Муниципальные оценочные процедуры","Оценочные процедуры по инициативе ОО","Всего","Федеральные оценочные процедуры","Региональные оценочные процедуры","Муниципальные оценочные процедуры","Оценочные процедуры по инициативе ОО","Всего","Федеральные оценочные процедуры","Региональные оценочные процедуры","Муниципальные оценочные процедуры","Оценочные процедуры по инициативе ОО","Всего","Федеральные оценочные процедуры","Региональные оценочные процедуры","Муниципальные оценочные процедуры","Оценочные процедуры по инициативе ОО","Всего","В первом полугодии 2025-2026 уч. года"]
["4 а класс"]
[]
["Русский язык",{"$nulls":3},0,0,{"$nulls":3},0,0,{"$nulls":3},0,0,{"$nulls":3},0,0,0]
["Лит. чтение",{"$nulls":3},0,0,{"$nulls":3},0,0,{"$nulls":3},0,0,{"$nulls":3},0,0,0]
["Ин. язык",{"$nulls":3},0,0,{"$nulls":3},0,0,{"$nulls":3},0,0,{"$nulls":3},0,0,0]
["Математика",{"$nulls":3},0,0,{"$nulls":3},0,0,{"$nulls":3},0,0,{"$nulls":3},0,0,0]
["Окруж. мир",{"$nulls":3},0,0,{"$nulls":3},0,0,{"$nulls":3},0,0,{"$nulls":3},0,0,0]
["ОРКСЭ",{"$nulls":3},0,0,{"$nulls":3},0,0,{"$nulls":3},0,0,{"$nulls":3},0,0,0]
["ИЗО",{"$nulls":3},0,0,{"$nulls":3},0,0,{"$nulls":3},0,0,{"$nulls":3},0,0,0]
["Музыка",{"$nulls":3},0,0,{"$nulls":3},0,0,{"$nulls":3},0,0,{"$nulls":3},0,0,0]
["Труд (технология)",{"$nulls":3},0,0,{"$nulls":3},0,0,{"$nulls":3},0,0,{"$nulls":3},0,0,0]
["Физкультура",{"$nulls":3},0,0,{"$nulls":3},0,0,{"$nulls":3},0,0,{"$nulls":3},0,0,0]
["Наглядная геометрия",{"$nulls":3},0,0,{"$nulls":3},0,0,{"$nulls":3},0,0,{"$nulls":3},0,0,0]
[]
[]
[]
["Период проведения оценочной процедуры","Сентябрь",{"$nulls":4},"Октябрь",{"$nulls":4},"Ноябрь",{"$nulls":4},"Декабрь",{"$nulls":4},"Всего"]
["Вид оценочных процедур","Федеральные оценочные процедуры","Региональные оценочные процедуры","Муниципальные оценочные процедуры","Оценочные процедуры по инициативе ОО","Всего","Федеральные оценочные процедуры","Региональные оценочные процедуры","Муниципальные оценочные процедуры","Оценочные процедуры по инициативе ОО","Всего","Федеральные оценочные процедуры","Региональные оценочные процедуры","Муниципальные оценочные процедуры","Оценочные процедуры по инициативе ОО","Всего","Федеральные оценочные процедуры","Региональные оценочные процедуры","Муниципальные оценочные процедуры","Оценочные процедуры по инициативе ОО","Всего","В первом полугодии 2025-2026 уч. года"]
["4 б класс"]
[]
["Русский язык",{"$nulls":3},0,0,{"$nulls":3},0,0,{"$nulls":3},0,0,{"$nulls":3},0,0,0]
["Лит. чтение",{"$nulls":3},0,0,{"$nulls":3},0,0,{"$nulls":3},0,0,{"$nulls":3},0,0,0]
["Ин. язык",{"$nulls":3},0,0,{"$nulls":3},0,0,{"$nulls":3},0,0,{"$nulls":3},0,0,0]
["Математика",{"$nulls":3},0,0,{"$nulls":3},0,0,{"$nulls":3},0,0,{"$nulls":3},0,0,0]
["Окруж. мир",{"$nulls":3},0,0,{"$nulls":3},0,0,{"$nulls":3},0,0,{"$nulls":3},0,0,0]
["ОРКСЭ",{"$nulls":3},0,0,{"$nulls":3},0,0,{"$nulls":3},0,0,{"$nulls":3},0,0,0]
["ИЗО",{"$nulls":3},0,0,{"$nulls":3},0,0,{"$nulls":3},0,0,{"$nulls":3},0,0,0]
["Музыка",{"$nulls":3},0,0,{"$nulls":3},0,0,{"$nulls":3},0,0,{"$nulls":3},0,0,0]
["Труд (технология)",{"$nulls":3},0,0,{"$nulls":3},0,0,{"$nulls":3},0,0,{"$nulls":3},0,0,0]
["Физкультура",{"$nulls":3},0,0,{"$nulls":3},0,0,{"$nulls":3},0,0,{"$nulls":3},0,0,0]
["Наглядная геометрия",{"$nulls":3},0,0,{"$nulls":3},0,0,{"$nulls":3},0,0,{"$nulls":3},0,0,0]
[]
[]
[]
["Период проведения оценочной процедуры","Сентябрь",{"$nulls":4},"Октябрь",{"$nulls":4},"Ноябрь",{"$nulls":4},"Декабрь",{"$nulls":4},"Всего"]
["Вид оценочных процедур","Федеральные оценочные процедуры","Региональные оценочные процедуры","Муниципальные оценочные процедуры","Оценочные процедуры по инициативе ОО","Всего","Федеральные оценочные процедуры","Региональные оценочные процедуры","Муниципальные оценочные процедуры","Оценочные процедуры по инициативе ОО","Всего","Федеральные оценочные процедуры","Региональные оценочные процедуры","Муниципальные оценочные процедуры","Оценочные процедуры по инициативе ОО","Всего","Федеральные оценочные процедуры","Региональные оценочные процедуры","Муниципальные оценочные процедуры","Оценочные процедуры по инициативе ОО","Всего","В первом полугодии 2025-2026 уч. года"]
["4 в класс"]
[]
["Русский язык",{"$nulls":3},0,0,{"$nulls":3},0,0,{"$nulls":3},0,0,{"$nulls":3},0,0,0]
["Лит. чтение",{"$nulls":3},0,0,{"$nulls":3},0,0,{"$nulls":3},0,0,{"$nulls":3},0,0,0]
["Ин. язык",{"$nulls":3},0,0,{"$nulls":3},0,0,{"$nulls":3},0,0,{"$nulls":3},0,0,0]
["Математика",{"$nulls":3},0,0,{"$nulls":3},0,0,{"$nulls":3},0,0,{"$nulls":3},0,0,0]
["Окруж. мир",{"$nulls":3},0,0,{"$nulls":3},0,0,{"$nulls":3},0,0,{"$nulls":3},0,0,0]
["ОРКСЭ",{"$nulls":3},0,0,{"$nulls":3},0,0,{"$nulls":3},0,0,{"$nulls":3},0,0,0]
["ИЗО",{"$nulls":3},0,0,{"$nulls":3},0,0,{"$nulls":3},0,0,{"$nulls":3},0,0,0]
["Музыка",{"$nulls":3},0,0,{"$nulls":3},0,0,{"$nulls":3},0,0,{"$nulls":3},0,0,0]
["Труд (технология)",{"$nulls":3},0,0,{"$nulls":3},0,0,{"$nulls":3},0,0,{"$nulls":3},0,0,0]
["Физкультура",{"$nulls":3},0,0,{"$nulls":3},0,0,{"$nulls":3},0,0,{"$nulls":3},0,0,0]
["Наглядная геометрия",{"$nulls":3},0,0,{"$nulls":3},0,0,{"$nulls":3},0,0,{"$nulls":3},0,0,0]
[]
[]
[]
["Период проведения оценочной процедуры","Сентябрь",{"$nulls":4},"Октябрь",{"$nulls":4},"Ноябрь",{"$nulls":4},"Декабрь",{"$nulls":4},"Всего"]
["Вид оценочных процедур","Федеральные оценочные процедуры","Региональные оценочные процедуры","Муниципальные оценочные процедуры","Оценочные процедуры по инициативе ОО","Всего","Федеральные оценочные процедуры","Региональные оценочные процедуры","Муниципальные оценочные процедуры","Оценочные процедуры по инициативе ОО","Всего","Федеральные оценочные процедуры","Региональные оценочные процедуры","Муниципальные оценочные процедуры","Оценочные процедуры по инициативе ОО","Всего","Федеральные оценочные процедуры","Региональные оценочные процедуры","Муниципальные оценочные процедуры","Оценочные процедуры по инициативе ОО","Всего","В первом полугодии 2025-2026 уч. года"]
["4 г класс"]
[]
["Русский язык",{"$nulls":3},0,0,{"$nulls":3},0,0,{"$nulls":3},0,0,{"$nulls":3},0,0,0]
["Лит. чтение",{"$nulls":3},0,0,{"$nulls":3},0,0,{"$nulls":3},0,0,{"$nulls":3},0,0,0]
["Ин. язык",{"$nulls":3},0,0,{"$nulls":3},0,0,{"$nulls":3},0,0,{"$nulls":3},0,0,0]
["Математика",{"$nulls":3},0,0,{"$nulls":3},0,0,{"$nulls":3},0,0,{"$nulls":3},0,0,0]
["Окруж. мир",{"$nulls":3},0,0,{"$nulls":3},0,0,{"$nulls":3},0,0,{"$nulls":3},0,0,0]
["ОРКСЭ",{"$nulls":3},0,0,{"$nulls":3},0,0,{"$nulls":3},0,0,{"$nulls":3},0,0,0]
["ИЗО",{"$nulls":3},0,0,{"$nulls":3},0,0,{"$nulls":3},0,0,{"$nulls":3},0,0,0]
["Музыка",{"$nulls":3},0,0,{"$nulls":3},0,0,{"$nulls":3},0,0,{"$nulls":3},0,0,0]
["Труд (технология)",{"$nulls":3},0,0,{"$nulls":3},0,0,{"$nulls":3},0,0,{"$nulls":3},0,0,0]
["Физкультура",{"$nulls":3},0,0,{"$nulls":3},0,0,{"$nulls":3},0,0,{"$nulls":3},0,0,0]
["Наглядная геометрия",{"$nulls":3},0,0,{"$nulls":3},0,0,{"$nulls":3},0,0,{"$nulls":3},0,0,0]
[]
[]
[]
["Период проведения оценочной процедуры","Сентябрь",{"$nulls":4},"Октябрь",{"$nulls":4},"Ноябрь",{"$nulls":4},"Декабрь",{"$nulls":4},"Всего"]
["Вид оценочных процедур","Федеральные оценочные процедуры","Региональные оценочные процедуры","Муниципальные оценочные процедуры","Оценочные процедуры по инициативе ОО","Всего","Федеральные оценочные процедуры","Региональные оценочные процедуры","Муниципальные оценочные процедуры","Оценочные процедуры по инициативе ОО","Всего","Федеральные оценочные процедуры","Региональные оценочные процедуры","Муниципальные оценочные процедуры","Оценочные процедуры по инициативе ОО","Всего","Федеральные оценочные процедуры","Региональные оценочные процедуры","Муниципальные оценочные процедуры","Оценочные процедуры по инициативе ОО","Всего","В первом полугодии 2025-2026 уч. года"]
["4 д класс"]
[]
["Русский язык",{"$nulls":3},0,0,{"$nulls":3},0,0,{"$nulls":3},0,0,{"$nulls":3},0,0,0]
["Лит. чтение",{"$nulls":3},0,0,{"$nulls":3},0,0,{"$nulls":3},0,0,{"$nulls":3},0,0,0]
["Ин. язык",{"$nulls":3},0,0,{"$nulls":3},0,0,{"$nulls":3},0,0,{"$nulls":3},0,0,0]
["Математика",{"$nulls":3},0,0,{"$nulls":3},0,0,{"$nulls":3},0,0,{"$nulls":3},0,0,0]
["Окруж. мир",{"$nulls":3},0,0,{"$nulls":3},0,0,{"$nulls":3},0,0,{"$nulls":3},0,0,0]
["ОРКСЭ",{"$nulls":3},0,0,{"$nulls":3},0,0,{"$nulls":3},0,0,{"$nulls":3},0,0,0]
["ИЗО",{"$nulls":3},0,0,{"$nulls":3},0,0,{"$nulls":3},0,0,{"$nulls":3},0,0,0]
["Музыка",{"$nulls":3},0,0,{"$nulls":3},0,0,{"$nulls":3},0,0,{"$nulls":3},0,0,0]
["Труд (технология)",{"$nulls":3},0,0,{"$nulls":3},0,0,{"$nulls":3},0,0,{"$nulls":3},0,0,0]
["Физкультура",{"$nulls":3},0,0,{"$nulls":3},0,0,{"$nulls":3},0,0,{"$nulls":3},0,0,0]
["Наглядная геометрия",{"$nulls":3},0,0,{"$nulls":3},0,0,{"$nulls":3},0,0,{"$nulls":3},0,0,0]
[]
[]
[]
["Период проведения оценочной процедуры","Сентябрь",{"$nulls":4},"Октябрь",{"$nulls":4},"Ноябрь",{"$nulls":4},"Декабрь",{"$nulls":4},"Всего"]
["Вид оценочных процедур","Федеральные оценочные процедуры","Региональные оценочные процедуры","Муниципальные оценочные процедуры","Оценочные процедуры по инициативе ОО","Всего","Федеральные оценочные процедуры","Региональные оценочные процедуры","Муниципальные оценочные процедуры","Оценочные процедуры по инициативе ОО","Всего","Федеральные оценочные процедуры","Региональные оценочные процедуры","Муниципальные оценочные процедуры","Оценочные процедуры по инициативе ОО","Всего","Федеральные оценочные процедуры","Региональные оценочные процедуры","Муниципальные оценочные процедуры","Оценочные процедуры по инициативе ОО","Всего","В первом полугодии 2025-2026 уч. года"]
["4 е класс"]
[]
["Русский язык",{"$nulls":3},0,0,{"$nulls":3},0,0,{"$nulls":3},0,0,{"$nulls":3},0,0,0]
["Лит. чтение",{"$nulls":3},0,0,{"$nulls":3},0,0,{"$nulls":3},0,0,{"$nulls":3},0,0,0]
["Ин. язык",{"$nulls":3},0,0,{"$nulls":3},0,0,{"$nulls":3},0,0,{"$nulls":3},0,0,0]
["Математика",{"$nulls":3},0,0,{"$nulls":3},0,0,{"$nulls":3},0,0,{"$nulls":3},0,0,0]
["Окруж. мир",{"$nulls":3},0,0,{"$nulls":3},0,0,{"$nulls":3},0,0,{"$nulls":3},0,0,0]
["ОРКСЭ",{"$nulls":3},0,0,{"$nulls":3},0,0,{"$nulls":3},0,0,{"$nulls":3},0,0,0]
["ИЗО",{"$nulls":3},0,0,{"$nulls":3},0,0,{"$nulls":3},0,0,{"$nulls":3},0,0,0]
["Музыка",{"$nulls":3},0,0,{"$nulls":3},0,0,{"$nulls":3},0,0,{"$nulls":3},0,0,0]
["Труд (технология)",{"$nulls":3},0,0,{"$nulls":3},0,0,{"$nulls":3},0,0,{"$nulls":3},0,0,0]
["Физкультура",{"$nulls":3},0,0,{"$nulls":3},0,0,{"$nulls":3},0,0,{"$nulls":3},0,0,0]
["Наглядная геометрия",{"$nulls":3},0,0]
[]
[]
[]
["Период проведения оценочной процедуры","Сентябрь",{"$nulls":4},"Октябрь",{"$nulls":4},"Ноябрь",{"$nulls":4},"Декабрь",{"$nulls":4},"Всего"]
["Вид оценочных процедур","Федеральные оценочные процедуры","Региональные оценочные процедуры","Муниципальные оценочные процедуры","Оценочные процедуры по инициативе ОО","Всего","Федеральные оценочные процедуры","Региональные оценочные процедуры","Муниципальные оценочные процедуры","Оценочные процедуры по инициативе ОО","Всего","Федеральные оценочные процедуры","Региональные оценочные процедуры","Муниципальные оценочные процедуры","Оценочные процедуры по инициативе ОО","Всего","Федеральные оценочные процедуры","Региональные оценочные процедуры","Муниципальные оценочные процедуры","Оценочные процедуры по инициативе ОО","Всего","В первом полугодии 2025-2026 уч. года"]
["4 ж класс"]
[]
["Русский язык",{"$nulls":3},0,0,{"$nulls":3},0,0,{"$nulls":3},0,0,{"$nulls":3},0,0,0]
["Лит. чтение",{"$nulls":3},0,0,{"$nulls":3},0,0,{"$nulls":3},0,0,{"$nulls":3},0,0,0]
["Ин. язык",{"$nulls":3},0,0,{"$nulls":3},0,0,{"$nulls":3},0,0,{"$nulls":3},0,0,0]
["Математика",{"$nulls":3},0,0,{"$nulls":3},0,0,{"$nulls":3},0,0,{"$nulls":3},0,0,0]
["Окруж. мир",{"$nulls":3},0,0,{"$nulls":3},0,0,{"$nulls":3},0,0,{"$nulls":3},0,0,0]
["ОРКСЭ",{"$nulls":3},0,0,{"$nulls":3},0,0,{"$nulls":3},0,0,{"$nulls":3},0,0,0]
["ИЗО",{"$nulls":3},0,0,{"$nulls":3},0,0,{"$nulls":3},0,0,{"$nulls":3},0,0,0]
["Музыка",{"$nulls":3},0,0,{"$nulls":3},0,0,{"$nulls":3},0,0,{"$nulls":3},0,0,0]
["Труд (технология)",{"$nulls":3},0,0,{"$nulls":3},0,0,{"$nulls":3},0,0,{"$nulls":3},0,0,0]
["Физкультура",{"$nulls":3},0,0,{"$nulls":3},0,0,{"$nulls":3},0,0,{"$nulls":3},0,0,0]
["Наглядная геометрия",{"$nulls":3},0,0,{"$nulls":3},0,0,{"$nulls":3},0,0,{"$nulls":3},0,0,0]

{"sheet":"5-е классы","index":4,"n_rows":169,"n_cols":22,"rows_kept":169,"merged":[[0,1,0,5],[0,6,0,10],[0,11,0,15],[0,16,0,20],[2,0,3,21],[20,1,20,5],[20,6,20,10],[20,11,20,15],[20,16,20,20],[22,0,23,21],[42,1,42,5],[42,6,42,10],[42,11,42,15],[42,16,42,20],[44,0,45,21],[64,1,64,5],[64,6,64,10],[64,11,64,15],[64,16,64,20],[66,0,67,21],[86,1,86,5],[86,6,86,10],[86,11,86,15],[86,16,86,20],[88,0,89,21],[108,1,108,5],[108,6,108,10],[108,11,108,15],[108,16,108,20],[110,0,111,21],[130,1,130,5],[130,6,130,10],[130,11,130,15],[130,16,130,20],[132,0,133,21],[150,1,150,5],[150,6,150,10],[150,11,150,15],[150,16,150,20],[152,0,153,21]]}
["Период проведения оценочной процедуры","Сентябрь",{"$nulls":4},"Октябрь",{"$nulls":4},"Ноябрь",{"$nulls":4},"Декабрь",{"$nulls":4},"Всего"]
["Вид оценочных процедур","Федеральные оценочные процедуры","Региональные оценочные процедуры","Муниципальные оценочные процедуры","Оценочные процедуры по инициативе ОО","Всего","Федеральные оценочные процедуры","Региональные оценочные процедуры","Муниципальные оценочные процедуры","Оценочные процедуры по инициативе ОО","Всего","Федеральные оценочные процедуры","Региональные оценочные процедуры","Муниципальные оценочные процедуры","Оценочные процедуры по инициативе ОО","Всего","Федеральные оценочные процедуры","Региональные оценочные процедуры","Муниципальные оценочные процедуры","Оценочные процедуры по инициативе ОО","Всего","В первом полугодии 2025-2026 уч. года"]
["5 а класс"]
[]
["Русский язык",{"$nulls":3},1,1,{"$nulls":3},1,1,{"$nulls":3},1,1,{"$nulls":3},0,0,6]
["Литература",{"$nulls":3},0,0,{"$nulls":3},1,1,{"$nulls":3},0,0,{"$nulls":3},1,1,4]
["Ин. язык",{"$nulls":3},0,0,{"$nulls":3},1,1,{"$nulls":3},0,0,{"$nulls":3},1,1,4]
["Математика",{"$nulls":3},0,0,{"$nulls":3},2,2,{"$nulls":3},1,1,{"$nulls":3},1,1,8]
["История",{"$nulls":3},1,1,{"$nulls":3},2,2,{"$nulls":3},0,0,{"$nulls":3},1,1,8]
["География",{"$nulls":3},1,1,{"$nulls":3},2,2,{"$nulls":3},1,1,{"$nulls":3},0,0,8]
["Биология",{"$nulls":3},0,0,{"$nulls":3},1,1,{"$nulls":3},0,0,{"$nulls":3},0,0,2]
["Музыка",{"$nulls":3},0,0,{"$nulls":3},0,0,{"$nulls":3},0,0,{"$nulls":3},0,0,0]
["ИЗО",{"$nulls":3},0,0,{"$nulls":3},1,1,{"$nulls":3},0,0,{"$nulls":3},0,0,2]
["Труд (технология)",{"$nulls":3},0,0,{"$nulls":3},0,0,{"$nulls":3},1,1,{"$nulls":3},0,0,2]
["Физкультура",{"$nulls":3},1,0,{"$nulls":3},1,1,{"$nulls":3},1,1,{"$nulls":3},0,0,4]
["Информатика. Программирование на Пайтон",{"$nulls":3},0,0,{"$nulls":3},0,0,{"$nulls":3},1,1,{"$nulls":3},0,0,2]
["Информатика. Информационные технологии",{"$nulls":3},0,0,{"$nulls":3},0,0,{"$nulls":3},0,0,{"$nulls":3},0,0,0]
["Математика. Шаги в геометрию",{"$nulls":3},0,0,{"$nulls":3},0,0,{"$nulls":3},0,0,{"$nulls":3},0,0,0]
["Физика. Физика в экспериментах",{"$nulls":3},0,0,{"$nulls":3},0,0,{"$nulls":3},0,0,{"$nulls":3},0,0,0]
[]
["Период проведения оценочной процедуры","Сентябрь",{"$nulls":4},"Октябрь",{"$nulls":4},"Ноябрь",{"$nulls":4},"Декабрь",{"$nulls":4},"Всего"]
["Вид оценочных процедур","Федеральные оценочные процедуры","Региональные оценочные процедуры","Муниципальные оценочные процедуры","Оценочные процедуры по инициативе ОО","Всего","Федеральные оценочные процедуры","Региональные оценочные процедуры","Муниципальные оценочные процедуры","Оценочные процедуры по инициативе ОО","Всего","Федеральные оценочные процедуры","Региональные оценочные процедуры","Муниципальные оценочные процедуры","Оценочные процедуры по инициативе ОО","Всего","Федеральные оценочные процедуры","Региональные оценочные процедуры","Муниципальные оценочные процедуры","Оценочные процедуры по инициативе ОО","Всего","В первом полугодии 2025-2026 уч. года"]
["5 б класс"]
[]
["Русский язык",{"$nulls":3},1,1,{"$nulls":3},1,1,{"$nulls":3},1,1,{"$nulls":3},0,0,6]
["Литература",{"$nulls":3},0,0,{"$nulls":3},1,1,{"$nulls":3},0,0,{"$nulls":3},1,1,4]
["Ин. язык",{"$nulls":3},0,0,{"$nulls":3},1,1,{"$nulls":3},0,0,{"$nulls":3},1,1,4]
["Математика",{"$nulls":3},0,0,{"$nulls":3},2,2,{"$nulls":3},1,1,{"$nulls":3},1,1,8]
["История",{"$nulls":3},1,1,{"$nulls":3},2,2,{"$nulls":3},0,0,{"$nulls":3},1,1,8]
["География",{"$nulls":3},1,1,{"$nulls":3},2,2,{"$nulls":3},1,1,{"$nulls":3},0,0,8]
["Биология",{"$nulls":3},0,0,{"$nulls":3},1,1,{"$nulls":3},0,0,{"$nulls":3},0,0,2]
["Музыка",{"$nulls":3},0,0,{"$nulls":3},0,0,{"$nulls":3},0,0,{"$nulls":3},0,0,0]
["ИЗО",{"$nulls":3},0,0,{"$nulls":3},1,1,{"$nulls":3},0,0,{"$nulls":3},0,0,2]
["Труд (технология)",{"$nulls":3},0,0,{"$nulls":3},0,0,{"$nulls":3},1,1,{"$nulls":3},0,0,2]
["Физкультура",{"$nulls":3},1,0,{"$nulls":3},1,1,{"$nulls":3},1,1,{"$nulls":3},0,0,4]
["Информатика. Программирование на Пайтон",{"$nulls":3},0,0,{"$nulls":3},0,0,{"$nulls":3},1,1,{"$nulls":3},0,0,2]
["Информатика. Информационные технологии",{"$nulls":3},0,0,{"$nulls":3},0,0,{"$nulls":3},0,0,{"$nulls":3},0,0,0]
["Математика. Шаги в геометрию",{"$nulls":3},0,0,{"$nulls":3},0,0,{"$nulls":3},0,0,{"$nulls":3},0,0,0]
["Физика. Физика в экспериментах",{"$nulls":3},0,0,{"$nulls":3},0,0,{"$nulls":3},0,0,{"$nulls":3},0,0,0]
[]
[]
[]
["Период проведения оценочной процедуры","Сентябрь",{"$nulls":4},"Октябрь",{"$nulls":4},"Ноябрь",{"$nulls":4},"Декабрь",{"$nulls":4},"Всего"]
["Вид оценочных процедур","Федеральные оценочные процедуры","Региональные оценочные процедуры","Муниципальные оценочные процедуры","Оценочные процедуры по инициативе ОО","Всего","Федеральные оценочные процедуры","Региональные оценочные процедуры","Муниципальные оценочные процедуры","Оценочные процедуры по инициативе ОО","Всего","Федеральные оценочные процедуры","Региональные оценочные процедуры","Муниципальные оценочные процедуры","Оценочные процедуры по инициативе ОО","Всего","Федеральные оценочные процедуры","Региональные оценочные процедуры","Муниципальные оценочные процедуры","Оценочные процедуры по инициативе ОО","Всего","В первом полугодии 2025-2026 уч. года"]
["5 в класс"]
[]
["Русский язык",{"$nulls":3},1,1,{"$nulls":3},1,1,{"$nulls":3},1,1,{"$nulls":3},0,0,6]
["Литература",{"$nulls":3},0,0,{"$nulls":3},1,1,{"$nulls":3},0,0,{"$nulls":3},1,1,4]
["Ин. язык",{"$nulls":3},0,0,{"$nulls":3},1,1,{"$nulls":3},0,0,{"$nulls":3},1,1,4]
["Математика",{"$nulls":3},0,0,{"$nulls":3},2,2,{"$nulls":3},1,1,{"$nulls":3},1,1,8]
["История",{"$nulls":3},1,1,{"$nulls":3},2,2,{"$nulls":3},0,0,{"$nulls":3},1,1,8]
["География",{"$nulls":3},1,1,{"$nulls":3},2,2,{"$nulls":3},1,1,{"$nulls":3},0,0,8]
["Биология",{"$nulls":3},0,0,{"$nulls":3},1,1,{"$nulls":3},0,0,{"$nulls":3},0,0,2]
["Музыка",{"$nulls":3},0,0,{"$nulls":3},0,0,{"$nulls":3},0,0,{"$nulls":3},0,0,0]
["ИЗО",{"$nulls":3},0,0,{"$nulls":3},1,1,{"$nulls":3},0,0,{"$nulls":3},0,0,2]
["Труд (технология)",{"$nulls":3},0,0,{"$nulls":3},0,0,{"$nulls":3},1,1,{"$nulls":3},0,0,2]
["Физкультура",{"$nulls":3},1,0,{"$nulls":3},1,1,{"$nulls":3},1,1,{"$nulls":3},0,0,4]
["Информатика. Программирование на Пайтон",{"$nulls":3},0,0,{"$nulls":3},0,0,{"$nulls":3},1,1,{"$nulls":3},0,0,2]
["Информатика. Информационные технологии",{"$nulls":3},0,0,{"$nulls":3},0,0,{"$nulls":3},0,0,{"$nulls":3},0,0,0]
["Математика. Шаги в геометрию",{"$nulls":3},0,0,{"$nulls":3},0,0,{"$nulls":3},0,0,{"$nulls":3},0,0,0]
["Физика. Физика в экспериментах",{"$nulls":3},0,0,{"$nulls":3},0,0,{"$nulls":3},0,0,{"$nulls":3},0,0,0]
[]
[]
[]
["Период проведения оценочной процедуры","Сентябрь",{"$nulls":4},"Октябрь",{"$nulls":4},"Ноябрь",{"$nulls":4},"Декабрь",{"$nulls":4},"Всего"]
["Вид оценочных процедур","Федеральные оценочные процедуры","Региональные оценочные процедуры","Муниципальные оценочные процедуры","Оценочные процедуры по инициативе ОО","Всего","Федеральные оценочные процедуры","Региональные оценочные процедуры","Муниципальные оценочные процедуры","Оценочные процедуры по инициативе ОО","Всего","Федеральные оценочные процедуры","Региональные оценочные процедуры","Муниципальные оценочные процедуры","Оценочные процедуры по инициативе ОО","Всего","Федеральные оценочные процедуры","Региональные оценочные процедуры","Муниципальные оценочные процедуры","Оценочные процедуры по инициативе ОО","Всего","В первом полугодии 2025-2026 уч. года"]
["5 г класс"]
[]
["Русский язык",{"$nulls":3},1,1,{"$nulls":3},1,1,{"$nulls":3},1,1,{"$nulls":3},0,0,6]
["Литература",{"$nulls":3},0,0,{"$nulls":3},1,1,{"$nulls":3},0,0,{"$nulls":3},1,1,4]
["Ин. язык",{"$nulls":3},0,0,{"$nulls":3},1,1,{"$nulls":3},0,0,{"$nulls":3},1,1,4]
["Математика",{"$nulls":3},0,0,{"$nulls":3},2,2,{"$nulls":3},1,1,{"$nulls":3},1,1,8]
["История",{"$nulls":3},1,1,{"$nulls":3},2,2,{"$nulls":3},0,0,{"$nulls":3},1,1,8]
["География",{"$nulls":3},1,1,{"$nulls":3},2,2,{"$nulls":3},1,1,{"$nulls":3},0,0,8]
["Биология",{"$nulls":3},0,0,{"$nulls":3},1,1,{"$nulls":3},0,0,{"$nulls":3},0,0,2]
["Музыка",{"$nulls":3},0,0,{"$nulls":3},0,0,{"$nulls":3},0,0,{"$nulls":3},0,0,0]
["ИЗО",{"$nulls":3},0,0,{"$nulls":3},1,1,{"$nulls":3},0,0,{"$nulls":3},0,0,2]
["Труд (технология)",{"$nulls":3},0,0,{"$nulls":3},0,0,{"$nulls":3},1,1,{"$nulls":3},0,0,2]
["Физкультура",{"$nulls":3},1,0,{"$nulls":3},1,1,{"$nulls":3},1,1,{"$nulls":3},0,0,4]
["Информатика. Программирование на Пайтон",{"$nulls":3},0,0,{"$nulls":3},0,0,{"$nulls":3},1,1,{"$nulls":3},0,0,2]
["Информатика. Информационные технологии",{"$nulls":3},0,0,{"$nulls":3},0,0,{"$nulls":3},0,0,{"$nulls":3},0,0,0]
["Математика. Шаги в геометрию",{"$nulls":3},0,0,{"$nulls":3},0,0,{"$nulls":3},0,0,{"$nulls":3},0,0,0]
["Физика. Физика в экспериментах",{"$nulls":3},0,0,{"$nulls":3},0,0,{"$nulls":3},0,0,{"$nulls":3},0,0,0]
[]
[]
[]
["Период проведения оценочной процедуры","Сентябрь",{"$nulls":4},"Октябрь",{"$nulls":4},"Ноябрь",{"$nulls":4},"Декабрь",{"$nulls":4},"Всего"]
["Вид оценочных процедур","Федеральные оценочные процедуры","Региональные оценочные процедуры","Муниципальные оценочные процедуры","Оценочные процедуры по инициативе ОО","Всего","Федеральные оценочные процедуры","Региональные оценочные процедуры","Муниципальные оценочные процедуры","Оценочные процедуры по инициативе ОО","Всего","Федеральные оценочные процедуры","Региональные оценочные процедуры","Муниципальные оценочные процедуры","Оценочные процедуры по инициативе ОО","Всего","Федеральные оценочные процедуры","Региональные оценочные процедуры","Муниципальные оценочные процедуры","Оценочные процедуры по инициативе ОО","Всего","В первом полугодии 2025-2026 уч. года"]
["5 д класс"]
[]
["Русский язык",{"$nulls":3},1,1,{"$nulls":3},1,1,{"$nulls":3},1,1,{"$nulls":3},0,0,6]
["Литература",{"$nulls":3},0,0,{"$nulls":3},1,1,{"$nulls":3},0,0,{"$nulls":3},1,1,4]
["Ин. язык",{"$nulls":3},0,0,{"$nulls":3},1,1,{"$nulls":3},0,0,{"$nulls":3},1,1,4]
["Математика",{"$nulls":3},0,0,{"$nulls":3},2,2,{"$nulls":3},1,1,{"$nulls":3},1,1,8]
["История",{"$nulls":3},1,1,{"$nulls":3},2,2,{"$nulls":3},0,0,{"$nulls":3},1,1,8]
["География",{"$nulls":3},1,1,{"$nulls":3},2,2,{"$nulls":3},1,1,{"$nulls":3},0,0,8]
["Биология",{"$nulls":3},0,0,{"$nulls":3},1,1,{"$nulls":3},0,0,{"$nulls":3},0,0,2]
["Музыка",{"$nulls":3},0,0,{"$nulls":3},0,0,{"$nulls":3},0,0,{"$nulls":3},0,0,0]
["ИЗО",{"$nulls":3},0,0,{"$nulls":3},1,1,{"$nulls":3},0,0,{"$nulls":3},0,0,2]
["Труд (технология)",{"$nulls":3},0,0,{"$nulls":3},0,0,{"$nulls":3},1,1,{"$nulls":3},0,0,2]
["Физкультура",{"$nulls":3},1,0,{"$nulls":3},1,1,{"$nulls":3},1,1,{"$nulls":3},0,0,4]
["Информатика. Программирование на Пайтон",{"$nulls":3},0,0,{"$nulls":3},0,0,{"$nulls":3},1,1,{"$nulls":3},0,0,2]
["Информатика. Информационные технологии",{"$nulls":3},0,0,{"$nulls":3},0,0,{"$nulls":3},0,0,{"$nulls":3},0,0,0]
["Математика. Шаги в геометрию",{"$nulls":3},0,0,{"$nulls":3},0,0,{"$nulls":3},0,0,{"$nulls":3},0,0,0]
["Физика. Физика в экспериментах",{"$nulls":3},0,0,{"$nulls":3},0,0,{"$nulls":3},0,0,{"$nulls":3},0,0,0]
[]
[]
[]
["Период проведения оценочной процедуры","Сентябрь",{"$nulls":4},"Октябрь",{"$nulls":4},"Ноябрь",{"$nulls":4},"Декабрь",{"$nulls":4},"Всего"]
["Вид оценочных процедур","Федеральные оценочные процедуры","Региональные оценочные процедуры","Муниципальные оценочные процедуры","Оценочные процедуры по инициативе ОО","Всего","Федеральные оценочные процедуры","Региональные оценочные процедуры","Муниципальные оценочные процедуры","Оценочные процедуры по инициативе ОО","Всего","Федеральные оценочные процедуры","Региональные оценочные процедуры","Муниципальные оценочные процедуры","Оценочные процедуры по инициативе ОО","Всего","Федеральные оценочные процедуры","Региональные оценочные процедуры","Муниципальные оценочные процедуры","Оценочные процедуры по инициативе ОО","Всего","В первом полугодии 2025-2026 уч. года"]
["5 ж класс"]
[]
["Русский язык",{"$nulls":3},1,1,{"$nulls":3},1,1,{"$nulls":3},1,1,{"$nulls":3},0,0,6]
["Литература",{"$nulls":3},0,0,{"$nulls":3},1,1,{"$nulls":3},0,0,{"$nulls":3},1,1,4]
["Ин. язык",{"$nulls":3},0,0,{"$nulls":3},1,1,{"$nulls":3},0,0,{"$nulls":3},1,1,4]
["Математика",{"$nulls":3},0,0,{"$nulls":3},2,2,{"$nulls":3},1,1,{"$nulls":3},1,1,8]
["История",{"$nulls":3},1,1,{"$nulls":3},2,2,{"$nulls":3},0,0,{"$nulls":3},1,1,8]
["География",{"$nulls":3},1,1,{"$nulls":3},2,2,{"$nulls":3},1,1,{"$nulls":3},0,0,8]
["Биология",{"$nulls":3},0,0,{"$nulls":3},1,1,{"$nulls":3},0,0,{"$nulls":3},0,0,2]
["Музыка",{"$nulls":3},0,0,{"$nulls":3},0,0,{"$nulls":3},0,0,{"$nulls":3},0,0,0]
["ИЗО",{"$nulls":3},0,0,{"$nulls":3},1,1,{"$nulls":3},0,0,{"$nulls":3},0,0,2]
["Труд (технология)",{"$nulls":3},0,0,{"$nulls":3},0,0,{"$nulls":3},1,1,{"$nulls":3},0,0,2]
["Физкультура",{"$nulls":3},1,0,{"$nulls":3},1,1,{"$nulls":3},1,1,{"$nulls":3},0,0,4]
["Информатика. Программирование на Пайтон",{"$nulls":3},0,0,{"$nulls":3},0,0,{"$nulls":3},1,1,{"$nulls":3},0,0,2]
["Информатика. Информационные технологии",{"$nulls":3},0,0,{"$nulls":3},0,0,{"$nulls":3},0,0,{"$nulls":3},0,0,0]
["Математика. Шаги в геометрию",{"$nulls":3},0,0,{"$nulls":3},0,0,{"$nulls":3},0,0,{"$nulls":3},0,0,0]
["Физика. Физика в экспериментах",{"$nulls":3},0,0,{"$nulls":3},0,0,{"$nulls":3},0,0,{"$nulls":3},0,0,0]
[]
[]
[]
["Период проведения оценочной процедуры","Сентябрь",{"$nulls":4},"Октябрь",{"$nulls":4},"Ноябрь",{"$nulls":4},"Декабрь",{"$nulls":4},"Всего"]
["Вид оценочных процедур","Федеральные оценочные процедуры","Региональные оценочные процедуры","Муниципальные оценочные процедуры","Оценочные процедуры по инициативе ОО","Всего","Федеральные оценочные процедуры","Региональные оценочные процедуры","Муниципальные оценочные процедуры","Оценочные процедуры по инициативе ОО","Всего","Федеральные оценочные процедуры","Региональные оценочные процедуры","Муниципальные оценочные процедуры","Оценочные процедуры по инициативе ОО","Всего","Федеральные оценочные процедуры","Региональные оценочные процедуры","Муниципальные оценочные процедуры","Оценочные процедуры по инициативе ОО","Всего","В первом полугодии 2025-2026 уч. года"]
["5 з класс"]
[]
["Русский язык",{"$nulls":3},1,1,{"$nulls":3},1,1,{"$nulls":3},1,1,{"$nulls":3},0,0,6]
["Литература",{"$nulls":3},0,0,{"$nulls":3},1,1,{"$nulls":3},0,0,{"$nulls":3},1,1,4]
["Ин. язык",{"$nulls":3},0,0,{"$nulls":3},1,1,{"$nulls":3},0,0,{"$nulls":3},1,1,4]
["Математика",{"$nulls":3},0,0,{"$nulls":3},2,2,{"$nulls":3},1,1,{"$nulls":3},1,1,8]
["История",{"$nulls":3},1,1,{"$nulls":3},2,2,{"$nulls":3},0,0,{"$nulls":3},1,1,8]
["География",{"$nulls":3},1,1,{"$nulls":3},2,2,{"$nulls":3},1,1,{"$nulls":3},0,0,8]
["Биология",{"$nulls":3},0,0,{"$nulls":3},1,1,{"$nulls":3},0,0,{"$nulls":3},0,0,2]
["Музыка",{"$nulls":3},0,0,{"$nulls":3},0,0,{"$nulls":3},0,0,{"$nulls":3},0,0,0]
["ИЗО",{"$nulls":3},0,0,{"$nulls":3},1,1,{"$nulls":3},0,0,{"$nulls":3},0,0,2]
["Труд (технология)",{"$nulls":3},0,0,{"$nulls":3},0,0,{"$nulls":3},1,1,{"$nulls":3},0,0,2]
["Физкультура",{"$nulls":3},1,0,{"$nulls":3},1,1,{"$nulls":3},1,1,{"$nulls":3},0,0,4]
["Информатика. Программирование на Пайтон",{"$nulls":3},0,0,{"$nulls":3},0,0,{"$nulls":3},1,1,{"$nulls":3},0,0,2]
["Информатика. Информационные технологии",{"$nulls":3},0,0,{"$nulls":3},0,0,{"$nulls":3},0,0,{"$nulls":3},0,0,0]
["Математика. Шаги в геометрию",{"$nulls":3},0,0,{"$nulls":3},0,0,{"$nulls":3},0,0,{"$nulls":3},0,0,0]
["Физика. Физика в экспериментах",{"$nulls":3},0,0,{"$nulls":3},0,0,{"$nulls":3},0,0,{"$nulls":3},0,0,0]
[]
["Период проведения оценочной процедуры","Сентябрь",{"$nulls":4},"Октябрь",{"$nulls":4},"Ноябрь",{"$nulls":4},"Декабрь",{"$nulls":4},"Всего"]
["Вид оценочных процедур","Федеральные оценочные процедуры","Региональные оценочные процедуры","Муниципальные оценочные процедуры","Оценочные процедуры по инициативе ОО","Всего","Федеральные оценочные процедуры","Региональные оценочные процедуры","Муниципальные оценочные процедуры","Оценочные процедуры по инициативе ОО","Всего","Федеральные оценочные процедуры","Региональные оценочные процедуры","Муниципальные оценочные процедуры","Оценочные процедуры по инициативе ОО","Всего","Федеральные оценочные процедуры","Региональные оценочные процедуры","Муниципальные оценочные процедуры","Оценочные процедуры по инициативе ОО","Всего","В первом полугодии 2025-2026 уч. года"]
["5 е класс"]
[]
["Русский язык",{"$nulls":3},1,1,{"$nulls":3},1,1,{"$nulls":3},1,1,{"$nulls":3},0,0,6]
["Литература",{"$nulls":3},0,0,{"$nulls":3},1,1,{"$nulls":3},0,0,{"$nulls":3},1,1,4]
["Ин. язык",{"$nulls":3},0,0,{"$nulls":3},1,1,{"$nulls":3},0,0,{"$nulls":3},1,1,4]
["Математика",{"$nulls":3},0,0,{"$nulls":3},2,2,{"$nulls":3},1,1,{"$nulls":3},1,1,8]
["История",{"$nulls":3},1,1,{"$nulls":3},2,2,{"$nulls":3},0,0,{"$nulls":3},1,1,8]
["География",{"$nulls":3},1,1,{"$nulls":3},2,2,{"$nulls":3},1,1,{"$nulls":3},0,0,8]
["Биология",{"$nulls":3},0,0,{"$nulls":3},1,1,{"$nulls":3},0,0,{"$nulls":3},0,0,2]
["Музыка",{"$nulls":3},0,0,{"$nulls":3},0,0,{"$nulls":3},0,0,{"$nulls":3},0,0,0]
["ИЗО",{"$nulls":3},0,0,{"$nulls":3},1,1,{"$nulls":3},0,0,{"$nulls":3},0,0,2]
["Труд (технология)",{"$nulls":3},0,0,{"$nulls":3},0,0,{"$nulls":3},1,1,{"$nulls":3},0,0,2]
["Физкультура",{"$nulls":3},1,0,{"$nulls":3},1,1,{"$nulls":3},1,1,{"$nulls":3},0,0,4]
["Информатика. Программирование на Пайтон",{"$nulls":3},0,0,{"$nulls":3},0,0,{"$nulls":3},1,1,{"$nulls":3},0,0,2]
["Информатика. Информационные технологии",{"$nulls":3},0,0,{"$nulls":3},0,0,{"$nulls":3},0,0,{"$nulls":3},0,0,0]
["Математика. Шаги в геометрию",{"$nulls":3},0,0,{"$nulls":3},0,0,{"$nulls":3},0,0,{"$nulls":3},0,0,0]
["Физика. Физика в экспериментах",{"$nulls":3},0,0,{"$nulls":3},0,0,{"$nulls":3},0,0,{"$nulls":3},0,0,0]

{"sheet":"6-е классы","index":5,"n_rows":274,"n_cols":23,"rows_kept":274,"merged":[[0,1,0,5],[0,6,0,10],[0,11,0,15],[0,16,0,20],[2,0,3,21],[38,0,38,1],[38,2,38,6],[38,7,38,11],[38,12,38,16],[38,17,38,21],[39,0,39,1],[40,0,40,22],[41,0,41,1],[42,0,42,1],[43,0,43,1],[44,0,44,1],[45,0,45,1],[46,0,46,1],[47,0,47,1],[48,0,48,1],[49,0,49,1],[50,0,50,1],[51,0,51,1],[52,0,52,1],[53,0,53,1],[54,0,54,1],[55,0,55,1],[56,0,56,1],[57,0,57,1],[58,0,58,1],[59,0,59,1],[60,0,60,1],[61,0,61,1],[62,0,62,1],[63,0,63,1],[64,0,64,1],[65,0,65,1],[66,0,66,1],[67,1,67,5],[67,6,67,10],[67,11,67,15],[67,16,67,20],[108,1,108,5],[108,6,108,10],[108,11,108,15],[108,16,108,20],[110,0,111,21],[143,1,143,5],[143,6,143,10],[143,11,143,15],[143,16,143,20],[145,0,146,21],[178,1,178,5],[178,6,178,10],[178,11,178,15],[178,16,178,20],[180,0,181,21],[212,1,212,5],[212,6,212,10],[212,11,212,15],[212,16,212,20],[214,0,214,21],[245,1,245,5],[245,6,245,10],[245,11,245,15],[245,16,245,20],[247,0,247,21]]}
["Период проведения оценочной процедуры","Сентябрь",{"$nulls":4},"Октябрь",{"$nulls":4},"Ноябрь",{"$nulls":4},"Декабрь",{"$nulls":4},"Всего"]
["Вид оценочных процедур","Федеральные оценочные процедуры","Региональные оценочные процедуры","Муниципальные оценочные процедуры","Оценочные процедуры по инициативе ОО","Всего","Федеральные оценочные процедуры","Региональные оценочные процедуры","Муниципальные оценочные процедуры","Оценочные процедуры по инициативе ОО","Всего","Федеральные оценочные процедуры","Региональные оценочные процедуры","Муниципальные оценочные процедуры","Оценочные процедуры по инициативе ОО","Всего","Федеральные оценочные процедуры","Региональные оценочные процедуры","Муниципальные оценочные процедуры","Оценочные процедуры по инициативе ОО","Всего","В первом полугодии 2025-2026 уч. года"]
["6 а класс"]
[]
["Русский язык",{"$nulls":3},1,{"$nulls":4},1,{"$nulls":9},1]
["Литература",{"$nulls":3},0,{"$nulls":4},1]
["Иностранный язык (английский)",{"$nulls":3},0,{"$nulls":4},1,{"$nulls":9},1]
["Математика",{"$nulls":3},1,{"$nulls":4},1,{"$nulls":4},1,{"$nulls":4},0]
["Информатика",{"$nulls":3},0]
["История",{"$nulls":3},0,{"$nulls":4},1,{"$nulls":4},1,{"$nulls":4},0]
["География",{"$nulls":3},0]
["Биология",{"$nulls":3},0,{"$nulls":4},1,1,{"$nulls":3},1,1]
["Музыка",{"$nulls":3},0]
["Изобразительное искусство",{"$nulls":3},0]
["ИЗО. Архитектура ",{"$nulls":3},0]
["Труд (технология)",{"$nulls":3},0,0,{"$nulls":3},0,0,{"$nulls":3},1,1,null,null,0,0,1]
["Труд. Технологии обработки материалов и пищевых продуктов",{"$nulls":3},0,0,{"$nulls":3},0,0,{"$nulls":3},1,1,null,null,0,0,1]
["Труд. Производство и технологии",{"$nulls":3},0,0,{"$nulls":3},0,0,{"$nulls":3},1,1,null,null,0,0,1]
["Труд. Компьютерная графика. Черчение",{"$nulls":3},0,0,{"$nulls":3},0,0,{"$nulls":3},1,1,null,null,0,0,1]
["Труд. Автоматизированные системы. Интернет вещей",{"$nulls":3},0,0,{"$nulls":3},0,0,{"$nulls":3},1,1,null,null,0,0,1]
["Труд. Робототехника",{"$nulls":3},0,0,{"$nulls":3},0,0,{"$nulls":3},1,1,null,null,0,0,1]
["Труд. Конструирование и прототипирование",{"$nulls":3},0,0,{"$nulls":3},0,0,{"$nulls":3},1,1,null,null,0,0,1]
["Труд. Технопредпринимательство и экономика",{"$nulls":3},0,0,{"$nulls":3},0,0,{"$nulls":3},1,1,null,null,0,0,1]
["Физическая культура",{"$nulls":3},0,{"$nulls":4},1,{"$nulls":4},1]
["Физическая культура. Легкая атлетика",{"$nulls":3},0,{"$nulls":4},1]
["Физическая культура. Гимнастика",{"$nulls":3},0,{"$nulls":9},1]
["Физическая культура. Лыжная подготовка",{"$nulls":3},0]
["Физическая культура. Футбол",{"$nulls":3},0]
["Физическая культура. Баскетбол",{"$nulls":3},0]
["Физическая культура. Волейбол",{"$nulls":3},0]
["Физическая культура. Спорт. ГТО",{"$nulls":3},0]
["Математика. Начертательная геометрия",{"$nulls":3},0]
["Физика. Физика в экспериментах",{"$nulls":3},0]
["ИЗО. Живопись",{"$nulls":3},0]
["Технология. Черчение",{"$nulls":3},0,0,{"$nulls":3},0,0,{"$nulls":3},0,0,null,null,0,0,0]
[]
[]
[]
["Период проведения оценочной процедуры",null,"Сентябрь",{"$nulls":4},"Октябрь",{"$nulls":4},"Ноябрь",{"$nulls":4},"Декабрь",{"$nulls":4},"Всего"]
["Вид оценочных процедур",null,"Федеральные оценочные процедуры","Региональные оценочные процедуры","Муниципальные оценочные процедуры","Оценочные процедуры по инициативе ОО","Всего","Федеральные оценочные процедуры","Региональные оценочные процедуры","Муниципальные оценочные процедуры","Оценочные процедуры по инициативе ОО","Всего","Федеральные оценочные процедуры","Региональные оценочные процедуры","Муниципальные оценочные процедуры","Оценочные процедуры по инициативе ОО","Всего","Федеральные оценочные процедуры","Региональные оценочные процедуры","Муниципальные оценочные процедуры","Оценочные процедуры по инициативе ОО","В первом полугодии 2025-2026 уч. года","В первом триместре 2025-2026 уч. года"]
["6 б класс"]
["Русский язык",{"$nulls":4},1,{"$nulls":4},1,{"$nulls":4},1,{"$nulls":4},1]
["Литература",{"$nulls":4},1,{"$nulls":4},1,{"$nulls":4},1,{"$nulls":4},1]
["Иностранный язык (английский)",{"$nulls":9},1,{"$nulls":9},1]
["Математика"]
["История",{"$nulls":4},0,{"$nulls":4},1,{"$nulls":4},1,{"$nulls":4},0]
["География"]
["Биология",{"$nulls":14},1]
["Музыка"]
["ИЗО"]
["Труд. Технологии обработки материалов и пищевых продуктов",{"$nulls":4},0,0,{"$nulls":3},0,0,{"$nulls":3},1,1,null,null,0,0,1]
["Труд. Производство и технологии",{"$nulls":4},0,0,{"$nulls":3},0,0,{"$nulls":3},1,1,null,null,0,0,1]
["Труд. Компьютерная графика. Черчение",{"$nulls":4},0,0,{"$nulls":3},0,0,{"$nulls":3},1,1,null,null,0,0,1]
["Труд. Автоматизированные системы. Интернет вещей",{"$nulls":4},0,0,{"$nulls":3},0,0,{"$nulls":3},1,1,null,null,0,0,1]
["Труд. Робототехника",{"$nulls":4},0,0,{"$nulls":3},0,0,{"$nulls":3},1,1,null,null,0,0,1]
["Труд. Конструирование и прототипирование",{"$nulls":4},0,0,{"$nulls":3},0,0,{"$nulls":3},1,1,null,null,0,0,1]
["Труд. Технопредпринимательство и экономика",{"$nulls":4},0,0,{"$nulls":3},0,0,{"$nulls":3},1,1,null,null,0,0,1]
["Физическая культура. Легкая атлетика",{"$nulls":9},1]
["Физическая культура. Гимнастика",{"$nulls":14},1]
["Физическая культура. Лыжная подготовка"]
["Физическая культура. Футбол"]
["Физическая культура. Баскетбол"]
["Физическая культура. Волейбол"]
["Физическая культура. Спорт. ГТО"]
["Биология"]
["Физика"]
["Химия"]
["Период проведения оценочной процедуры","Сентябрь",{"$nulls":4},"Октябрь",{"$nulls":4},"Ноябрь",{"$nulls":4},"Декабрь",{"$nulls":4},"Всего"]
["Вид оценочных процедур","Федеральные оценочные процедуры","Региональные оценочные процедуры","Муниципальные оценочные процедуры","Оценочные процедуры по инициативе ОО","Всего","Федеральные оценочные процедуры","Региональные оценочные процедуры","Муниципальные оценочные процедуры","Оценочные процедуры по инициативе ОО","Всего","Федеральные оценочные процедуры","Региональные оценочные процедуры","Муниципальные оценочные процедуры","Оценочные процедуры по инициативе ОО","Всего","Федеральные оценочные процедуры","Региональные оценочные процедуры","Муниципальные оценочные процедуры","Оценочные процедуры по инициативе ОО","Всего","В первом полугодии 2025-2026 уч. года"]
["6 БАС класс"]
[]
["Русский язык",{"$nulls":3},1,{"$nulls":4},1,{"$nulls":4},1,{"$nulls":4},1]
["Литература",{"$nulls":3},1,{"$nulls":4},1,{"$nulls":4},1,{"$nulls":4},1]
["Иностранный язык (английский)",{"$nulls":8},1,{"$nulls":9},1]
["Математика"]
["История",{"$nulls":3},1,{"$nulls":4},1]
["География"]
["Физика. Физические измерения"]
["Физика. Акустика"]
["Физика. Космические измерения"]
["Физика. Механика"]
["Физика. Динамика"]
["Физика. Электричество и магнетизм"]
["Физика. Квантово-волновой дуализм"]
["Биология",{"$nulls":13},1]
["Музыка"]
["Изобразительное искусство"]
["Труд. Технологии обработки материалов и пищевых продуктов",{"$nulls":3},0,0,{"$nulls":3},0,0,{"$nulls":3},0,0,{"$nulls":3},0,0,0]
["Труд. Производство и технологии",{"$nulls":3},0,0,{"$nulls":3},0,0,{"$nulls":3},0,0,{"$nulls":3},0,0,0]
["Труд. Компьютерная графика. Черчение",{"$nulls":3},0,0,{"$nulls":3},0,0,{"$nulls":3},0,0,{"$nulls":3},0,0,0]
["Труд. Конструирование и прототипирование",{"$nulls":3},0,0,{"$nulls":3},0,0,{"$nulls":3},0,0,{"$nulls":3},0,0,0]
["Труд. Технопредпринимательство и экономика",{"$nulls":3},0,0,{"$nulls":3},0,0,{"$nulls":3},0,0,{"$nulls":3},0,0,0]
["Труд. Летающая робототехника",{"$nulls":3},0,0,{"$nulls":3},0,0,{"$nulls":3},0,0,{"$nulls":3},0,0,0]
["Труд. Беспилотные авиационные системы",{"$nulls":3},0,0,{"$nulls":3},0,0,{"$nulls":3},0,0,{"$nulls":3},0,0,0]
["Труд. Автоматизированные системы. Интернет вещей",{"$nulls":3},0,0,{"$nulls":3},0,0,{"$nulls":3},0,0,{"$nulls":3},0,0,0]
["Физическая культура. Легкая атлетика",{"$nulls":8},1]
["Физическая культура. Гимнастика",{"$nulls":13},1]
["Физическая культура. Лыжная подготовка"]
["Физическая культура. Футбол"]
["Физическая культура. Баскетбол"]
["Физическая культура. Волейбол"]
["Физическая культура. Спорт. ГТО"]
["Информатика. Программирование на Пайтон",{"$nulls":3},0,{"$nulls":4},0,{"$nulls":4},0,{"$nulls":4},1]
["Физика. Небесная механика"]
[]
[]
[]
[]
["Период проведения оценочной процедуры","Сентябрь",{"$nulls":4},"Октябрь",{"$nulls":4},"Ноябрь",{"$nulls":4},"Декабрь",{"$nulls":4},"Всего"]
["Вид оценочных процедур","Федеральные оценочные процедуры","Региональные оценочные процедуры","Муниципальные оценочные процедуры","Оценочные процедуры по инициативе ОО","Всего","Федеральные оценочные процедуры","Региональные оценочные процедуры","Муниципальные оценочные процедуры","Оценочные процедуры по инициативе ОО","Всего","Федеральные оценочные процедуры","Региональные оценочные процедуры","Муниципальные оценочные процедуры","Оценочные процедуры по инициативе ОО","Всего","Федеральные оценочные процедуры","Региональные оценочные процедуры","Муниципальные оценочные процедуры","Оценочные процедуры по инициативе ОО","Всего","В первом полугодии 2025-2026 уч. года"]
["6 ИМ класс"]
[]
["Русский язык",{"$nulls":3},1,{"$nulls":4},1,{"$nulls":9},2]
["Литература",{"$nulls":3},1,{"$nulls":4},1,{"$nulls":4},1,{"$nulls":4},1]
["Иностранный язык (английский)",{"$nulls":8},1,{"$nulls":9},1]
["Математика"]
["История",{"$nulls":3},0,{"$nulls":4},1,{"$nulls":4},1,{"$nulls":4},0]
["География"]
["Биология"]
["Музыка "]
["ИЗО"]
["Труд. Технологии обработки материалов и пищевых продуктов",{"$nulls":3},0,0,{"$nulls":3},0,0,{"$nulls":3},1,1,null,null,0,0,1]
["Труд. Производство и технологии",{"$nulls":3},0,0,{"$nulls":3},0,0,{"$nulls":3},1,1,null,null,0,0,1]
["Труд. Компьютерная графика. Черчение",{"$nulls":3},0,0,{"$nulls":3},0,0,{"$nulls":3},1,1,null,null,0,0,1]
["Труд. Автоматизированные системы. Интернет вещей",{"$nulls":3},0,0,{"$nulls":3},0,0,{"$nulls":3},1,1,null,null,0,0,1]
["Труд. Робототехника",{"$nulls":3},0,0,{"$nulls":3},0,0,{"$nulls":3},1,1,null,null,0,0,1]
["Труд. Конструирование и прототипирование",{"$nulls":3},0,0,{"$nulls":3},0,0,{"$nulls":3},1,1,null,null,0,0,1]
["Труд. Технопредпринимательство и экономика",{"$nulls":3},0,0,{"$nulls":3},0,0,{"$nulls":3},1,1,null,null,0,0,1]
["Физическая культура. Легкая атлетика",{"$nulls":8},1]
["Физическая культура. Гимнастика",{"$nulls":13},1]
["Физическая культура. Лыжная подготовка"]
["Физическая культура. Футбол"]
["Физическая культура. Баскетбол"]
["Физическая культура. Волейбол"]
["Физическая культура. Спорт. ГТО"]
["Математика. Элементы математической логики"]
["Математика. Основы математической обработки информации"]
["Информатика. Программирование на Пайтон",{"$nulls":3},0,{"$nulls":4},0,{"$nulls":4},0,{"$nulls":4},1]
["Информатика. Веб-программирование",{"$nulls":3},0,{"$nulls":4},0,{"$nulls":4},0,{"$nulls":4},0]
["Физика"]
[]
[]
[]
["Период проведения оценочной процедуры","Сентябрь",{"$nulls":4},"Октябрь",{"$nulls":4},"Ноябрь",{"$nulls":4},"Декабрь",{"$nulls":4},"Всего"]
["Вид оценочных процедур","Федеральные оценочные процедуры","Региональные оценочные процедуры","Муниципальные оценочные процедуры","Оценочные процедуры по инициативе ОО","Всего","Федеральные оценочные процедуры","Региональные оценочные процедуры","Муниципальные оценочные процедуры","Оценочные процедуры по инициативе ОО","Всего","Федеральные оценочные процедуры","Региональные оценочные процедуры","Муниципальные оценочные процедуры","Оценочные процедуры по инициативе ОО","Всего","Федеральные оценочные процедуры","Региональные оценочные процедуры","Муниципальные оценочные процедуры","Оценочные процедуры по инициативе ОО","Всего","В первом полугодии 2025-2026 уч. года"]
["6 М класс"]
[]
["Русский язык",{"$nulls":3},1,{"$nulls":4},1,{"$nulls":4},1,{"$nulls":4},1]
["Литература",{"$nulls":3},1,{"$nulls":4},1,{"$nulls":4},1,{"$nulls":4},1]
["Иностранный язык (английский)",{"$nulls":8},1,{"$nulls":9},1]
["Математика"]
["История"]
["География",{"$nulls":3},0,{"$nulls":4},1,{"$nulls":4},1,{"$nulls":4},0]
["Биология"]
["Музыка "]
["ИЗО"]
["Труд. Технологии обработки материалов и пищевых продуктов",{"$nulls":3},0,0,{"$nulls":3},0,0,{"$nulls":3},0,0,{"$nulls":3},0,0,0]
["Труд. Производство и технологии",{"$nulls":3},0,0,{"$nulls":3},0,0,{"$nulls":3},0,0,{"$nulls":3},0,0,0]
["Труд. Компьютерная графика. Черчение",{"$nulls":3},0,0,{"$nulls":3},0,0,{"$nulls":3},0,0,{"$nulls":3},0,0,0]
["Труд. Автоматизированные системы. Интернет вещей",{"$nulls":3},0,0,{"$nulls":3},0,0,{"$nulls":3},0,0,{"$nulls":3},0,0,0]
["Труд. Робототехника",{"$nulls":3},0,0,{"$nulls":3},0,0,{"$nulls":3},0,0,{"$nulls":3},0,0,0]
["Труд. Конструирование и прототипирование",{"$nulls":3},0,0,{"$nulls":3},0,0,{"$nulls":3},0,0,{"$nulls":3},0,0,0]
["Труд. Технопредпринимательство и экономика",{"$nulls":3},0,0,{"$nulls":3},0,0,{"$nulls":3},0,0,{"$nulls":3},0,0,0]
["Физическая культура. Легкая атлетика",{"$nulls":8},1]
["Физическая культура. Гимнастика",{"$nulls":13},1]
["Физическая культура. Лыжная подготовка"]
["Физическая культура. Футбол"]
["Физическая культура. Баскетбол"]
["Физическая культура. Волейбол"]
["Физическая культура. Спорт. ГТО"]
["Математика. Элементы математической логики"]
["Математика. Основы математической обработки информации"]
["Информатика. Программирование на Пайтон",{"$nulls":3},0,{"$nulls":4},0,{"$nulls":4},0,{"$nulls":4},0]
["Информатика. Веб-программирование",{"$nulls":3},0,{"$nulls":4},0,{"$nulls":4},0,{"$nulls":4},0]
["Физика"]
[]
[]
[]
["Период проведения оценочной процедуры","Сентябрь",{"$nulls":4},"Октябрь",{"$nulls":4},"Ноябрь",{"$nulls":4},"Декабрь",{"$nulls":4},"Всего"]
["Вид оценочных процедур","Федеральные оценочные процедуры","Региональные оценочные процедуры","Муниципальные оценочные процедуры","Оценочные процедуры по инициативе ОО","Всего","Федеральные оценочные процедуры","Региональные оценочные процедуры","Муниципальные оценочные процедуры","Оценочные процедуры по инициативе ОО","Всего","Федеральные оценочные процедуры","Региональные оценочные процедуры","Муниципальные оценочные процедуры","Оценочные процедуры по инициативе ОО","Всего","Федеральные оценочные процедуры","Региональные оценочные процедуры","Муниципальные оценочные процедуры","Оценочные процедуры по инициативе ОО","Всего","В первом полугодии 2025-2026 уч. года"]
["6 ИТ класс"]
[]
["Русский язык",{"$nulls":3},1,{"$nulls":4},2,{"$nulls":4},1]
["Литература",{"$nulls":3},1,{"$nulls":9},1]
["Иностранный язык (английский)",{"$nulls":8},1,{"$nulls":9},1]
["Математика",{"$nulls":3},1,{"$nulls":4},1,{"$nulls":4},1,{"$nulls":4},0]
["История",{"$nulls":3},0,{"$nulls":4},1,{"$nulls":4},1,{"$nulls":4},0]
["География"]
["Биология",{"$nulls":8},1]
["Музыка"]
["ИЗО"]
["Труд. Технологии обработки материалов и пищевых продуктов",{"$nulls":3},0,0,{"$nulls":3},0,0,{"$nulls":3},0,0,{"$nulls":3},0,0,0]
["Труд. Производство и технологии",{"$nulls":3},0,0,{"$nulls":3},0,0,{"$nulls":3},0,0,{"$nulls":3},0,0,0]
["Труд. Компьютерная графика. Черчение",{"$nulls":3},0,0,{"$nulls":3},0,0,{"$nulls":3},0,0,{"$nulls":3},0,0,0]
["Труд. Автоматизированные системы. Интернет вещей",{"$nulls":3},0,0,{"$nulls":3},0,0,{"$nulls":3},0,0,{"$nulls":3},0,0,0]
["Труд. Робототехника",{"$nulls":3},0,0,{"$nulls":3},0,0,{"$nulls":3},0,0,{"$nulls":3},0,0,0]
["Труд. Конструирование и прототипирование",{"$nulls":3},0,0,{"$nulls":3},0,0,{"$nulls":3},0,0,{"$nulls":3},0,0,0]
["Труд. Технопредпринимательство и экономика",{"$nulls":3},0,0,{"$nulls":3},0,0,{"$nulls":3},0,0,{"$nulls":3},0,0,0]
["Физическая культура. Легкая атлетика",{"$nulls":8},1]
["Физическая культура. Гимнастика",{"$nulls":13},1]
["Физическая культура. Лыжная подготовка"]
["Физическая культура. Футбол"]
["Физическая культура. Баскетбол"]
["Физическая культура. Волейбол"]
["Физическая культура. Спорт. ГТО"]
["Математика. Основы математической обработки информации "]
["Информатика. Веб-программирование",{"$nulls":3},0,{"$nulls":4},0,{"$nulls":4},1,{"$nulls":4},0]
["Физика"]
["Труд. Черчение и инженерная графика",{"$nulls":3},0,0,{"$nulls":3},0,0,{"$nulls":3},0,0,{"$nulls":3},0,0,0]
[]
[]
[]
["Период проведения оценочной процедуры","Сентябрь",{"$nulls":4},"Октябрь",{"$nulls":4},"Ноябрь",{"$nulls":4},"Декабрь",{"$nulls":4},"Всего"]
["Вид оценочных процедур","Федеральные оценочные процедуры","Региональные оценочные процедуры","Муниципальные оценочные процедуры","Оценочные процедуры по инициативе ОО","Всего","Федеральные оценочные процедуры","Региональные оценочные процедуры","Муниципальные оценочные процедуры","Оценочные процедуры по инициативе ОО","Всего","Федеральные оценочные процедуры","Региональные оценочные процедуры","Муниципальные оценочные процедуры","Оценочные процедуры по инициативе ОО","Всего","Федеральные оценочные процедуры","Региональные оценочные процедуры","Муниципальные оценочные процедуры","Оценочные процедуры по инициативе ОО","Всего","В первом полугодии 2025-2026 уч. года"]
["6 ОМ класс"]
["Русский язык",{"$nulls":3},1,{"$nulls":4},1,{"$nulls":4},1,{"$nulls":4},1]
["Литература",{"$nulls":3},1,{"$nulls":9},1,{"$nulls":4},1]
["Иностранный язык (английский)",{"$nulls":8},1,{"$nulls":9},1]
["Математика",{"$nulls":3},1,{"$nulls":4},1,{"$nulls":4},1,{"$nulls":4},0]
["История",{"$nulls":3},0,{"$nulls":4},1,{"$nulls":4},1,{"$nulls":4},0]
["География"]
["Биология",{"$nulls":8},1,1]
["Музыка"]
["ИЗО"]
["Труд. Технологии обработки материалов и пищевых продуктов",{"$nulls":3},0,0,{"$nulls":3},0,0,{"$nulls":3},0,0,{"$nulls":3},0,0,0]
["Труд. Производство и технологии",{"$nulls":3},0,0,{"$nulls":3},0,0,{"$nulls":3},0,0,{"$nulls":3},0,0,0]
["Труд. Компьютерная графика. Черчение",{"$nulls":3},0,0,{"$nulls":3},0,0,{"$nulls":3},0,0,{"$nulls":3},0,0,0]
["Труд. Автоматизированные системы. Интернет вещей",{"$nulls":3},0,0,{"$nulls":3},0,0,{"$nulls":3},0,0,{"$nulls":3},0,0,0]
["Труд. Робототехника",{"$nulls":3},0,0,{"$nulls":3},0,0,{"$nulls":3},0,0,{"$nulls":3},0,0,0]
["Труд. Конструирование и прототипирование",{"$nulls":3},0,0,{"$nulls":3},0,0,{"$nulls":3},0,0,{"$nulls":3},0,0,0]
["Труд. Технопредпринимательство и экономика",{"$nulls":3},0,0,{"$nulls":3},0,0,{"$nulls":3},0,0,{"$nulls":3},0,0,0]
["Физическая культура. Легкая атлетика",{"$nulls":8},1]
["Физическая культура. Гимнастика",{"$nulls":13},1]
["Физическая культура. Лыжная подготовка"]
["Физическая культура. Футбол"]
["Физическая культура. Баскетбол"]
["Физическая культура. Волейбол"]
["Физическая культура. Спорт. ГТО"]
["Математика. Наглядная  геометрия"]
["Математика. Нестандартные методы решения математических задач"]
["Информатика. Программирование на Пайтон",{"$nulls":3},0,{"$nulls":4},0,{"$nulls":4},1,{"$nulls":4},0]
["Физика. Физика в экспериментах"]
[]
[]
[]
["Период проведения оценочной процедуры","Сентябрь",{"$nulls":4},"Октябрь",{"$nulls":4},"Ноябрь",{"$nulls":4},"Декабрь",{"$nulls":4},"Всего"]
["Вид оценочных процедур","Федеральные оценочные процедуры","Региональные оценочные процедуры","Муниципальные оценочные процедуры","Оценочные процедуры по инициативе ОО","Всего","Федеральные оценочные процедуры","Региональные оценочные процедуры","Муниципальные оценочные процедуры","Оценочные процедуры по инициативе ОО","Всего","Федеральные оценочные процедуры","Региональные оценочные процедуры","Муниципальные оценочные процедуры","Оценочные процедуры по инициативе ОО","Всего","Федеральные оценочные процедуры","Региональные оценочные процедуры","Муниципальные оценочные процедуры","Оценочные процедуры по инициативе ОО","Всего","В первом полугодии 2025-2026 уч. года"]
["6 Э класс"]
["Русский язык",{"$nulls":3},1,{"$nulls":4},1,{"$nulls":4},1,{"$nulls":4},1]
["Литература",{"$nulls":3},1,{"$nulls":4},1,{"$nulls":4},1,{"$nulls":4},1]
["Иностранный язык (английский)",{"$nulls":8},1,{"$nulls":9},1]
["Второй иностранный язык (китайский)"]
["Математика"]
["История",{"$nulls":3},0,{"$nulls":4},1,{"$nulls":4},1,{"$nulls":4},0]
["География"]
["Биология"]
["Музыка"]
["ИЗО"]
["Труд. Технологии обработки материалов и пищевых продуктов",{"$nulls":3},0,0,{"$nulls":3},0,0,{"$nulls":3},0,0,{"$nulls":3},0,0,0]
["Труд. Производство и технологии",{"$nulls":3},0,0,{"$nulls":3},0,0,{"$nulls":3},0,0,{"$nulls":3},0,0,0]
["Труд. Компьютерная графика. Черчение",{"$nulls":3},0,0,{"$nulls":3},0,0,{"$nulls":3},0,0,{"$nulls":3},0,0,0]
["Труд. Автоматизированные системы. Интернет вещей",{"$nulls":3},0,0,{"$nulls":3},0,0,{"$nulls":3},0,0,{"$nulls":3},0,0,0]
["Труд. Робототехника",{"$nulls":3},0,0,{"$nulls":3},0,0,{"$nulls":3},0,0,{"$nulls":3},0,0,0]
["Труд. Конструирование и прототипирование",{"$nulls":3},0,0,{"$nulls":3},0,0,{"$nulls":3},0,0,{"$nulls":3},0,0,0]
["Труд. Технопредпринимательство и экономика",{"$nulls":3},0,0,{"$nulls":3},0,0,{"$nulls":3},0,0,{"$nulls":3},0,0,0]
["Физическая культура. Легкая атлетика",{"$nulls":8},1]
["Физическая культура. Гимнастика",{"$nulls":13},1]
["Физическая культура. Лыжная подготовка"]
["Физическая культура. Футбол"]
["Физическая культура. Баскетбол"]
["Физическая культура. Волейбол"]
["Физическая культура. Спорт. ГТО"]
["Обществознание. Экономика"]
["Иностранный язык. Китайская каллиграфия",{"$nulls":8},1,{"$nulls":9},1]

{"sheet":"7-е классы","index":6,"n_rows":277,"n_cols":22,"rows_kept":277,"merged":[[0,1,0,5],[0,6,0,10],[0,11,0,15],[0,16,0,20],[2,0,2,21],[34,1,34,5],[34,6,34,10],[34,11,34,15],[34,16,34,20],[36,0,36,21],[68,1,68,5],[68,6,68,10],[68,11,68,15],[68,16,68,20],[70,0,70,21],[108,1,108,5],[108,6,108,10],[108,11,108,15],[108,16,108,20],[110,0,110,21],[139,1,139,5],[139,6,139,10],[139,11,139,15],[139,16,139,20],[141,0,141,21],[170,1,170,5],[170,6,170,10],[170,11,170,15],[170,16,170,20],[172,0,172,21],[212,1,212,5],[212,6,212,10],[212,11,212,15],[212,16,212,20],[214,0,214,21],[247,1,247,5],[247,6,247,10],[247,11,247,15],[247,16,247,20],[249,0,249,21]]}
["Период проведения оценочной процедуры","Сентябрь",{"$nulls":4},"Октябрь",{"$nulls":4},"Ноябрь",{"$nulls":4},"Декабрь",{"$nulls":4},"Всего"]
["Вид оценочных процедур","Федеральные оценочные процедуры","Региональные оценочные процедуры","Муниципальные оценочные процедуры","Оценочные процедуры по инициативе ОО","Всего","Федеральные оценочные процедуры","Региональные оценочные процедуры","Муниципальные оценочные процедуры","Оценочные процедуры по инициативе ОО","Всего","Федеральные оценочные процедуры","Региональные оценочные процедуры","Муниципальные оценочные процедуры","Оценочные процедуры по инициативе ОО","Всего","Федеральные оценочные процедуры","Региональные оценочные процедуры","Муниципальные оценочные процедуры","Оценочные процедуры по инициативе ОО","Всего","В первом полугодии 2025-2026 уч. года"]
["7 А класс"]
["Русский язык",{"$nulls":13},1,{"$nulls":4},1]
["Литература",{"$nulls":8},1]
["Иностранный язык (английский)",{"$nulls":8},1,{"$nulls":9},1]
["Алгебра",{"$nulls":3},1,{"$nulls":4},0,{"$nulls":4},1,{"$nulls":4},1]
["Геометрия",{"$nulls":3},0,{"$nulls":4},1,{"$nulls":4},0,{"$nulls":4},1]
["Вероятность и статистика",{"$nulls":3},0,{"$nulls":4},0,{"$nulls":4},0,{"$nulls":4},0]
["Информатика",{"$nulls":3},0,{"$nulls":4},0,{"$nulls":4},1,{"$nulls":4},0]
["История",{"$nulls":3},0,{"$nulls":4},1,{"$nulls":4},0,{"$nulls":4},1]
["География"]
["Физика"]
["Биология",{"$nulls":13},1]
["ИЗО. Дизайн"]
["ИЗО. Архитектура "]
["Технология. Материаловедение и технология обработки материалов",{"$nulls":3},0,0,{"$nulls":3},0,0,{"$nulls":3},0,0,{"$nulls":3},0,0,0]
["Технология. Конструирование и прототипирование",{"$nulls":3},0,0,{"$nulls":3},0,0,{"$nulls":3},0,0,{"$nulls":3},0,0,0]
["Технология. Технопредпринимательство и экономика",{"$nulls":3},0,0,{"$nulls":3},0,0,{"$nulls":3},0,0,{"$nulls":3},0,0,0]
["Технология. Интернет вещей",{"$nulls":3},0,0,{"$nulls":3},0,0,{"$nulls":3},0,0,{"$nulls":3},0,0,0]
["Технология. Программирование и ИТ",{"$nulls":3},0,0,{"$nulls":3},0,0,{"$nulls":3},0,0,{"$nulls":3},0,0,0]
["Физическая культура. Легкая атлетика"]
["Физическая культура. Гимнастика"]
["Физическая культура. Лыжная подготовка"]
["Физическая культура. Футбол"]
["Физическая культура. Баскетбол"]
["Физическая культура. Волейбол"]
["Физическая культура. Спорт. ГТО"]
["ИЗО. Живопись"]
["ИЗО. Академический рисунок"]
["Технология. Черчение"]
[]
[]
[]
["Период проведения оценочной процедуры","Сентябрь",{"$nulls":4},"Октябрь",{"$nulls":4},"Ноябрь",{"$nulls":4},"Декабрь",{"$nulls":4},"Всего"]
["Вид оценочных процедур","Федеральные оценочные процедуры","Региональные оценочные процедуры","Муниципальные оценочные процедуры","Оценочные процедуры по инициативе ОО","Всего","Федеральные оценочные процедуры","Региональные оценочные процедуры","Муниципальные оценочные процедуры","Оценочные процедуры по инициативе ОО","Всего","Федеральные оценочные процедуры","Региональные оценочные процедуры","Муниципальные оценочные процедуры","Оценочные процедуры по инициативе ОО","Всего","Федеральные оценочные процедуры","Региональные оценочные процедуры","Муниципальные оценочные процедуры","Оценочные процедуры по инициативе ОО","Всего","В первом полугодии 2025-2026 уч. года"]
["7 ИТ класс"]
["Русский язык",{"$nulls":8},1,{"$nulls":4},1,{"$nulls":4},1]
["Литература",{"$nulls":8},1,{"$nulls":9},1]
["Иностранный язык (английский)",{"$nulls":8},1,{"$nulls":9},1]
["Алгебра"]
["Геометрия"]
["Вероятность и статистика"]
["Информатика",{"$nulls":3},0,{"$nulls":4},0,{"$nulls":4},1,{"$nulls":4},0]
["История",{"$nulls":3},0,{"$nulls":4},1,{"$nulls":4},0,{"$nulls":4},1]
["География"]
["Физика"]
["Биология"]
["Технология. Материаловедение и технология обработки материалов",{"$nulls":3},0,0,{"$nulls":3},0,0,{"$nulls":3},0,0,{"$nulls":3},0,0,0]
["Технология. Конструирование и прототипирование",{"$nulls":3},0,0,{"$nulls":3},0,0,{"$nulls":3},0,0,{"$nulls":3},0,0,0]
["Технология. Технопредпринимательство и экономика",{"$nulls":3},0,0,{"$nulls":3},0,0,{"$nulls":3},0,0,{"$nulls":3},0,0,0]
["Технология. Интернет вещей",{"$nulls":3},0,0,{"$nulls":3},0,0,{"$nulls":3},0,0,{"$nulls":3},0,0,0]
["Технология. Программирование и ИТ",{"$nulls":3},0,0,{"$nulls":3},0,0,{"$nulls":3},0,0,{"$nulls":3},0,0,0]
["Физическая культура. Легкая атлетика"]
["Физическая культура. Гимнастика"]
["Физическая культура. Лыжная подготовка"]
["Физическая культура. Футбол"]
["Физическая культура. Баскетбол"]
["Физическая культура. Волейбол"]
["Физическая культура. Спорт. ГТО"]
["Математика. Практикум по решению математических задач"]
["Технология. Программирование и ИТ",{"$nulls":3},0,0,{"$nulls":3},0,0,{"$nulls":3},0,0,{"$nulls":3},0,0,0]
["Технология. Интернет вещей",{"$nulls":3},0,0,{"$nulls":3},0,0,{"$nulls":3},0,0,{"$nulls":3},0,0,0]
["Технология. Робототехника",{"$nulls":3},0,0,{"$nulls":3},0,0,{"$nulls":3},0,0,{"$nulls":3},0,0,0]
["Технология. Черчение",{"$nulls":3},0,0,{"$nulls":3},1,1,{"$nulls":3},1,1,{"$nulls":3},0,0,2]
[]
[]
[]
["Период проведения оценочной процедуры","Сентябрь",{"$nulls":4},"Октябрь",{"$nulls":4},"Ноябрь",{"$nulls":4},"Декабрь",{"$nulls":4},"Всего"]
["Вид оценочных процедур","Федеральные оценочные процедуры","Региональные оценочные процедуры","Муниципальные оценочные процедуры","Оценочные процедуры по инициативе ОО","Всего","Федеральные оценочные процедуры","Региональные оценочные процедуры","Муниципальные оценочные процедуры","Оценочные процедуры по инициативе ОО","Всего","Федеральные оценочные процедуры","Региональные оценочные процедуры","Муниципальные оценочные процедуры","Оценочные процедуры по инициативе ОО","Всего","Федеральные оценочные процедуры","Региональные оценочные процедуры","Муниципальные оценочные процедуры","Оценочные процедуры по инициативе ОО","Всего","В первом полугодии 2025-2026 уч. года"]
["7 ЕН класс"]
["Русский язык",{"$nulls":13},1,{"$nulls":4},1]
["Литература",{"$nulls":8},1,{"$nulls":9},1]
["Иностранный язык (английский)",{"$nulls":8},1,{"$nulls":9},1]
["Алгебра. Алгебра многочленов",{"$nulls":3},2,{"$nulls":4},1,{"$nulls":4},1,{"$nulls":4},1]
["Алгебра. Теория элементарных функций",{"$nulls":3},0,{"$nulls":4},0,{"$nulls":4},0,{"$nulls":4},0]
["Алгебра. Уравнения, неравенства и их конструкции",{"$nulls":3},0,{"$nulls":4},0,{"$nulls":4},0,{"$nulls":4},0]
["Алгебра. Рациональные выражения",{"$nulls":3},0,{"$nulls":4},0,{"$nulls":4},0,{"$nulls":4},0]
["Геометрия",{"$nulls":3},0,{"$nulls":4},1,{"$nulls":4},0,{"$nulls":4},2]
["Вероятность и статистика",{"$nulls":3},0,{"$nulls":4},0,{"$nulls":4},0,{"$nulls":4},0]
["Информатика",{"$nulls":3},0,{"$nulls":4},0,{"$nulls":4},1,{"$nulls":4},0]
["История ",{"$nulls":3},0,{"$nulls":4},1,{"$nulls":4},0,{"$nulls":4},1]
["География"]
["Физика. Строение вещества"]
["Физика. Механика"]
["Физика. Динамика"]
["Физика. Давление"]
["Физика. Законы сохранения"]
["Биология"]
["Технология. Материаловедение и технология обработки материалов",{"$nulls":3},0,0,{"$nulls":3},0,0,{"$nulls":3},0,0,{"$nulls":3},0,0,0]
["Технология. Конструирование и прототипирование",{"$nulls":3},0,0,{"$nulls":3},0,0,{"$nulls":3},0,0,{"$nulls":3},0,0,0]
["Технология. Технопредпринимательство и экономика",{"$nulls":3},0,0,{"$nulls":3},0,0,{"$nulls":3},0,0,{"$nulls":3},0,0,0]
["Технология. Интернет вещей",{"$nulls":3},0,0,{"$nulls":3},0,0,{"$nulls":3},0,0,{"$nulls":3},0,0,0]
["Технология. Программирование и ИТ",{"$nulls":3},0,0,{"$nulls":3},0,0,{"$nulls":3},0,0,{"$nulls":3},0,0,0]
["Физическая культура. Легкая атлетика",{"$nulls":8},1]
["Физическая культура. Гимнастика",{"$nulls":13},1]
["Физическая культура. Лыжная подготовка"]
["Физическая культура. Футбол"]
["Физическая культура. Баскетбол"]
["Физическая культура. Волейбол"]
["Физическая культура. Спорт. ГТО"]
["Химия. Введение в химию"]
["Химия. Основы физической химии"]
["Физика. Лабораторный практикум по физике"]
["Физика. Электронные приборы и современные средства измерения"]
[]
[]
[]
["Период проведения оценочной процедуры","Сентябрь",{"$nulls":4},"Октябрь",{"$nulls":4},"Ноябрь",{"$nulls":4},"Декабрь",{"$nulls":4},"Всего"]
["Вид оценочных процедур","Федеральные оценочные процедуры","Региональные оценочные процедуры","Муниципальные оценочные процедуры","Оценочные процедуры по инициативе ОО","Всего","Федеральные оценочные процедуры","Региональные оценочные процедуры","Муниципальные оценочные процедуры","Оценочные процедуры по инициативе ОО","Всего","Федеральные оценочные процедуры","Региональные оценочные процедуры","Муниципальные оценочные процедуры","Оценочные процедуры по инициативе ОО","Всего","Федеральные оценочные процедуры","Региональные оценочные процедуры","Муниципальные оценочные процедуры","Оценочные процедуры по инициативе ОО","Всего","В первом полугодии 2025-2026 уч. года"]
["7 Б класс"]
["Русский язык",{"$nulls":13},1,{"$nulls":4},1]
["Литература",{"$nulls":8},1,{"$nulls":9},1]
["Иностранный язык (английский)",{"$nulls":8},1,{"$nulls":9},1]
["Алгебра"]
["Геометрия"]
["Вероятность и статистика"]
["Информатика",{"$nulls":3},0,{"$nulls":4},0,{"$nulls":4},1,{"$nulls":4},0]
["История",{"$nulls":3},0,{"$nulls":4},1,{"$nulls":4},0,{"$nulls":4},1]
["География"]
["Физика"]
["Биология"]
["Технология. Материаловедение и технология обработки материалов",{"$nulls":3},0,0,{"$nulls":3},0,0,{"$nulls":3},0,0,{"$nulls":3},0,0,0]
["Технология. Конструирование и прототипирование",{"$nulls":3},0,0,{"$nulls":3},0,0,{"$nulls":3},0,0,{"$nulls":3},0,0,0]
["Технология. Технопредпринимательство и экономика",{"$nulls":3},0,0,{"$nulls":3},0,0,{"$nulls":3},0,0,{"$nulls":3},0,0,0]
["Технология. Интернет вещей",{"$nulls":3},0,0,{"$nulls":3},0,0,{"$nulls":3},0,0,{"$nulls":3},0,0,0]
["Технология. Программирование и ИТ",{"$nulls":3},0,0,{"$nulls":3},0,0,{"$nulls":3},0,0,{"$nulls":3},0,0,0]
["Физическая культура. Легкая атлетика",{"$nulls":8},1]
["Физическая культура. Гимнастика",{"$nulls":13},1]
["Физическая культура. Лыжная подготовка"]
["Физическая культура. Футбол"]
["Физическая культура. Баскетбол"]
["Физическая культура. Волейбол"]
["Физическая культура. Спорт. ГТО"]
["Биология. Биотехнология"]
["Биология. Современные медицинские технологии"]
[]
[]
[]
["Период проведения оценочной процедуры","Сентябрь",{"$nulls":4},"Октябрь",{"$nulls":4},"Ноябрь",{"$nulls":4},"Декабрь",{"$nulls":4},"Всего"]
["Вид оценочных процедур","Федеральные оценочные процедуры","Региональные оценочные процедуры","Муниципальные оценочные процедуры","Оценочные процедуры по инициативе ОО","Всего","Федеральные оценочные процедуры","Региональные оценочные процедуры","Муниципальные оценочные процедуры","Оценочные процедуры по инициативе ОО","Всего","Федеральные оценочные процедуры","Региональные оценочные процедуры","Муниципальные оценочные процедуры","Оценочные процедуры по инициативе ОО","Всего","Федеральные оценочные процедуры","Региональные оценочные процедуры","Муниципальные оценочные процедуры","Оценочные процедуры по инициативе ОО","Всего","В первом полугодии 2025-2026 уч. года"]
["7 Е класс"]
["Русский язык",{"$nulls":13},1,{"$nulls":4},1]
["Литература",{"$nulls":8},1]
["Иностранный язык (английский)",{"$nulls":8},1,{"$nulls":9},1]
["Алгебра",{"$nulls":3},1,{"$nulls":4},0,{"$nulls":4},1,{"$nulls":4},1]
["Геометрия",{"$nulls":3},0,{"$nulls":4},1,{"$nulls":4},0,{"$nulls":4},1]
["Вероятность и статистика",{"$nulls":3},0,{"$nulls":4},0,{"$nulls":4},0,{"$nulls":4},0]
["Информатика",{"$nulls":3},0,{"$nulls":4},1,{"$nulls":4},1,{"$nulls":4},0]
["История",{"$nulls":3},0,{"$nulls":4},0,{"$nulls":4},1,{"$nulls":4},0]
["География"]
["Физика"]
["Биология",{"$nulls":8},1,{"$nulls":4},1]
["Технология. Материаловедение и технология обработки материалов",{"$nulls":3},0,0,{"$nulls":3},0,0,{"$nulls":3},0,0,{"$nulls":3},0,0,0]
["Технология. Конструирование и прототипирование",{"$nulls":3},0,0,{"$nulls":3},0,0,{"$nulls":3},0,0,{"$nulls":3},0,0,0]
["Технология. Технопредпринимательство и экономика",{"$nulls":3},0,0,{"$nulls":3},0,0,{"$nulls":3},0,0,{"$nulls":3},0,0,0]
["Технология. Интернет вещей",{"$nulls":3},0,0,{"$nulls":3},0,0,{"$nulls":3},0,0,{"$nulls":3},0,0,0]
["Технология. Программирование и ИТ"]
["Физическая культура. Легкая атлетика",{"$nulls":8},1]
["Физическая культура. Гимнастика",{"$nulls":13},1]
["Физическая культура. Лыжная подготовка"]
["Физическая культура. Футбол"]
["Физическая культура. Баскетбол"]
["Физическая культура. Волейбол"]
["Физическая культура. Спорт. ГТО"]
["Биология. Биотехнология",{"$nulls":18},1]
["Биология. Современные медицинские технологии",{"$nulls":18},1]
[]
[]
[]
["Период проведения оценочной процедуры","Сентябрь",{"$nulls":4},"Октябрь",{"$nulls":4},"Ноябрь",{"$nulls":4},"Декабрь",{"$nulls":4},"Всего"]
["Вид оценочных процедур","Федеральные оценочные процедуры","Региональные оценочные процедуры","Муниципальные оценочные процедуры","Оценочные процедуры по инициативе ОО","Всего","Федеральные оценочные процедуры","Региональные оценочные процедуры","Муниципальные оценочные процедуры","Оценочные процедуры по инициативе ОО","Всего","Федеральные оценочные процедуры","Региональные оценочные процедуры","Муниципальные оценочные процедуры","Оценочные процедуры по инициативе ОО","Всего","Федеральные оценочные процедуры","Региональные оценочные процедуры","Муниципальные оценочные процедуры","Оценочные процедуры по инициативе ОО","Всего","В первом полугодии 2025-2026 уч. года"]
["7 ПИ класс"]
["Русский язык",{"$nulls":8},1,{"$nulls":4},1]
["Литература",{"$nulls":8},1,{"$nulls":9},1]
["Иностранный язык (английский)",{"$nulls":8},1,{"$nulls":9},1]
["Алгебра. Алгебра многочленов",{"$nulls":3},1,{"$nulls":4},1,{"$nulls":4},1,{"$nulls":4},1]
["Алгебра. Теория элементарных функций",{"$nulls":3},0,{"$nulls":4},0,{"$nulls":4},0,{"$nulls":4},0]
["Алгебра. Уравнения, неравенства и их конструкции",{"$nulls":3},0,{"$nulls":4},0,{"$nulls":4},0,{"$nulls":4},0]
["Алгебра. Рациональные выражения",{"$nulls":3},0,{"$nulls":4},0,{"$nulls":4},0,{"$nulls":4},0]
["Геометрия",{"$nulls":3},0,{"$nulls":4},1,{"$nulls":4},0,{"$nulls":4},0]
["Вероятность и статистика",{"$nulls":3},0,{"$nulls":4},0,{"$nulls":4},0,{"$nulls":4},0]
["История ",{"$nulls":3},0,{"$nulls":4},1,{"$nulls":4},0,{"$nulls":4},1]
["География"]
["Физика"]
["Биология",{"$nulls":8},1]
["Технология. Материаловедение и технология обработки материалов",{"$nulls":3},0,0,{"$nulls":3},0,0,{"$nulls":3},0,0,{"$nulls":3},0,0,0]
["Технология. Конструирование и прототипирование",{"$nulls":3},0,0,{"$nulls":3},0,0,{"$nulls":3},0,0,{"$nulls":3},0,0,0]
["Технология. Технопредпринимательство и экономика",{"$nulls":3},0,0,{"$nulls":3},0,0,{"$nulls":3},0,0,{"$nulls":3},0,0,0]
["Технология. Интернет вещей",{"$nulls":3},0,0,{"$nulls":3},0,0,{"$nulls":3},0,0,{"$nulls":3},0,0,0]
["Технология. Программирование и ИТ",{"$nulls":3},0,0,{"$nulls":3},0,0,{"$nulls":3},0,0,{"$nulls":3},0,0,0]
["Физическая культура. Легкая атлетика",{"$nulls":8},1]
["Физическая культура. Гимнастика",{"$nulls":13},1]
["Физическая культура. Лыжная подготовка"]
["Физическая культура. Футбол"]
["Физическая культура. Баскетбол"]
["Физическая культура. Волейбол"]
["Физическая культура. Спорт. ГТО"]
["Информатика. Математические объекты информатики",{"$nulls":3},0,{"$nulls":4},0,{"$nulls":4},1,{"$nulls":4},0]
["Информатика. Основы алгоритмизации и программирования",{"$nulls":3},0,{"$nulls":4},0,{"$nulls":4},0,{"$nulls":4},0]
["Информатика. Программирование на Пайтон",{"$nulls":3},0,{"$nulls":4},1,{"$nulls":4},0,{"$nulls":4},1]
["Информатика. Проектный практикум по программированию",{"$nulls":3},0,{"$nulls":4},0,{"$nulls":4},0,{"$nulls":4},0]
["Информатика. Веб-программирование",{"$nulls":3},0,{"$nulls":4},0,{"$nulls":4},0,{"$nulls":4},0]
["Информатика. Цифровая гигиена и работа с БигДата",{"$nulls":3},0,{"$nulls":4},0,{"$nulls":4},0,{"$nulls":4},0]
["Информатика. Сетевое и системное администрирование",{"$nulls":3},0,{"$nulls":4},0,{"$nulls":4},0,{"$nulls":4},0]
["Информатика. Программирование на Си",{"$nulls":3},0,{"$nulls":4},0,{"$nulls":4},0,{"$nulls":4},0]
["Информатика. Трехмерное моделирование",{"$nulls":3},0,{"$nulls":4},0,{"$nulls":4},1,{"$nulls":4},0]
["Информатика. Разработка приложений на Юнити",{"$nulls":3},0,{"$nulls":4},0,{"$nulls":4},0,{"$nulls":4},0]
["Информатика. Варвин",{"$nulls":3},0,{"$nulls":4},0,{"$nulls":4},1,{"$nulls":4},0]
[]
[]
[]
["Период проведения оценочной процедуры","Сентябрь",{"$nulls":4},"Октябрь",{"$nulls":4},"Ноябрь",{"$nulls":4},"Декабрь",{"$nulls":4},"Всего"]
["Вид оценочных процедур","Федеральные оценочные процедуры","Региональные оценочные процедуры","Муниципальные оценочные процедуры","Оценочные процедуры по инициативе ОО","Всего","Федеральные оценочные процедуры","Региональные оценочные процедуры","Муниципальные оценочные процедуры","Оценочные процедуры по инициативе ОО","Всего","Федеральные оценочные процедуры","Региональные оценочные процедуры","Муниципальные оценочные процедуры","Оценочные процедуры по инициативе ОО","Всего","Федеральные оценочные процедуры","Региональные оценочные процедуры","Муниципальные оценочные процедуры","Оценочные процедуры по инициативе ОО","Всего","В первом полугодии 2025-2026 уч. года"]
["7 ИМ класс"]
["Русский язык",{"$nulls":13},1,{"$nulls":4},1]
["Литература",{"$nulls":8},1]
["Иностранный язык (английский)",{"$nulls":8},1,{"$nulls":9},1]
["Алгебра. Алгебра многочленов",{"$nulls":3},1,{"$nulls":4},1,{"$nulls":4},1,{"$nulls":4},1]
["Алгебра. Теория элементарных функций",{"$nulls":3},0,{"$nulls":4},0,{"$nulls":4},0,{"$nulls":4},0]
["Алгебра. Уравнения, неравенства и их конструкции",{"$nulls":3},0,{"$nulls":4},0,{"$nulls":4},0,{"$nulls":4},0]
["Алгебра. Рациональные выражения",{"$nulls":3},0,{"$nulls":4},0,{"$nulls":4},0,{"$nulls":4},0]
["Геометрия",{"$nulls":3},0,{"$nulls":4},1,{"$nulls":4},0,{"$nulls":4},0]
["Вероятность и статистика",{"$nulls":3},0,{"$nulls":4},0,{"$nulls":4},0,{"$nulls":4},0]
["Информатика",{"$nulls":3},0,{"$nulls":4},0,{"$nulls":4},0,{"$nulls":4},1]
["История ",{"$nulls":3},0,{"$nulls":4},1,{"$nulls":4},0,{"$nulls":4},1]
["География"]
["Физика",{"$nulls":13},1]
["Биология"]
["Технология. Материаловедение и технология обработки материалов",{"$nulls":3},0,0,{"$nulls":3},0,0,{"$nulls":3},1,1,null,null,0,0,1]
["Технология. Конструирование и прототипирование",{"$nulls":3},0,0,{"$nulls":3},0,0,{"$nulls":3},1,1,null,null,0,0,1]
["Технология. Технопредпринимательство и экономика",{"$nulls":3},0,0,{"$nulls":3},0,0,{"$nulls":3},1,1,null,null,0,0,1]
["Технология. Интернет вещей",{"$nulls":3},0,0,{"$nulls":3},0,0,{"$nulls":3},1,1,null,null,0,0,1]
["Технология. Программирование и ИТ",{"$nulls":3},0,0,{"$nulls":3},0,0,{"$nulls":3},1,1,null,null,0,0,1]
["Физическая культура. Легкая атлетика",{"$nulls":8},1]
["Физическая культура. Гимнастика",{"$nulls":13},1]
["Физическая культура. Лыжная подготовка"]
["Физическая культура. Футбол"]
["Физическая культура. Баскетбол"]
["Физическая культура. Волейбол"]
["Физическая культура. Спорт. ГТО"]
["Математика. Нестандартные методы решения математических задач"]
["Информатика. Программирование на Пайтон",{"$nulls":3},0,{"$nulls":4},0,{"$nulls":4},0,{"$nulls":4},0]
["Информатика. Программирование на СИ",{"$nulls":3},0,{"$nulls":4},0,{"$nulls":4},0,{"$nulls":4},0]
[]
[]
[]
["Период проведения оценочной процедуры","Сентябрь",{"$nulls":4},"Октябрь",{"$nulls":4},"Ноябрь",{"$nulls":4},"Декабрь",{"$nulls":4},"Всего"]
["Вид оценочных процедур","Федеральные оценочные процедуры","Региональные оценочные процедуры","Муниципальные оценочные процедуры","Оценочные процедуры по инициативе ОО","Всего","Федеральные оценочные процедуры","Региональные оценочные процедуры","Муниципальные оценочные процедуры","Оценочные процедуры по инициативе ОО","Всего","Федеральные оценочные процедуры","Региональные оценочные процедуры","Муниципальные оценочные процедуры","Оценочные процедуры по инициативе ОО","Всего","Федеральные оценочные процедуры","Региональные оценочные процедуры","Муниципальные оценочные процедуры","Оценочные процедуры по инициативе ОО","Всего","В первом полугодии 2025-2026 уч. года"]
["7 Э класс"]
["Русский язык",{"$nulls":13},1,{"$nulls":4},1]
["Литература",{"$nulls":8},1,{"$nulls":9},1]
["Иностранный язык (английский)",{"$nulls":8},1,{"$nulls":9},1]
["Второй иностранный язык (китайский)"]
["Алгебра"]
["Геометрия"]
["Вероятность и статистика"]
["Информатика",{"$nulls":3},0,{"$nulls":4},0,{"$nulls":4},1,{"$nulls":4},0]
["История",{"$nulls":3},0,{"$nulls":4},1,{"$nulls":4},0,{"$nulls":4},1]
["География"]
["Физика"]
["Биология"]
["Технология. Материаловедение и технология обработки материалов",{"$nulls":3},0,0,{"$nulls":3},0,0,{"$nulls":3},0,0,{"$nulls":3},0,0,0]
["Технология. Конструирование и прототипирование",{"$nulls":3},0,0,{"$nulls":3},0,0,{"$nulls":3},0,0,{"$nulls":3},0,0,0]
["Технология. Технопредпринимательство и экономика",{"$nulls":3},0,0,{"$nulls":3},0,0,{"$nulls":3},0,0,{"$nulls":3},0,0,0]
["Технология. Интернет вещей",{"$nulls":3},0,0,{"$nulls":3},0,0,{"$nulls":3},0,0,{"$nulls":3},0,0,0]
["Технология. Программирование и ИТ",{"$nulls":3},0,0,{"$nulls":3},0,0,{"$nulls":3},0,0,{"$nulls":3},0,0,0]
["Физическая культура. Легкая атлетика",{"$nulls":8},1]
["Физическая культура. Гимнастика",{"$nulls":13},1]
["Физическая культура. Лыжная подготовка"]
["Физическая культура. Футбол"]
["Физическая культура. Баскетбол"]
["Физическая культура. Волейбол"]
["Физическая культура. Спорт. ГТО"]
["Обществознание. Культура и традиции Китая"]
["Обществознание. Экономика"]
["Иностранный язык. Китайская каллиграфия",{"$nulls":8},1,{"$nulls":9},1]

{"sheet":"8-е классы","index":7,"n_rows":323,"n_cols":22,"rows_kept":323,"merged":[[0,1,0,5],[0,6,0,10],[0,11,0,15],[0,16,0,20],[2,0,2,21],[31,1,31,5],[31,6,31,10],[31,11,31,15],[31,16,31,20],[33,0,33,21],[71,1,71,5],[71,6,71,10],[71,11,71,15],[71,16,71,20],[73,0,73,21],[107,1,107,5],[107,6,107,10],[107,11,107,15],[107,16,107,20],[109,0,109,21],[142,1,142,5],[142,6,142,10],[142,11,142,15],[142,16,142,20],[144,0,144,21],[177,1,177,5],[177,6,177,10],[177,11,177,15],[177,16,177,20],[179,0,179,21],[209,1,209,5],[209,6,209,10],[209,11,209,15],[209,16,209,20],[211,0,211,21],[215,1,216,1],[215,2,216,2],[215,3,216,3],[215,4,216,4],[215,5,216,5],[215,6,216,6],[215,7,216,7],[215,8,216,8],[215,9,216,9],[215,10,216,10],[215,11,216,11],[215,12,216,12],[215,13,216,13],[215,14,216,14],[215,15,216,15],[215,16,216,16],[215,17,216,17],[215,18,216,18],[215,19,216,19],[215,20,216,20],[215,21,216,21],[250,1,250,5],[250,6,250,10],[250,11,250,15],[250,16,250,20],[252,0,252,21],[289,1,289,5],[289,6,289,10],[289,11,289,15],[289,16,289,20],[291,0,291,21]]}
["Период проведения оценочной процедуры","Сентябрь",{"$nulls":4},"Октябрь",{"$nulls":4},"Ноябрь",{"$nulls":4},"Декабрь",{"$nulls":4},"Всего"]
["Вид оценочных процедур","Федеральные оценочные процедуры","Региональные оценочные процедуры","Муниципальные оценочные процедуры","Оценочные процедуры по инициативе ОО","Всего","Федеральные оценочные процедуры","Региональные оценочные процедуры","Муниципальные оценочные процедуры","Оценочные процедуры по инициативе ОО","Всего","Федеральные оценочные процедуры","Региональные оценочные процедуры","Муниципальные оценочные процедуры","Оценочные процедуры по инициативе ОО","Всего","Федеральные оценочные процедуры","Региональные оценочные процедуры","Муниципальные оценочные процедуры","Оценочные процедуры по инициативе ОО","Всего","В первом полугодии 2025-2026 уч. года"]
["8 Б класс"]
["Русский язык",{"$nulls":3},1,{"$nulls":4},1,{"$nulls":9},1]
["Литература",{"$nulls":3},1,{"$nulls":9},1]
["Иностранный язык (английский)",{"$nulls":8},1,{"$nulls":9},1]
["Алгебра"]
["Геометрия"]
["Вероятность и статистика"]
["Информатика",{"$nulls":3},0,{"$nulls":4},1,{"$nulls":4},1,{"$nulls":4},0]
["История",{"$nulls":3},0,{"$nulls":4},1,{"$nulls":4},1,{"$nulls":4},1]
["Обществознание",{"$nulls":3},0,{"$nulls":4},0,{"$nulls":4},0,{"$nulls":4},0]
["География"]
["Физика",{"$nulls":8},1,{"$nulls":9},1,null,2]
["Химия",{"$nulls":3},0,0,{"$nulls":3}," 1",1,{"$nulls":3},1,1,{"$nulls":3},0," 0",2]
["Биология",{"$nulls":3},1,1,{"$nulls":3},0,0,{"$nulls":3},1,1,{"$nulls":3},0,0,2]
["Технология. Конструирование и прототипирование",{"$nulls":3},0,0,{"$nulls":3},0,0,{"$nulls":3},0,0,{"$nulls":3},0,0,0]
["Технология. Технопредпринимательство и экономика",{"$nulls":3},0,0,{"$nulls":3},0,0,{"$nulls":3},0,0,{"$nulls":3},0,0,0]
["Технология. Интернет вещей",{"$nulls":3},0,0,{"$nulls":3},0,0,{"$nulls":3},0,0,{"$nulls":3},0,0,0]
["Основы безопасности и защиты Родины",{"$nulls":18},1]
["Физическая культура",{"$nulls":8},1,{"$nulls":4},1]
["Физическая культура. Легкая атлетика",{"$nulls":8},1]
["Физическая культура. Гимнастика",{"$nulls":18},1]
["Физическая культура. Лыжная подготовка"]
["Физическая культура. Футбол"]
["Физическая культура. Баскетбол"]
["Физическая культура. Волейбол"]
["Физическая культура. Спорт. ГТО"]
["Биология. Практическая и молекулярная генетика для начинающих",{"$nulls":3},0,0,{"$nulls":3},0,0,{"$nulls":3},1,1,{"$nulls":3},0,0,1]
["Химия. Основы биохимии",{"$nulls":3},0,0,{"$nulls":3},0,0,{"$nulls":3},0,0,{"$nulls":3},0,0,0]
["Медицина будущего. Атлас медицинских профессий",{"$nulls":3},0,0,{"$nulls":3},1,1,{"$nulls":3},0,0,{"$nulls":3},0,0,1]
["Период проведения оценочной процедуры","Сентябрь",{"$nulls":4},"Октябрь",{"$nulls":4},"Ноябрь",{"$nulls":4},"Декабрь",{"$nulls":4},"Всего"]
["Вид оценочных процедур","Федеральные оценочные процедуры","Региональные оценочные процедуры","Муниципальные оценочные процедуры","Оценочные процедуры по инициативе ОО","Всего","Федеральные оценочные процедуры","Региональные оценочные процедуры","Муниципальные оценочные процедуры","Оценочные процедуры по инициативе ОО","Всего","Федеральные оценочные процедуры","Региональные оценочные процедуры","Муниципальные оценочные процедуры","Оценочные процедуры по инициативе ОО","Всего","Федеральные оценочные процедуры","Региональные оценочные процедуры","Муниципальные оценочные процедуры","Оценочные процедуры по инициативе ОО","Всего","В первом полугодии 2025-2026 уч. года"]
["8 АРТ класс"]
["Русский язык",{"$nulls":3},1,{"$nulls":4},1,{"$nulls":9},1]
["Литература",{"$nulls":3},1,{"$nulls":9},1]
["Иностранный язык (английский)",{"$nulls":8},1,{"$nulls":9},1]
["Алгебра",{"$nulls":3},1,{"$nulls":4},1,{"$nulls":9},1]
["Геометрия",{"$nulls":8},1,{"$nulls":9},2]
["Вероятность и статистика"]
["Информатика",{"$nulls":3},0,{"$nulls":4},0,{"$nulls":4},0,{"$nulls":4},1]
["История",{"$nulls":3},0,{"$nulls":4},1,{"$nulls":4},1,{"$nulls":4},1]
["Обществознание",{"$nulls":3},0,{"$nulls":4},0,{"$nulls":4},0,{"$nulls":4},0]
["География"]
["Физика"]
["Химия",{"$nulls":18}," 1"]
["Биология",{"$nulls":13},1]
["ИЗО. Искусство кино"]
["ИЗО. Искусство фотографии"]
["Музыка. Связь музыки с другими видами искусства"]
["Музыка. Современная музыка: основные жанры и направления"]
["Технология. Конструирование и прототипирование",{"$nulls":3},0,0,{"$nulls":3},0,0,{"$nulls":3},0,0,{"$nulls":3},0,0,0]
["Технология. Технопредпринимательство и экономика",{"$nulls":3},0,0,{"$nulls":3},0,0,{"$nulls":3},0,0,{"$nulls":3},0,0,0]
["Технология. Интернет вещей",{"$nulls":3},0,0,{"$nulls":3},0,0,{"$nulls":3},0,0,{"$nulls":3},0,0,0]
["Основы безопасности и защиты Родины",{"$nulls":18},1]
["Физическая культура. Легкая атлетика",{"$nulls":8},1]
["Физическая культура. Гимнастика",{"$nulls":18},1]
["Физическая культура. Лыжная подготовка"]
["Физическая культура. Футбол"]
["Физическая культура. Баскетбол"]
["Физическая культура. Волейбол"]
["Физическая культура. Спорт. ГТО"]
["История. История русского искусства"]
["Музыка. Хоровое пение"]
["ИЗО. Полигональное моделирование"]
["ИЗО. Академический рисунок"]
["Русский язык. Риторика"]
["Литература. Основы поэтики"]
[]
[]
[]
["Период проведения оценочной процедуры","Сентябрь",{"$nulls":4},"Октябрь",{"$nulls":4},"Ноябрь",{"$nulls":4},"Декабрь",{"$nulls":4},"Всего"]
["Вид оценочных процедур","Федеральные оценочные процедуры","Региональные оценочные процедуры","Муниципальные оценочные процедуры","Оценочные процедуры по инициативе ОО","Всего","Федеральные оценочные процедуры","Региональные оценочные процедуры","Муниципальные оценочные процедуры","Оценочные процедуры по инициативе ОО","Всего","Федеральные оценочные процедуры","Региональные оценочные процедуры","Муниципальные оценочные процедуры","Оценочные процедуры по инициативе ОО","Всего","Федеральные оценочные процедуры","Региональные оценочные процедуры","Муниципальные оценочные процедуры","Оценочные процедуры по инициативе ОО","Всего","В первом полугодии 2025-2026 уч. года"]
["8 БАС класс"]
["Русский язык",{"$nulls":3},1,{"$nulls":14},1]
["Литература",{"$nulls":3},1,{"$nulls":9},1]
["Иностранный язык (английский)",{"$nulls":8},1,{"$nulls":9},1]
["Алгебра"]
["Геометрия",{"$nulls":3},0,{"$nulls":4},0,{"$nulls":4},1,{"$nulls":4},0]
["Вероятность и статистика"]
["Информатика",{"$nulls":3},0,{"$nulls":4},0,{"$nulls":4},0,{"$nulls":4},1]
["История ",{"$nulls":3},0,{"$nulls":4},1,{"$nulls":4},1,{"$nulls":4},1]
["Обществознание",{"$nulls":3},0,{"$nulls":4},0,{"$nulls":4},0,{"$nulls":4},0]
["География"]
["Физика. Строение вещества"]
["Физика. Электричество и магнетизм"]
["Физика. Квантово-волновой дуализм"]
["Химия",{"$nulls":13}," 1"]
["Биология"]
["Технология. Конструирование и прототипирование",{"$nulls":3},0,0,{"$nulls":3},0,0,{"$nulls":3},0,0,{"$nulls":3},0,0,0]
["Технология. Технопредпринимательство и экономика",{"$nulls":3},0,0,{"$nulls":3},0,0,{"$nulls":3},0,0,{"$nulls":3},0,0,0]
["Технология. Интернет вещей",{"$nulls":3},0,0,{"$nulls":3},0,0,{"$nulls":3},0,0,{"$nulls":3},0,0,0]
["Технология. Летающая робототехника",{"$nulls":3},0,0,{"$nulls":3},0,0,{"$nulls":3},0,0,{"$nulls":3},0,0,0]
["Технология. Беспилотные авиационные системы",{"$nulls":3},0,0,{"$nulls":3},0,0,{"$nulls":3},0,0,{"$nulls":3},0,0,0]
["Физическая культура. Легкая атлетика",{"$nulls":8},1]
["Физическая культура. Гимнастика",{"$nulls":18},1]
["Физическая культура. Лыжная подготовка"]
["Физическая культура. Футбол"]
["Физическая культура. Баскетбол"]
["Физическая культура. Волейбол"]
["Физическая культура. Спорт. ГТО"]
["Информатика. Программирование на Пайтон",{"$nulls":3},0,{"$nulls":4},0,{"$nulls":4},1,{"$nulls":4},0]
["Физика. Небесная механика"]
["Технология. Черчение и инженерная графика",{"$nulls":3},0,0,{"$nulls":3},1,1,{"$nulls":3},0,0,{"$nulls":3},0,0,1]
["Основы безопасности и защиты Родины",{"$nulls":18},1]
[]
[]
["Период проведения оценочной процедуры","Сентябрь",{"$nulls":4},"Октябрь",{"$nulls":4},"Ноябрь",{"$nulls":4},"Декабрь",{"$nulls":4},"Всего"]
["Вид оценочных процедур","Федеральные оценочные процедуры","Региональные оценочные процедуры","Муниципальные оценочные процедуры","Оценочные процедуры по инициативе ОО","Всего","Федеральные оценочные процедуры","Региональные оценочные процедуры","Муниципальные оценочные процедуры","Оценочные процедуры по инициативе ОО","Всего","Федеральные оценочные процедуры","Региональные оценочные процедуры","Муниципальные оценочные процедуры","Оценочные процедуры по инициативе ОО","Всего","Федеральные оценочные процедуры","Региональные оценочные процедуры","Муниципальные оценочные процедуры","Оценочные процедуры по инициативе ОО","Всего","В первом полугодии 2025-2026 уч. года"]
["8 И класс"]
["Русский язык",{"$nulls":3},1,{"$nulls":9},1]
["Литература",{"$nulls":3},1,{"$nulls":4},1]
["Иностранный язык (английский)",{"$nulls":8},1,{"$nulls":9},1]
["Алгебра",{"$nulls":3},1,{"$nulls":4},1,{"$nulls":4},1]
["Геометрия",{"$nulls":8},1,{"$nulls":9},2]
["Вероятность и статистика"]
["Информатика",{"$nulls":3},0,{"$nulls":4},0,{"$nulls":4},1,{"$nulls":4},0]
["История ",{"$nulls":3},0,{"$nulls":4},1,{"$nulls":4},1,{"$nulls":4},1]
["Обществознание",{"$nulls":3},0,{"$nulls":4},0,{"$nulls":4},0,{"$nulls":4},0]
["География"]
["Физика"]
["Химия"]
["Биология",{"$nulls":18},1]
["Технология. Конструирование и прототипирование",{"$nulls":3},0,0,{"$nulls":3},0,0,{"$nulls":3},0,0,{"$nulls":3},0,0,0]
["Технология. Технопредпринимательство и экономика",{"$nulls":3},0,0,{"$nulls":3},0,0,{"$nulls":3},0,0,{"$nulls":3},0,0,0]
["Технология. Интернет вещей",{"$nulls":3},0,0,{"$nulls":3},0,0,{"$nulls":3},0,0,{"$nulls":3},0,0,0]
["Основы безопасности и защиты Родины",{"$nulls":18},1]
["Физическая культура. Легкая атлетика",{"$nulls":8},1]
["Физическая культура. Гимнастика",{"$nulls":18},1]
["Физическая культура. Лыжная подготовка"]
["Физическая культура. Футбол"]
["Физическая культура. Баскетбол"]
["Физическая культура. Волейбол"]
["Физическая культура. Спорт. ГТО"]
["Математика. Практикум по решению математических задач"]
["Физика. Решение качественных задач по физике"]
["Физика. Лабораторный практикум по физике"]
["Физика. Электронные приборы и современные средства измерения"]
["Технология. Черчение",{"$nulls":3},0,0,{"$nulls":3},0,0,{"$nulls":3},0,0,{"$nulls":3},1,1,1]
[]
[]
[]
["Период проведения оценочной процедуры","Сентябрь",{"$nulls":4},"Октябрь",{"$nulls":4},"Ноябрь",{"$nulls":4},"Декабрь",{"$nulls":4},"Всего"]
["Вид оценочных процедур","Федеральные оценочные процедуры","Региональные оценочные процедуры","Муниципальные оценочные процедуры","Оценочные процедуры по инициативе ОО","Всего","Федеральные оценочные процедуры","Региональные оценочные процедуры","Муниципальные оценочные процедуры","Оценочные процедуры по инициативе ОО","Всего","Федеральные оценочные процедуры","Региональные оценочные процедуры","Муниципальные оценочные процедуры","Оценочные процедуры по инициативе ОО","Всего","Федеральные оценочные процедуры","Региональные оценочные процедуры","Муниципальные оценочные процедуры","Оценочные процедуры по инициативе ОО","Всего","В первом полугодии 2025-2026 уч. года"]
["8 ФТ класс"]
["Русский язык",{"$nulls":8},1,{"$nulls":4},1,{"$nulls":4},1]
["Литература",{"$nulls":3},1,{"$nulls":9},1]
["Иностранный язык (английский)",{"$nulls":8},1,{"$nulls":9},1]
["Алгебра"]
["Геометрия"]
["Вероятность и статистика"]
["Информатика",{"$nulls":3},0,{"$nulls":4},0,{"$nulls":4},0,{"$nulls":4},1]
["История ",{"$nulls":3},0,{"$nulls":4},1,{"$nulls":4},1,{"$nulls":4},1]
["Обществознание",{"$nulls":3},0,{"$nulls":4},0,{"$nulls":4},0,{"$nulls":4},0]
["География"]
["Физика"]
["Химия",{"$nulls":13}," 1"]
["Биология"]
["Технология. Конструирование и прототипирование",{"$nulls":3},0,0,{"$nulls":3},0,0,{"$nulls":3},0,0,{"$nulls":3},0,0,0]
["Технология. Технопредпринимательство и экономика",{"$nulls":3},0,0,{"$nulls":3},0,0,{"$nulls":3},0,0,{"$nulls":3},0,0,0]
["Технология. Интернет вещей",{"$nulls":3},0,0,{"$nulls":3},0,0,{"$nulls":3},0,0,{"$nulls":3},0,0,0]
["Основы безопасности и защиты Родины",{"$nulls":18},1]
["Физическая культура. Легкая атлетика",{"$nulls":8},1]
["Физическая культура. Гимнастика",{"$nulls":18},1]
["Физическая культура. Лыжная подготовка"]
["Физическая культура. Футбол"]
["Физическая культура. Баскетбол"]
["Физическая культура. Волейбол"]
["Физическая культура. Спорт. ГТО"]
["Математика. Практикум по решению математических задач"]
["Физика. Решение качественных задач по физике"]
["Физика. Лабораторный практикум по физике"]
["Физика. Электронные приборы и современные средства измерения"]
["Технология. Черчение",{"$nulls":3},1,1,{"$nulls":3},1,1,{"$nulls":3},0,0,{"$nulls":3},1,1,3]
[]
[]
[]
["Период проведения оценочной процедуры","Сентябрь",{"$nulls":4},"Октябрь",{"$nulls":4},"Ноябрь",{"$nulls":4},"Декабрь",{"$nulls":4},"Всего"]
["Вид оценочных процедур","Федеральные оценочные процедуры","Региональные оценочные процедуры","Муниципальные оценочные процедуры","Оценочные процедуры по инициативе ОО","Всего","Федеральные оценочные процедуры","Региональные оценочные процедуры","Муниципальные оценочные процедуры","Оценочные процедуры по инициативе ОО","Всего","Федеральные оценочные процедуры","Региональные оценочные процедуры","Муниципальные оценочные процедуры","Оценочные процедуры по инициативе ОО","Всего","Федеральные оценочные процедуры","Региональные оценочные процедуры","Муниципальные оценочные процедуры","Оценочные процедуры по инициативе ОО","Всего","В первом полугодии 2025-2026 уч. года"]
["8 ИТ класс"]
["Русский язык",{"$nulls":8},1,{"$nulls":4},1]
["Литература",{"$nulls":3},1,{"$nulls":9},1]
["Иностранный язык (английский)",{"$nulls":8},1,{"$nulls":9},1]
["Алгебра",{"$nulls":3},1,{"$nulls":4},1,{"$nulls":4},1]
["Геометрия",{"$nulls":8},1,{"$nulls":9},1]
["Вероятность и статистика",{"$nulls":3},0,{"$nulls":4},0,{"$nulls":4},0,{"$nulls":4},0]
["Информатика",{"$nulls":3},1,{"$nulls":4},1,{"$nulls":4},0]
["История",{"$nulls":3},0,{"$nulls":4},1,{"$nulls":4},1,{"$nulls":4},1]
["Обществознание",{"$nulls":3},0,{"$nulls":4},0,{"$nulls":4},0,{"$nulls":4},0]
["География"]
["Физика"]
["Химия"]
["Биология",{"$nulls":13},1,{"$nulls":4},1]
["Технология. Конструирование и прототипирование",{"$nulls":3},0,0,{"$nulls":3},0,0,{"$nulls":3},0,0,{"$nulls":3},0,0,0]
["Технология. Технопредпринимательство и экономика",{"$nulls":3},0,0,{"$nulls":3},0,0,{"$nulls":3},0,0,{"$nulls":3},0,0,0]
["Технология. Интернет вещей",{"$nulls":3},0,0,{"$nulls":3},0,0,{"$nulls":3},0,0,{"$nulls":3},0,0,0]
["Основы безопасности и защиты Родины",{"$nulls":18},1]
["Физическая культура. Легкая атлетика",{"$nulls":8},1]
["Физическая культура. Гимнастика",{"$nulls":18},1]
["Физическая культура. Лыжная подготовка"]
["Физическая культура. Футбол"]
["Физическая культура. Баскетбол"]
["Физическая культура. Волейбол"]
["Физическая культура. Спорт. ГТО"]
["Информатика. Программирование на Пайтон",{"$nulls":3},0,{"$nulls":4},0,{"$nulls":4},0,{"$nulls":4},1]
["Математика. Практикум по решению математических задач"]
["Технология. Программирование и ИТ",{"$nulls":3},0,0,{"$nulls":3},1,1,{"$nulls":3},0,0,{"$nulls":3},0,0,1]
["Технология. Черчение",{"$nulls":3},1,1,{"$nulls":3},1,1,{"$nulls":3},0,0,{"$nulls":3},1,1,3]
[]
["Период проведения оценочной процедуры","Сентябрь",{"$nulls":4},"Октябрь",{"$nulls":4},"Ноябрь",{"$nulls":4},"Декабрь",{"$nulls":4},"Всего"]
["Вид оценочных процедур","Федеральные оценочные процедуры","Региональные оценочные процедуры","Муниципальные оценочные процедуры","Оценочные процедуры по инициативе ОО","Всего","Федеральные оценочные процедуры","Региональные оценочные процедуры","Муниципальные оценочные процедуры","Оценочные процедуры по инициативе ОО","Всего","Федеральные оценочные процедуры","Региональные оценочные процедуры","Муниципальные оценочные процедуры","Оценочные процедуры по инициативе ОО","Всего","Федеральные оценочные процедуры","Региональные оценочные процедуры","Муниципальные оценочные процедуры","Оценочные процедуры по инициативе ОО","Всего","В первом полугодии 2025-2026 уч. года"]
["8 ПИ класс"]
["Русский язык",{"$nulls":8},1,{"$nulls":4},1]
["Литература",{"$nulls":3},1,{"$nulls":9},1]
["Иностранный язык (английский)",{"$nulls":8},1,{"$nulls":9},1]
["Алгебра. Теория множеств"]
["Алгебра. Теория множеств"]
["Алгебра. Теория элементарных функций"]
["Алгебра. Уравнения, неравенства и их конструкции"]
["Алгебра. Основы теории делимости"]
["Геометрия"]
["Вероятность и статистика"]
["История ",{"$nulls":3},0,{"$nulls":4},1,{"$nulls":4},1,{"$nulls":4},1]
["Обществознание",{"$nulls":3},0,{"$nulls":4},0,{"$nulls":4},0,{"$nulls":4},0]
["География"]
["Физика"]
["Химия"]
["Биология",{"$nulls":13},1]
["Технология. Конструирование и прототипирование",{"$nulls":3},0,0,{"$nulls":3},0,0,{"$nulls":3},0,0,{"$nulls":3},0,0,0]
["Технология. Технопредпринимательство и экономика",{"$nulls":3},0,0,{"$nulls":3},0,0,{"$nulls":3},0,0,{"$nulls":3},0,0,0]
["Технология. Интернет вещей",{"$nulls":3},0,0,{"$nulls":3},0,0,{"$nulls":3},0,0,{"$nulls":3},0,0,0]
["Основы безопасности и защиты Родины",{"$nulls":18},1]
["Физическая культура. Легкая атлетика",{"$nulls":8},1]
["Физическая культура. Гимнастика",{"$nulls":18},1]
["Физическая культура. Лыжная подготовка"]
["Физическая культура. Футбол"]
["Физическая культура. Баскетбол"]
["Физическая культура. Волейбол"]
["Физическая культура. Спорт. ГТО"]
["Информатика. Математические объекты информатики",{"$nulls":3},0,{"$nulls":4},0,{"$nulls":4},0,{"$nulls":4},0]
["Технология. Черчение"]
["Информатика. Программирование на Пайтон",{"$nulls":3},0,{"$nulls":4},1,{"$nulls":4},0,{"$nulls":4},1]
["Информатика. Проектный практикум по программированию",{"$nulls":3},0,{"$nulls":4},0,{"$nulls":4},0,{"$nulls":4},0]
["Информатика. Веб-программирование",{"$nulls":3},0,{"$nulls":4},0,{"$nulls":4},0,{"$nulls":4},0]
["Информатика. Цифровая гигиена и работа с БигДата",{"$nulls":3},0,{"$nulls":4},0,{"$nulls":4},0,{"$nulls":4},0]
["Информатика. Сетевое и системное администрирование",{"$nulls":3},0,{"$nulls":4},0,{"$nulls":4},0,{"$nulls":4},0]
["Информатика. Программирование на Си",{"$nulls":3},0,{"$nulls":4},1,{"$nulls":4},0,{"$nulls":4},1]
[]
[]
[]
["Период проведения оценочной процедуры","Сентябрь",{"$nulls":4},"Октябрь",{"$nulls":4},"Ноябрь",{"$nulls":4},"Декабрь",{"$nulls":4},"Всего"]
["Вид оценочных процедур","Федеральные оценочные процедуры","Региональные оценочные процедуры","Муниципальные оценочные процедуры","Оценочные процедуры по инициативе ОО","Всего","Федеральные оценочные процедуры","Региональные оценочные процедуры","Муниципальные оценочные процедуры","Оценочные процедуры по инициативе ОО","Всего","Федеральные оценочные процедуры","Региональные оценочные процедуры","Муниципальные оценочные процедуры","Оценочные процедуры по инициативе ОО","Всего","Федеральные оценочные процедуры","Региональные оценочные процедуры","Муниципальные оценочные процедуры","Оценочные процедуры по инициативе ОО","Всего","В первом полугодии 2025-2026 уч. года"]
["8 М класс"]
["Русский язык",{"$nulls":8},1,{"$nulls":4},1,{"$nulls":4},1]
["Литература",{"$nulls":3},1,{"$nulls":9},1]
["Иностранный язык (английский)",{"$nulls":8},1,{"$nulls":9},1]
["Алгебра. Теория множеств"]
["Алгебра. Теория элементарных функций"]
["Алгебра. Уравнения, неравенства и их конструкции"]
["Алгебра. Основы теории делимости"]
["Геометрия"]
["Вероятность и статистика"]
["Информатика",{"$nulls":3},0,{"$nulls":4},0,{"$nulls":4},0,{"$nulls":4},1]
["История ",{"$nulls":3},0,{"$nulls":4},1,{"$nulls":4},1,{"$nulls":4},1]
["Обществознание",{"$nulls":3},0,{"$nulls":4},0,{"$nulls":4},0,{"$nulls":4},0]
["География"]
["Физика"]
["Химия"]
["Биология"]
["Технология. Конструирование и прототипирование",{"$nulls":3},0,0,{"$nulls":3},0,0,{"$nulls":3},1,1,null,null,0,0,1]
["Технология. Технопредпринимательство и экономика",{"$nulls":3},0,0,{"$nulls":3},0,0,{"$nulls":3},1,1,null,null,0,0,1]
["Технология. Интернет вещей",{"$nulls":3},0,0,{"$nulls":3},0,0,{"$nulls":3},1,1,null,null,0,0,1]
["Основы безопасности и защиты Родины",{"$nulls":18},1]
["Физическая культура. Легкая атлетика",{"$nulls":8},1]
["Физическая культура. Гимнастика",{"$nulls":18},1]
["Физическая культура. Лыжная подготовка"]
["Физическая культура. Футбол"]
["Физическая культура. Баскетбол"]
["Физическая культура. Волейбол"]
["Физическая культура. Спорт. ГТО"]
["Математика. Логические задачи"]
["Математика. Избранные вопросы геометрии"]
["Математика. Геометрические методы в решении алгебраических задач"]
["Математика. Проектный практикум по математике"]
["Информатика. Программирование на Пайтон",{"$nulls":3},0,{"$nulls":4},0,{"$nulls":4},0,{"$nulls":4},0]
["Информатика. Программирование на СИ",{"$nulls":3},0,{"$nulls":4},0,{"$nulls":4},1,{"$nulls":4},0]
[]
[]
[]
["Период проведения оценочной процедуры","Сентябрь",{"$nulls":4},"Октябрь",{"$nulls":4},"Ноябрь",{"$nulls":4},"Декабрь",{"$nulls":4},"Всего"]
["Вид оценочных процедур","Федеральные оценочные процедуры","Региональные оценочные процедуры","Муниципальные оценочные процедуры","Оценочные процедуры по инициативе ОО","Всего","Федеральные оценочные процедуры","Региональные оценочные процедуры","Муниципальные оценочные процедуры","Оценочные процедуры по инициативе ОО","Всего","Федеральные оценочные процедуры","Региональные оценочные процедуры","Муниципальные оценочные процедуры","Оценочные процедуры по инициативе ОО","Всего","Федеральные оценочные процедуры","Региональные оценочные процедуры","Муниципальные оценочные процедуры","Оценочные процедуры по инициативе ОО","Всего","В первом полугодии 2025-2026 уч. года"]
["8 УМ класс"]
["Русский язык",{"$nulls":8},1,{"$nulls":4},1,{"$nulls":4},1]
["Литература",{"$nulls":3},1,{"$nulls":9},1]
["Иностранный язык (английский)",{"$nulls":8},1,{"$nulls":9},1]
["Алгебра"]
["Геометрия"]
["Вероятность и статистика"]
["Информатика",{"$nulls":3},0,{"$nulls":4},0,{"$nulls":4},0,{"$nulls":4},1]
["История",{"$nulls":3},0,{"$nulls":4},1,{"$nulls":4},1,{"$nulls":4},1]
["Обществознание",{"$nulls":3},0,{"$nulls":4},0,{"$nulls":4},0,{"$nulls":4},0]
["География"]
["Физика"]
["Химия"]
["Биология"]
["Технология. Конструирование и прототипирование",{"$nulls":3},0,0,{"$nulls":3},0,0,{"$nulls":3},0,0,{"$nulls":3},0,0,0]
["Технология. Технопредпринимательство и экономика",{"$nulls":3},0,0,{"$nulls":3},0,0,{"$nulls":3},0,0,{"$nulls":3},0,0,0]
["Технология. Интернет вещей",{"$nulls":3},0,0,{"$nulls":3},0,0,{"$nulls":3},0,0,{"$nulls":3},0,0,0]
["Основы безопасности и защиты Родины",{"$nulls":18},1]
["Физическая культура. Легкая атлетика",{"$nulls":8},1]
["Физическая культура. Гимнастика",{"$nulls":18},1]
["Физическая культура. Лыжная подготовка"]
["Физическая культура. Футбол"]
["Физическая культура. Баскетбол"]
["Физическая культура. Волейбол"]
["Физическая культура. Спорт. ГТО"]
["Математика. Практикум по решению математических задач"]
["Обществознание"]
["Обществознание. Финансовая грамотность"]
["Обществознание. Основы менеджмента"]
["Обществознание. Основы экономики"]
["Русский язык. Риторика",{"$nulls":8},1,{"$nulls":9},1]
["Иностранный язык. Литературное чтение на английском языке"]

{"sheet":"9-е классы","index":8,"n_rows":295,"n_cols":22,"rows_kept":295,"merged":[[0,1,0,5],[0,6,0,10],[0,11,0,15],[0,16,0,20],[2,0,2,21],[30,1,30,5],[30,6,30,10],[30,11,30,15],[30,16,30,20],[32,0,32,21],[61,1,61,5],[61,6,61,10],[61,11,61,15],[61,16,61,20],[63,0,63,21],[93,1,93,5],[93,6,93,10],[93,11,93,15],[93,16,93,20],[95,0,95,21],[125,1,125,5],[125,6,125,10],[125,11,125,15],[125,16,125,20],[127,0,127,21],[162,1,162,5],[162,6,162,10],[162,11,162,15],[162,16,162,20],[164,0,164,21],[199,1,199,5],[199,6,199,10],[199,11,199,15],[199,16,199,20],[201,0,201,21],[232,1,232,5],[232,6,232,10],[232,11,232,15],[232,16,232,20],[234,0,234,21],[265,1,265,5],[265,6,265,10],[265,11,265,15],[265,16,265,20],[267,0,267,21]]}
["Период проведения оценочной процедуры","Сентябрь",{"$nulls":4},"Октябрь",{"$nulls":4},"Ноябрь",{"$nulls":4},"Декабрь",{"$nulls":4},"Всего"]
["Вид оценочных процедур","Федеральные оценочные процедуры","Региональные оценочные процедуры","Муниципальные оценочные процедуры","Оценочные процедуры по инициативе ОО","Всего","Федеральные оценочные процедуры","Региональные оценочные процедуры","Муниципальные оценочные процедуры","Оценочные процедуры по инициативе ОО","Всего","Федеральные оценочные процедуры","Региональные оценочные процедуры","Муниципальные оценочные процедуры","Оценочные процедуры по инициативе ОО","Всего","Федеральные оценочные процедуры","Региональные оценочные процедуры","Муниципальные оценочные процедуры","Оценочные процедуры по инициативе ОО","Всего","В первом полугодии 2025-2026 уч. года"]
["9 Б класс"]
["Русский язык",{"$nulls":3},1,{"$nulls":4},1,{"$nulls":9},1]
["Литература",{"$nulls":8},1,{"$nulls":4},1,{"$nulls":4},1]
["Иностранный язык (английский)",{"$nulls":8},1,{"$nulls":9},1]
["Алгебра",{"$nulls":8},1,{"$nulls":7},1,null,1]
["Геометрия",{"$nulls":8},1,{"$nulls":7},1]
["Вероятность и статистика",{"$nulls":3},0,{"$nulls":4},1,{"$nulls":4},1,null,null,1,null,1]
["Информатика",{"$nulls":3},0,{"$nulls":4},0,{"$nulls":4},0,{"$nulls":4},1]
["История",{"$nulls":3},1,{"$nulls":4},1,{"$nulls":4},1,{"$nulls":4},1]
["Обществознание",{"$nulls":3},0,{"$nulls":4},1,{"$nulls":4},0,{"$nulls":4},1]
["География",{"$nulls":8},1]
["Физика",{"$nulls":8},1,{"$nulls":4},1,1,{"$nulls":3},1,1,3]
["Химия",{"$nulls":8},1]
["Биология",{"$nulls":8},1]
["Технология. Технологический проектный практикум"]
["Основы безопасности и защиты Родины",{"$nulls":13},1]
["Физическая культура. Легкая атлетика",{"$nulls":8},1]
["Физическая культура. Гимнастика",{"$nulls":18},1]
["Физическая культура. Лыжная подготовка"]
["Физическая культура. Футбол"]
["Физическая культура. Баскетбол"]
["Физическая культура. Волейбол"]
["Физическая культура. Спорт. ГТО"]
["Биология. Практическая и молекулярная генетика для начинающих"]
["География. Медицинская география"]
[]
[]
[]
["Период проведения оценочной процедуры","Сентябрь",{"$nulls":4},"Октябрь",{"$nulls":4},"Ноябрь",{"$nulls":4},"Декабрь",{"$nulls":4},"Всего"]
["Вид оценочных процедур","Федеральные оценочные процедуры","Региональные оценочные процедуры","Муниципальные оценочные процедуры","Оценочные процедуры по инициативе ОО","Всего","Федеральные оценочные процедуры","Региональные оценочные процедуры","Муниципальные оценочные процедуры","Оценочные процедуры по инициативе ОО","Всего","Федеральные оценочные процедуры","Региональные оценочные процедуры","Муниципальные оценочные процедуры","Оценочные процедуры по инициативе ОО","Всего","Федеральные оценочные процедуры","Региональные оценочные процедуры","Муниципальные оценочные процедуры","Оценочные процедуры по инициативе ОО","Всего","В первом полугодии 2025-2026 уч. года"]
["9 И класс"]
["Русский язык",{"$nulls":3},1,{"$nulls":4},1]
["Литература",{"$nulls":8},1,{"$nulls":4},1]
["Иностранный язык (английский)",{"$nulls":8},1]
["Алгебра",{"$nulls":8},1,{"$nulls":7},1]
["Геометрия",{"$nulls":8},1,{"$nulls":7},1]
["Вероятность и статистика",{"$nulls":3},0,{"$nulls":4},2,{"$nulls":4},1,null,null,1,null,0]
["Информатика",{"$nulls":3},0,{"$nulls":4},0,{"$nulls":4},0,{"$nulls":4},1]
["История",{"$nulls":3},1,{"$nulls":4},1,{"$nulls":4},1,{"$nulls":4},1]
["Обществознание",{"$nulls":3},0,{"$nulls":4},0,{"$nulls":4},0,{"$nulls":4},1]
["География",{"$nulls":8},1]
["Физика",{"$nulls":8},1,{"$nulls":9},1]
["Химия",{"$nulls":8},1]
["Биология",{"$nulls":8},1]
["Технология. Технологический проектный практикум"]
["Основы безопасности и защиты Родины",{"$nulls":13},1]
["Физическая культура. Легкая атлетика",{"$nulls":8},1]
["Физическая культура. Гимнастика",{"$nulls":18},1]
["Физическая культура. Лыжная подготовка"]
["Физическая культура. Футбол"]
["Физическая культура. Баскетбол"]
["Физическая культура. Волейбол"]
["Физическая культура. Спорт. ГТО"]
["Математика. Практикум по решению математических задач"]
["Физика. Лабораторный практикум по физике"]
["Русский язык. Практикум по русскому языку"]
[]
[]
[]
["Период проведения оценочной процедуры","Сентябрь",{"$nulls":4},"Октябрь",{"$nulls":4},"Ноябрь",{"$nulls":4},"Декабрь",{"$nulls":4},"Всего"]
["Вид оценочных процедур","Федеральные оценочные процедуры","Региональные оценочные процедуры","Муниципальные оценочные процедуры","Оценочные процедуры по инициативе ОО","Всего","Федеральные оценочные процедуры","Региональные оценочные процедуры","Муниципальные оценочные процедуры","Оценочные процедуры по инициативе ОО","Всего","Федеральные оценочные процедуры","Региональные оценочные процедуры","Муниципальные оценочные процедуры","Оценочные процедуры по инициативе ОО","Всего","Федеральные оценочные процедуры","Региональные оценочные процедуры","Муниципальные оценочные процедуры","Оценочные процедуры по инициативе ОО","Всего","В первом полугодии 2025-2026 уч. года"]
["9 ИТ класс"]
["Русский язык",{"$nulls":3},1,{"$nulls":4},1]
["Литература",{"$nulls":8},1,{"$nulls":4},1]
["Иностранный язык (английский)",{"$nulls":8},1]
["Алгебра",{"$nulls":8},1,{"$nulls":7},1]
["Геометрия",{"$nulls":8},1,{"$nulls":7},1]
["Вероятность и статистика",{"$nulls":8},1,{"$nulls":7},1]
["Информатика",{"$nulls":3},1,{"$nulls":4},0,{"$nulls":4},1,{"$nulls":4},0]
["История",{"$nulls":3},1,{"$nulls":4},1,{"$nulls":4},1,{"$nulls":4},1]
["Обществознание",{"$nulls":3},0,{"$nulls":4},1,{"$nulls":4},0,{"$nulls":4},0]
["География",{"$nulls":8},1]
["Физика",{"$nulls":8},1]
["Химия",{"$nulls":8},1]
["Биология",{"$nulls":8},1,{"$nulls":9},1]
["Технология. Технологический проектный практикум"]
["Основы безопасности и защиты Родины",{"$nulls":13},1]
["Физическая культура. Легкая атлетика",{"$nulls":8},1]
["Физическая культура. Гимнастика",{"$nulls":18},1]
["Физическая культура. Лыжная подготовка"]
["Физическая культура. Футбол"]
["Физическая культура. Баскетбол"]
["Физическая культура. Волейбол"]
["Физическая культура. Спорт. ГТО"]
["Информатика. Программирование на Пайтон",{"$nulls":3},0,{"$nulls":4},0,{"$nulls":4},0,{"$nulls":4},0]
["Математика. Практикум по решению математических задач"]
["Технология. Программирование и ИТ"]
["Русский язык. Практикум по русскому языку",{"$nulls":18},2]
[]
[]
[]
["Период проведения оценочной процедуры","Сентябрь",{"$nulls":4},"Октябрь",{"$nulls":4},"Ноябрь",{"$nulls":4},"Декабрь",{"$nulls":4},"Всего"]
["Вид оценочных процедур","Федеральные оценочные процедуры","Региональные оценочные процедуры","Муниципальные оценочные процедуры","Оценочные процедуры по инициативе ОО","Всего","Федеральные оценочные процедуры","Региональные оценочные процедуры","Муниципальные оценочные процедуры","Оценочные процедуры по инициативе ОО","Всего","Федеральные оценочные процедуры","Региональные оценочные процедуры","Муниципальные оценочные процедуры","Оценочные процедуры по инициативе ОО","Всего","Федеральные оценочные процедуры","Региональные оценочные процедуры","Муниципальные оценочные процедуры","Оценочные процедуры по инициативе ОО","Всего","В первом полугодии 2025-2026 уч. года"]
["9 Т класс"]
["Русский язык",{"$nulls":3},1,{"$nulls":4},1,{"$nulls":4},1]
["Литература",{"$nulls":8},1]
["Иностранный язык (английский)",{"$nulls":8},1]
["Алгебра",{"$nulls":8},1,{"$nulls":4},1,null,null,1,null,1]
["Геометрия",{"$nulls":3},0,{"$nulls":4},1,{"$nulls":4},1,null,null,1,null,0]
["Вероятность и статистика",{"$nulls":3},0,{"$nulls":4},1,{"$nulls":4},0,null,null,1,null,0]
["Информатика",{"$nulls":3},0,{"$nulls":4},1,{"$nulls":4},0,{"$nulls":4},1]
["История",{"$nulls":3},1,{"$nulls":4},1,{"$nulls":4},1,{"$nulls":4},1]
["Обществознание",{"$nulls":3},0,{"$nulls":4},1,{"$nulls":4},0,{"$nulls":4},0]
["География",{"$nulls":8},1]
["Физика",{"$nulls":8},1]
["Химия",{"$nulls":8},1]
["Биология",{"$nulls":8},1]
["Технология. Технологический проектный практикум"]
["Основы безопасности и защиты Родины",{"$nulls":13},1]
["Физическая культура. Легкая атлетика",{"$nulls":8},1]
["Физическая культура. Гимнастика",{"$nulls":18},1]
["Физическая культура. Лыжная подготовка"]
["Физическая культура. Футбол"]
["Физическая культура. Баскетбол"]
["Физическая культура. Волейбол"]
["Физическая культура. Спорт. ГТО"]
["Информатика. Программирование на Пайтон",{"$nulls":3},0,{"$nulls":4},0,{"$nulls":4},0,{"$nulls":4},1]
["Математика. Практикум по решению математических задач"]
["Технология. Программирование и ИТ"]
["Русский язык. Практикум по русскому языку"]
[]
[]
[]
["Период проведения оценочной процедуры","Сентябрь",{"$nulls":4},"Октябрь",{"$nulls":4},"Ноябрь",{"$nulls":4},"Декабрь",{"$nulls":4},"Всего"]
["Вид оценочных процедур","Федеральные оценочные процедуры","Региональные оценочные процедуры","Муниципальные оценочные процедуры","Оценочные процедуры по инициативе ОО","Всего","Федеральные оценочные процедуры","Региональные оценочные процедуры","Муниципальные оценочные процедуры","Оценочные процедуры по инициативе ОО","Всего","Федеральные оценочные процедуры","Региональные оценочные процедуры","Муниципальные оценочные процедуры","Оценочные процедуры по инициативе ОО","Всего","Федеральные оценочные процедуры","Региональные оценочные процедуры","Муниципальные оценочные процедуры","Оценочные процедуры по инициативе ОО","Всего","В первом полугодии 2025-2026 уч. года"]
["9 ПИ класс"]
["Русский язык",{"$nulls":3},1,{"$nulls":4},1,{"$nulls":9},1]
["Литература",{"$nulls":8},1,{"$nulls":4},1]
["Иностранный язык (английский)",{"$nulls":8},1,{"$nulls":9},1]
["Алгебра. Теория элементарных функций",{"$nulls":3},1,1,{"$nulls":3},1,1,{"$nulls":3},1,1,{"$nulls":4},0]
["Алгебра. Уравнения, неравенства и их конструкции",{"$nulls":3},0,{"$nulls":4},0,{"$nulls":4},0,null,null,1,null,1]
["Алгебра. Математическое моделирование реальных ситуаций",{"$nulls":3},0,{"$nulls":4},0,{"$nulls":4},0,{"$nulls":4},0]
["Алгебра. Основы теории рядов",{"$nulls":3},0,{"$nulls":4},0,{"$nulls":4},0,{"$nulls":4},0]
["Геометрия",{"$nulls":3},0,{"$nulls":4},1,{"$nulls":4},1,{"$nulls":4},0]
["Теория вероятностей и статистика",{"$nulls":3},0,{"$nulls":4},0,{"$nulls":4},0,{"$nulls":4},0]
["История ",{"$nulls":3},1,{"$nulls":4},1,{"$nulls":4},1,{"$nulls":4},1]
["Обществознание",{"$nulls":3},0,{"$nulls":4},1,{"$nulls":4},0,{"$nulls":4},0]
["География"]
["Физика"]
["Химия"]
["Биология"]
["Технология. Технологический проектный практикум"]
["Основы безопасности и защиты Родины",{"$nulls":13},1]
["Физическая культура. Легкая атлетика",{"$nulls":8},1]
["Физическая культура. Гимнастика",{"$nulls":18},1]
["Физическая культура. Лыжная подготовка"]
["Физическая культура. Футбол"]
["Физическая культура. Баскетбол"]
["Физическая культура. Волейбол"]
["Физическая культура. Спорт. ГТО"]
["Информатика. Математические объекты информатики",{"$nulls":3},0,{"$nulls":4},0,{"$nulls":4},0,{"$nulls":4},0]
["Информатика. Программирование на Пайтон",{"$nulls":3},0,{"$nulls":4},1,{"$nulls":4},1,{"$nulls":4},1]
["Информатика. Веб-программирование",{"$nulls":3},0,{"$nulls":4},0,{"$nulls":4},0,{"$nulls":4},0]
["Информатика. Цифровая гигиена и работа с БигДата",{"$nulls":3},0,{"$nulls":4},0,{"$nulls":4},1,{"$nulls":4},0]
["Информатика. Сетевое и системное администрирование",{"$nulls":3},0,{"$nulls":4},0,{"$nulls":4},0,{"$nulls":4},0]
["Информатика. Программирование на Си",{"$nulls":3},0,{"$nulls":4},0,{"$nulls":4},0,{"$nulls":4},0]
["Информатика. Искусственный интеллект и машинное обучение",{"$nulls":3},0,{"$nulls":4},0,{"$nulls":4},0,{"$nulls":4},0]
[]
[]
[]
["Период проведения оценочной процедуры","Сентябрь",{"$nulls":4},"Октябрь",{"$nulls":4},"Ноябрь",{"$nulls":4},"Декабрь",{"$nulls":4},"Всего"]
["Вид оценочных процедур","Федеральные оценочные процедуры","Региональные оценочные процедуры","Муниципальные оценочные процедуры","Оценочные процедуры по инициативе ОО","Всего","Федеральные оценочные процедуры","Региональные оценочные процедуры","Муниципальные оценочные процедуры","Оценочные процедуры по инициативе ОО","Всего","Федеральные оценочные процедуры","Региональные оценочные процедуры","Муниципальные оценочные процедуры","Оценочные процедуры по инициативе ОО","Всего","Федеральные оценочные процедуры","Региональные оценочные процедуры","Муниципальные оценочные процедуры","Оценочные процедуры по инициативе ОО","Всего","В первом полугодии 2025-2026 уч. года"]
["9 П класс"]
["Русский язык",{"$nulls":3},1,{"$nulls":4},1,{"$nulls":4},1]
["Литература",{"$nulls":8},1,{"$nulls":9},1]
["Иностранный язык (английский)",{"$nulls":8},1]
["Алгебра. Теория элементарных функций",{"$nulls":8},1,{"$nulls":7},1]
["Алгебра. Уравнения, неравенства и их конструкции",{"$nulls":8},1,{"$nulls":7},1]
["Алгебра. Математическое моделирование реальных ситуаций",{"$nulls":8},1,{"$nulls":7},1]
["Основы теории рядов",{"$nulls":8},1]
["Геометрия",{"$nulls":8},1]
["Теория вероятностей и статистика",{"$nulls":8},1]
["История ",{"$nulls":3},1,{"$nulls":4},1,{"$nulls":5},1,{"$nulls":3},1]
["Обществознание",{"$nulls":3},0,{"$nulls":4},1,{"$nulls":5},0,{"$nulls":3},0]
["География",{"$nulls":8},1]
["Физика",{"$nulls":8},1]
["Химия"]
["Биология",{"$nulls":8},1]
["Технология. Технологический проектный практикум"]
["Основы безопасности и защиты Родины",{"$nulls":13},1]
["Физическая культура. Легкая атлетика",{"$nulls":8},1]
["Физическая культура. Гимнастика",{"$nulls":18},1]
["Физическая культура. Лыжная подготовка"]
["Физическая культура. Футбол"]
["Физическая культура. Баскетбол"]
["Физическая культура. Волейбол"]
["Физическая культура. Спорт. ГТО"]
["Информатика. Математические объекты информатики",{"$nulls":3},0,{"$nulls":4},0,{"$nulls":4},0,{"$nulls":4},0]
["Информатика. Программирование на Пайтон",{"$nulls":3},0,{"$nulls":4},1,{"$nulls":4},1,{"$nulls":4},1]
["Информатика. Веб-программирование",{"$nulls":3},0,{"$nulls":4},0,{"$nulls":4},0,{"$nulls":4},0]
["Информатика. Цифровая гигиена и работа с БигДата",{"$nulls":3},0,{"$nulls":4},0,{"$nulls":4},1,{"$nulls":4},0]
["Информатика. Сетевое и системное администрирование",{"$nulls":3},0,{"$nulls":4},0,{"$nulls":4},0,{"$nulls":4},0]
["Информатика. Программирование на Си",{"$nulls":3},0,{"$nulls":4},0,{"$nulls":4},0,{"$nulls":4},0]
["Информатика. Искусственный интеллект и машинное обучение",{"$nulls":3},0,{"$nulls":4},0,{"$nulls":4},0,{"$nulls":4},0]
[]
[]
[]
["Период проведения оценочной процедуры","Сентябрь",{"$nulls":4},"Октябрь",{"$nulls":4},"Ноябрь",{"$nulls":4},"Декабрь",{"$nulls":4},"Всего"]
["Вид оценочных процедур","Федеральные оценочные процедуры","Региональные оценочные процедуры","Муниципальные оценочные процедуры","Оценочные процедуры по инициативе ОО","Всего","Федеральные оценочные процедуры","Региональные оценочные процедуры","Муниципальные оценочные процедуры","Оценочные процедуры по инициативе ОО","Всего","Федеральные оценочные процедуры","Региональные оценочные процедуры","Муниципальные оценочные процедуры","Оценочные процедуры по инициативе ОО","Всего","Федеральные оценочные процедуры","Региональные оценочные процедуры","Муниципальные оценочные процедуры","Оценочные процедуры по инициативе ОО","Всего","В первом полугодии 2025-2026 уч. года"]
["9 У класс"]
["Русский язык",{"$nulls":3},1,{"$nulls":4},1]
["Литература",{"$nulls":8},1,{"$nulls":4},1]
["Иностранный язык (английский)",{"$nulls":8},1,{"$nulls":9},1]
["Алгебра",{"$nulls":8},1,{"$nulls":7},1]
["Геометрия",{"$nulls":8},1,{"$nulls":7},1]
["Вероятность и статистика",{"$nulls":3},0,{"$nulls":4},1,{"$nulls":4},1,null,null,1,null,1]
["Информатика",{"$nulls":3},0,{"$nulls":4},0,{"$nulls":4},0,{"$nulls":4},1]
["История",{"$nulls":3},1,{"$nulls":4},1,{"$nulls":4},1,{"$nulls":4},1]
["Обществознание",{"$nulls":3},0,{"$nulls":4},1,{"$nulls":4},0,{"$nulls":4},1]
["География",{"$nulls":8},1]
["Физика",{"$nulls":8},1,1,{"$nulls":3},1,1,{"$nulls":3},1,1,3]
["Химия",{"$nulls":8},1]
["Биология",{"$nulls":8},1]
["Технология. Технологический проектный практикум"]
["Основы безопасности и защиты Родины",{"$nulls":13},1]
["Физическая культура. Легкая атлетика",{"$nulls":8},1]
["Физическая культура. Гимнастика",{"$nulls":18},1]
["Физическая культура. Лыжная подготовка"]
["Физическая культура. Футбол"]
["Физическая культура. Баскетбол"]
["Физическая культура. Волейбол"]
["Физическая культура. Спорт. ГТО"]
["Обществознание. Финансовая грамотность"]
["Обществознание. Основы делового общения"]
["Обществознание. Право"]
["Обществознание. Основы менеджмента"]
["Обществознание. Основы экономики"]
[]
[]
[]
["Период проведения оценочной процедуры","Сентябрь",{"$nulls":4},"Октябрь",{"$nulls":4},"Ноябрь",{"$nulls":4},"Декабрь",{"$nulls":4},"Всего"]
["Вид оценочных процедур","Федеральные оценочные процедуры","Региональные оценочные процедуры","Муниципальные оценочные процедуры","Оценочные процедуры по инициативе ОО","Всего","Федеральные оценочные процедуры","Региональные оценочные процедуры","Муниципальные оценочные процедуры","Оценочные процедуры по инициативе ОО","Всего","Федеральные оценочные процедуры","Региональные оценочные процедуры","Муниципальные оценочные процедуры","Оценочные процедуры по инициативе ОО","Всего","Федеральные оценочные процедуры","Региональные оценочные процедуры","Муниципальные оценочные процедуры","Оценочные процедуры по инициативе ОО","Всего","В первом полугодии 2025-2026 уч. года"]
["9 УМ класс"]
["Русский язык",{"$nulls":3},1,{"$nulls":4},1]
["Литература",{"$nulls":8},1,{"$nulls":4},1]
["Иностранный язык (английский)",{"$nulls":8},1,{"$nulls":9},1]
["Алгебра",{"$nulls":13},1,{"$nulls":4},1]
["Геометрия",{"$nulls":8},1,{"$nulls":7},1,null,2]
["Вероятность и статистика",{"$nulls":13},1,null,null,1]
["Информатика",{"$nulls":3},0,{"$nulls":4},0,{"$nulls":4},0,null,null,1,null,1]
["История",{"$nulls":3},1,{"$nulls":4},1,{"$nulls":4},1,{"$nulls":4},1]
["Обществознание",{"$nulls":8},1]
["География",{"$nulls":8},1]
["Физика",{"$nulls":8},1]
["Химия",{"$nulls":8},1]
["Биология",{"$nulls":8},1,{"$nulls":4},1]
["Технология. Технологический проектный практикум",{"$nulls":8},1]
["Основы безопасности и защиты Родины",{"$nulls":13},1]
["Физическая культура. Легкая атлетика",{"$nulls":8},1]
["Физическая культура. Гимнастика",{"$nulls":18},1]
["Физическая культура. Лыжная подготовка"]
["Физическая культура. Футбол"]
["Физическая культура. Баскетбол"]
["Физическая культура. Волейбол"]
["Физическая культура. Спорт. ГТО"]
["Обществознание. Финансовая грамотность"]
["Обществознание. Основы делового общения"]
["Обществознание. Право"]
["Обществознание. Основы менеджмента"]
["Обществознание. Основы экономики"]
[]
[]
[]
["Период проведения оценочной процедуры","Сентябрь",{"$nulls":4},"Октябрь",{"$nulls":4},"Ноябрь",{"$nulls":4},"Декабрь",{"$nulls":4},"Всего"]
["Вид оценочных процедур","Федеральные оценочные процедуры","Региональные оценочные процедуры","Муниципальные оценочные процедуры","Оценочные процедуры по инициативе ОО","Всего","Федеральные оценочные процедуры","Региональные оценочные процедуры","Муниципальные оценочные процедуры","Оценочные процедуры по инициативе ОО","Всего","Федеральные оценочные процедуры","Региональные оценочные процедуры","Муниципальные оценочные процедуры","Оценочные процедуры по инициативе ОО","Всего","Федеральные оценочные процедуры","Региональные оценочные процедуры","Муниципальные оценочные процедуры","Оценочные процедуры по инициативе ОО","Всего","В первом полугодии 2025-2026 уч. года"]
["9 С класс"]
["Русский язык",{"$nulls":3},1,{"$nulls":4},1,{"$nulls":9},1]
["Литература",{"$nulls":8},1,{"$nulls":9},1]
["Иностранный язык (английский)",{"$nulls":8},1,{"$nulls":9},1]
["Алгебра",{"$nulls":8},1,{"$nulls":7},1]
["Геометрия",{"$nulls":8},1,{"$nulls":7},1]
["Вероятность и статистика",{"$nulls":8},1,{"$nulls":7},1]
["Информатика",{"$nulls":3},0,{"$nulls":4},0,{"$nulls":4},0,{"$nulls":4},1]
["История",{"$nulls":3},1,{"$nulls":4},1,{"$nulls":4},1,{"$nulls":4},1]
["Обществознание",{"$nulls":3},0,{"$nulls":4},0,{"$nulls":4},1,{"$nulls":4},0]
["География",{"$nulls":8},1]
["Физика",{"$nulls":8},1]
["Химия",{"$nulls":8},1]
["Биология",{"$nulls":8},1,{"$nulls":9},1]
["Технология. Технологический проектный практикум"]
["Основы безопасности и защиты Родины",{"$nulls":13},1]
["Физическая культура. Легкая атлетика",{"$nulls":8},1]
["Физическая культура. Гимнастика",{"$nulls":18},1]
["Физическая культура. Лыжная подготовка"]
["Физическая культура. Футбол"]
["Физическая культура. Баскетбол"]
["Физическая культура. Волейбол"]
["Физическая культура. Спорт. ГТО"]
["Обществознание. Финансовая грамотность"]
["Обществознание. Основы делового общения"]
["Обществознание. Право"]
["Обществознание. Основы менеджмента"]
["Обществознание. Основы экономики"]

{"sheet":"10-е классы","index":9,"n_rows":162,"n_cols":22,"rows_kept":162,"merged":[[0,1,0,5],[0,6,0,10],[0,11,0,15],[0,16,0,20],[2,0,2,21],[30,1,30,5],[30,6,30,10],[30,11,30,15],[30,16,30,20],[32,0,32,21],[62,1,62,5],[62,6,62,10],[62,11,62,15],[62,16,62,20],[64,0,64,21],[92,1,92,5],[92,6,92,10],[92,11,92,15],[92,16,92,20],[94,0,94,21],[115,1,115,5],[115,6,115,10],[115,11,115,15],[115,16,115,20],[117,0,117,21]]}
["Период проведения оценочной процедуры","Сентябрь",{"$nulls":4},"Октябрь",{"$nulls":4},"Ноябрь",{"$nulls":4},"Декабрь",{"$nulls":4},"Всего"]
["Вид оценочных процедур","Федеральные оценочные процедуры","Региональные оценочные процедуры","Муниципальные оценочные процедуры","Оценочные процедуры по инициативе ОО","Всего","Федеральные оценочные процедуры","Региональные оценочные процедуры","Муниципальные оценочные процедуры","Оценочные процедуры по инициативе ОО","Всего","Федеральные оценочные процедуры","Региональные оценочные процедуры","Муниципальные оценочные процедуры","Оценочные процедуры по инициативе ОО","Всего","Федеральные оценочные процедуры","Региональные оценочные процедуры","Муниципальные оценочные процедуры","Оценочные процедуры по инициативе ОО","Всего","В первом триместре 2025-2026 уч. года"]
["10 Б класс"]
["Русский язык",{"$nulls":8},1,{"$nulls":4},1,{"$nulls":4},1]
["Литература",{"$nulls":3},1,{"$nulls":9},1]
["Иностранный язык (английский)",{"$nulls":18},1]
["История",{"$nulls":3},1,{"$nulls":4},1,{"$nulls":4},1,{"$nulls":4},0]
["Обществознание"]
["География"]
["Алгебра и начала математического анализа",{"$nulls":3},0,{"$nulls":4},1,{"$nulls":4},1,{"$nulls":4},0]
["Геометрия",{"$nulls":3},0,{"$nulls":4},1,{"$nulls":4},0,{"$nulls":4},0]
["Вероятность и статистика",{"$nulls":3},0,{"$nulls":4},0,{"$nulls":4},0,{"$nulls":4},1]
["Информатика",{"$nulls":3},0,{"$nulls":4},0,{"$nulls":4},0,{"$nulls":4},1]
["Химия",{"$nulls":3},1,1,{"$nulls":3},0,0,{"$nulls":3},1,1,{"$nulls":3}," 1"," 1"," 3"]
["Физика",{"$nulls":8},1,1,{"$nulls":3},1,1,{"$nulls":5},2]
["Биология",{"$nulls":3},0,0,{"$nulls":3},2,2,{"$nulls":3},0,0,{"$nulls":3},0,0,2]
["Основы безопасности и защиты Родины",{"$nulls":18},1]
["Физическая культура",{"$nulls":18},1]
["Технология. Технологический проектный практикум"]
["Химия. Теоретические основы химии",{"$nulls":3},0,0,{"$nulls":3},1,1,{"$nulls":3},0,0,{"$nulls":3},2,2,3]
["Химия. Решение расчетных задач по химии",{"$nulls":3},0,0,{"$nulls":3},1,1,{"$nulls":3},1,1,{"$nulls":3},0,0,2]
["Биология. Генная инженерия",{"$nulls":3},0,0,{"$nulls":3},0,0,{"$nulls":3},0,0,{"$nulls":3},1,1,1]
["Биология. Анатомия и морфология растений"]
["Биология. Анатомия и физиология человека",{"$nulls":3},0,0,{"$nulls":3},0,0,{"$nulls":3},0,0,{"$nulls":3},0,0,0]
["Физика. Основы медицинской физики"]
["Биология. Космическая медицина",{"$nulls":3},0,0,{"$nulls":3},0,0,{"$nulls":3},0,0,{"$nulls":3},0,0,0]
["География. Медицинская география"]
[]
[]
[]
["Период проведения оценочной процедуры","Сентябрь",{"$nulls":4},"Октябрь",{"$nulls":4},"Ноябрь",{"$nulls":4},"Декабрь",{"$nulls":4},"Всего"]
["Вид оценочных процедур","Федеральные оценочные процедуры","Региональные оценочные процедуры","Муниципальные оценочные процедуры","Оценочные процедуры по инициативе ОО","Всего","Федеральные оценочные процедуры","Региональные оценочные процедуры","Муниципальные оценочные процедуры","Оценочные процедуры по инициативе ОО","Всего","Федеральные оценочные процедуры","Региональные оценочные процедуры","Муниципальные оценочные процедуры","Оценочные процедуры по инициативе ОО","Всего","Федеральные оценочные процедуры","Региональные оценочные процедуры","Муниципальные оценочные процедуры","Оценочные процедуры по инициативе ОО","Всего","В первом триместре 2025-2026 уч. года"]
["10.1 класс"]
["Русский язык",{"$nulls":8},1,{"$nulls":4},1,{"$nulls":4},1]
["Литература",{"$nulls":3},1,{"$nulls":4},1,{"$nulls":9},1]
["Иностранный язык (английский)",{"$nulls":8},1,{"$nulls":4},1,{"$nulls":4},1]
["История",{"$nulls":3},0,{"$nulls":4},1,{"$nulls":4},1,{"$nulls":4},1]
["Обществознание. Философия"]
["Обществознание. Экономика"]
["Обществознание. Социология"]
["Обществознание. Политология"]
["Обществознание. Правоведение"]
["География"]
["Алгебра и начала математического анализа",{"$nulls":3},0,{"$nulls":4},1,{"$nulls":4},1,{"$nulls":4},1]
["Геометрия",{"$nulls":3},0,{"$nulls":4},1,{"$nulls":4},0,{"$nulls":4},0]
["Вероятность и статистика",{"$nulls":3},0,{"$nulls":4},0,{"$nulls":4},0,{"$nulls":4},0]
["Информатика",{"$nulls":3},0,{"$nulls":4},0,{"$nulls":4},0,{"$nulls":4},1]
["Химия"]
["Основы безопасности и защиты Родины",{"$nulls":18},1]
["Физическая культура",{"$nulls":18},1]
["Технология. Технологический проектный практикум"]
["Технология. Технопредпринимательство и экономика"]
["Обществознание. Избранные вопросы обществознания"]
["История. История Новосибирской области"]
["История. История русской культуры"]
["Обществознание. Молодежные движения в России: история и современность"]
["Обществознание. Государственная молодежная политика в Российской Федерации"]
["Обществознание. Теории и методики нравственного и патриотического воспитания молодежи"]
["Обществознание. Теории и методики лидерства и управления"]
[]
[]
[]
["Период проведения оценочной процедуры","Сентябрь",{"$nulls":4},"Октябрь",{"$nulls":4},"Ноябрь",{"$nulls":4},"Декабрь",{"$nulls":4},"Всего"]
["Вид оценочных процедур","Федеральные оценочные процедуры","Региональные оценочные процедуры","Муниципальные оценочные процедуры","Оценочные процедуры по инициативе ОО","Всего","Федеральные оценочные процедуры","Региональные оценочные процедуры","Муниципальные оценочные процедуры","Оценочные процедуры по инициативе ОО","Всего","Федеральные оценочные процедуры","Региональные оценочные процедуры","Муниципальные оценочные процедуры","Оценочные процедуры по инициативе ОО","Всего","Федеральные оценочные процедуры","Региональные оценочные процедуры","Муниципальные оценочные процедуры","Оценочные процедуры по инициативе ОО","Всего","В первом полугодии 2025-2026 уч. года"]
["10 ГУМ класс"]
["Русский язык",{"$nulls":8},1,{"$nulls":4},1,{"$nulls":4},1]
["Литература",{"$nulls":3},1,{"$nulls":4},1,{"$nulls":9},1]
["Иностранный язык (английский)",{"$nulls":8},1,{"$nulls":4},1,{"$nulls":4},1]
["История",{"$nulls":3},0,{"$nulls":4},1,1,{"$nulls":3},1,1,{"$nulls":5},2]
["Обществознание"]
["География"]
["Алгебра и начала математического анализа",{"$nulls":3},0,{"$nulls":4},1,{"$nulls":4},1,{"$nulls":4},0]
["Геометрия",{"$nulls":3},0,{"$nulls":4},1,{"$nulls":4},0,{"$nulls":4},0]
["Вероятность и статистика",{"$nulls":3},0,{"$nulls":4},0,{"$nulls":4},0,{"$nulls":4},0]
["Информатика",{"$nulls":3},0,{"$nulls":4},0,{"$nulls":4},0,{"$nulls":4},1]
["Химия"]
["Физика"]
["Биология",{"$nulls":18},1,1,1]
["Основы безопасности и защиты Родины",{"$nulls":18},1]
["Физическая культура",{"$nulls":18},1]
["Технология. Технологический проектный практикум"]
["Технология. Технопредпринимательство и экономика"]
["История Новосибирской области"]
["История в лицах"]
["Методы исторических исследований"]
["Культура речи"]
["Текстология"]
["Медиажурналистика"]
["Духовный лабиринт",{"$nulls":18},1]
[]
[]
[]
["Период проведения оценочной процедуры","Сентябрь",{"$nulls":4},"Октябрь",{"$nulls":4},"Ноябрь",{"$nulls":4},"Декабрь",{"$nulls":4},"Всего"]
["Вид оценочных процедур","Федеральные оценочные процедуры","Региональные оценочные процедуры","Муниципальные оценочные процедуры","Оценочные процедуры по инициативе ОО","Всего","Федеральные оценочные процедуры","Региональные оценочные процедуры","Муниципальные оценочные процедуры","Оценочные процедуры по инициативе ОО","Всего","Федеральные оценочные процедуры","Региональные оценочные процедуры","Муниципальные оценочные процедуры","Оценочные процедуры по инициативе ОО","Всего","Федеральные оценочные процедуры","Региональные оценочные процедуры","Муниципальные оценочные процедуры","Оценочные процедуры по инициативе ОО","Всего","В первом полугодии 2025-2026 уч. года"]
["10 З класс"]
["Русский язык",{"$nulls":18},1]
["Литература",{"$nulls":18},1]
["Иностранный язык (английский)",{"$nulls":18},1]
["История"]
["Обществознание"]
["География"]
["Алгебра и начала математического анализа"]
["Геометрия"]
["Вероятность и статистика"]
["Информатика"]
["Химия"]
["Биология",{"$nulls":18},1,1,1]
["Физика"]
["Основы безопасности и защиты Родины",{"$nulls":18},1]
["Физическая культура",{"$nulls":18},1]
["Технология. Технологический проектный практикум"]
["Технология. Технопредпринимательство и экономика"]
[]
[]
[]
["Период проведения оценочной процедуры","Сентябрь",{"$nulls":4},"Октябрь",{"$nulls":4},"Ноябрь",{"$nulls":4},"Декабрь",{"$nulls":4},"Всего"]
["Вид оценочных процедур","Федеральные оценочные процедуры","Региональные оценочные процедуры","Муниципальные оценочные процедуры","Оценочные процедуры по инициативе ОО","Всего","Федеральные оценочные процедуры","Региональные оценочные процедуры","Муниципальные оценочные процедуры","Оценочные процедуры по инициативе ОО","Всего","Федеральные оценочные процедуры","Региональные оценочные процедуры","Муниципальные оценочные процедуры","Оценочные процедуры по инициативе ОО","Всего","Федеральные оценочные процедуры","Региональные оценочные процедуры","Муниципальные оценочные процедуры","Оценочные процедуры по инициативе ОО","Всего","В первом полугодии 2025-2026 уч. года"]
["10 ИП класс"]
["Русский язык",{"$nulls":8},1,{"$nulls":4},1,{"$nulls":4},1]
["Литература",{"$nulls":3},1,{"$nulls":4},1,{"$nulls":9},1]
["Иностранный язык (английский)",{"$nulls":18},1]
["История",{"$nulls":3},0,{"$nulls":4},1,{"$nulls":4},1,{"$nulls":4},1]
["Обществознание"]
["География"]
["Математика. Теория элементарных функций",{"$nulls":3},0,{"$nulls":4},0,{"$nulls":4},0,{"$nulls":4},1]
["Математика. Уравнения, неравенства и их конструкции",{"$nulls":3},0,{"$nulls":4},0,{"$nulls":4},1,{"$nulls":4},1]
["Математика. Тригонометрия",{"$nulls":3},0,{"$nulls":4},1,{"$nulls":4},1,{"$nulls":4},0]
["Математика. Начала математического анализа",{"$nulls":3},0,{"$nulls":4},0,{"$nulls":4},0,{"$nulls":4},0]
["Математика. Расширение понятия числа: комплексные числа",{"$nulls":3},0,{"$nulls":4},0,{"$nulls":4},0,{"$nulls":4},0]
["Математика. Основы теории вероятностей",{"$nulls":3},0,{"$nulls":4},0,{"$nulls":4},0,{"$nulls":4},0]
["Математика. Геометрия",{"$nulls":3},1,{"$nulls":4},0,{"$nulls":4},1,{"$nulls":4},0]
["Информатика. Кодирование информации",{"$nulls":3},0,{"$nulls":4},0,{"$nulls":4},1,{"$nulls":4},0]
["Информатика. Математические объекты информатики",{"$nulls":3},0,{"$nulls":4},0,{"$nulls":4},0,{"$nulls":4},1]
["Информатика. Цифровые технологии",{"$nulls":3},0,{"$nulls":4},0,{"$nulls":4},0,{"$nulls":4},1]
["Информатика. Компьютерное моделирование",{"$nulls":3},0,{"$nulls":4},0,{"$nulls":4},0,{"$nulls":4},1]
["Информатика. Алгоритмизация и программирование",{"$nulls":3},0,{"$nulls":4},0,{"$nulls":4},0,{"$nulls":4},1]
["Информатика. Теория алгоритмов",{"$nulls":3},0,{"$nulls":4},0,{"$nulls":4},0,{"$nulls":4},0]
["Информатика. Программирование на Пайтон",{"$nulls":3},0,{"$nulls":4},1,{"$nulls":4},0,{"$nulls":4},0]
["Химия"]
["Биология",{"$nulls":18},1,1,1]
["Физика. Механика"]
["Физика. Молекулярная физика и термодинамика"]
["Физика. Электродинамика"]
["Физика. Специальная теория относительности"]
["Физика. Квантовая физика"]
["Физика. Элементы астрономии и астрофизики"]
["Основы безопасности и защиты Родины",{"$nulls":18},1]
["Физическая культура",{"$nulls":18},1]
["Технология. Технологический проектный практикум"]
["Технология. Технопредпринимательство и экономика"]
["Информатика. Разработка веб приложений (Фласк)",{"$nulls":3},0,{"$nulls":4},0,{"$nulls":4},0,{"$nulls":4},0]
["Информатика. Моделиование физических процессов",{"$nulls":3},0,{"$nulls":4},0,{"$nulls":4},0,{"$nulls":4},1]
["Информатика. Компьютерные сети и информационная безопасность",{"$nulls":3},0,{"$nulls":4},0,{"$nulls":4},0,{"$nulls":4},1]
["Информатика. Основы технологий искусственного интеллект",{"$nulls":3},0,{"$nulls":4},0,{"$nulls":4},1,{"$nulls":4},0]
["Информатика. Компьютерное зрение",{"$nulls":3},0,{"$nulls":4},0,{"$nulls":4},0,{"$nulls":4},1]
["Информатика. Информационная безопасность",{"$nulls":3},0,{"$nulls":4},0,{"$nulls":4},0,{"$nulls":4},1]
["Математика. Теория чисел",{"$nulls":3},0,{"$nulls":4},0,{"$nulls":4},0,{"$nulls":4},0]
["Математика. Математические основы анализа данных и искусственного интеллекта"]
["Математика. Математические основы защиты данных"]
["Математика. Нестандартные методы решения уравнений, неравенств и их конструкций",{"$nulls":3},0,{"$nulls":4},0,{"$nulls":4},0,{"$nulls":4},0]
["Физика. Новые материалы"]
["Физика. Интеллектуальные энергетические системы"]

{"sheet":"11-е классы","index":10,"n_rows":157,"n_cols":22,"rows_kept":157,"merged":[[0,1,0,5],[0,6,0,10],[0,11,0,15],[0,16,0,20],[2,0,2,21],[24,1,24,5],[24,6,24,10],[24,11,24,15],[24,16,24,20],[26,0,26,21],[59,1,59,5],[59,6,59,10],[59,11,59,15],[59,16,59,20],[61,0,61,21],[112,1,112,5],[112,6,112,10],[112,11,112,15],[112,16,112,20],[114,0,114,21],[139,1,139,5],[139,6,139,10],[139,11,139,15],[139,16,139,20],[141,0,141,21]]}
["Период проведения оценочной процедуры","Сентябрь",{"$nulls":4},"Октябрь",{"$nulls":4},"Ноябрь",{"$nulls":4},"Декабрь",{"$nulls":4},"Всего"]
["Вид оценочных процедур","Федеральные оценочные процедуры","Региональные оценочные процедуры","Муниципальные оценочные процедуры","Оценочные процедуры по инициативе ОО","Всего","Федеральные оценочные процедуры","Региональные оценочные процедуры","Муниципальные оценочные процедуры","Оценочные процедуры по инициативе ОО","Всего","Федеральные оценочные процедуры","Региональные оценочные процедуры","Муниципальные оценочные процедуры","Оценочные процедуры по инициативе ОО","Всего","Федеральные оценочные процедуры","Региональные оценочные процедуры","Муниципальные оценочные процедуры","Оценочные процедуры по инициативе ОО","Всего","В первом полугодии 2025-2026 уч. года"]
["11 Б класс"]
["Русский язык",{"$nulls":8},1,{"$nulls":4},1]
["Литература",{"$nulls":8},1,{"$nulls":6},1]
["Иностранный язык (английский)",{"$nulls":18},1]
["История",{"$nulls":8},1]
["Обществознание",{"$nulls":8},1]
["География",{"$nulls":8},1]
["Математика",{"$nulls":8},1,{"$nulls":7},1]
["Информатика",{"$nulls":8},1]
["Химия",{"$nulls":3},1,1,{"$nulls":3},1,1,{"$nulls":3},1,1,{"$nulls":3},1,1,3]
["Физика",{"$nulls":8},1,1,{"$nulls":3},1,1,{"$nulls":5},1]
["Биология",{"$nulls":3},0,0,{"$nulls":3},3,3,{"$nulls":3},0,"0 ",{"$nulls":3},1,1,3]
["Основы безопасности и защиты Родины",{"$nulls":18},1]
["Физическая культура",{"$nulls":18},1]
["Химия. Теоретические основы химии",{"$nulls":3},0,0,{"$nulls":3},1,1,{"$nulls":3},0,0,{"$nulls":3},2,2,3]
["Химия. Решение расчетных задач по химии",{"$nulls":3},0,0,{"$nulls":3},1,1,{"$nulls":3},0,0,{"$nulls":3},1,1,2]
["Биология. Эволюция органов и систем животных",{"$nulls":3},0,0,{"$nulls":3},1,1,{"$nulls":3},0,0,{"$nulls":3},0,0,1]
["Химия. Химия и здоровье",{"$nulls":3},0,0,{"$nulls":3},0,0,{"$nulls":3},0,0,{"$nulls":3},1,1,1]
["Биология. Анатомия и физиология человека",{"$nulls":3},1,1,{"$nulls":3},0,0,{"$nulls":3},1,1,{"$nulls":3},0,0,2]
[]
[]
[]
["Период проведения оценочной процедуры","Сентябрь",{"$nulls":4},"Октябрь",{"$nulls":4},"Ноябрь",{"$nulls":4},"Декабрь",{"$nulls":4},"Всего"]
["Вид оценочных процедур","Федеральные оценочные процедуры","Региональные оценочные процедуры","Муниципальные оценочные процедуры","Оценочные процедуры по инициативе ОО","Всего","Федеральные оценочные процедуры","Региональные оценочные процедуры","Муниципальные оценочные процедуры","Оценочные процедуры по инициативе ОО","Всего","Федеральные оценочные процедуры","Региональные оценочные процедуры","Муниципальные оценочные процедуры","Оценочные процедуры по инициативе ОО","Всего","Федеральные оценочные процедуры","Региональные оценочные процедуры","Муниципальные оценочные процедуры","Оценочные процедуры по инициативе ОО","Всего","В первом полугодии 2025-2026 уч. года"]
["11.1 класс"]
["Русский язык",{"$nulls":8},1,{"$nulls":9},1]
["Литература",{"$nulls":3},1,{"$nulls":4},1,{"$nulls":4},1,{"$nulls":4},1]
["Иностранный язык (английский)",{"$nulls":8},1,{"$nulls":4},1,{"$nulls":4},1]
["История",{"$nulls":3},0,{"$nulls":4},1,{"$nulls":4},1,{"$nulls":4},1]
["Обществознание. Философия"]
["Обществознание. Экономика"]
["Обществознание. Социология"]
["Обществознание. Политология"]
["Обществознание. Правоведение"]
["География",{"$nulls":8},1]
["Математика",{"$nulls":3},0,{"$nulls":4},2,{"$nulls":4},1,null,null,1,null,2]
["Биология",{"$nulls":8},1,{"$nulls":9},1,1,1]
["Основы безопасности и защиты Родины",{"$nulls":18},1]
["Физическая культура",{"$nulls":18},1]
["Технология. Технологический проектный практикум"]
["Технология. Технопредприни-мательство и экономика"]
["Обществознание. Избранные вопросы обществознания"]
["История. История Новосибирской области"]
["История. История русской культуры"]
["Обществознание. Молодежные движения в России: история и современность"]
["Обществознание. Государственная молодежная политика в Российской Федерации"]
["Обществознание. Теории и методики нравственного и патриотического воспитания молодежи"]
["Обществознание. Теории и методики лидерства и управления"]
["Иностранный язык. Деловой английский"]
["Иностранный язык. Основы перевода в сфере культуры и искусства"]
["Литература. Критика русской литературы",{"$nulls":3},1,{"$nulls":9},1]
["Литература. Анализ художественного текста"]
["Литература. Герои в русской литературе. Литературный портрет",{"$nulls":3},1,{"$nulls":9},1,null,1]
["Литература. Философские основы русской литературы"]
[]
[]
[]
["Период проведения оценочной процедуры","Сентябрь",{"$nulls":4},"Октябрь",{"$nulls":4},"Ноябрь",{"$nulls":4},"Декабрь",{"$nulls":4},"Всего"]
["Вид оценочных процедур","Федеральные оценочные процедуры","Региональные оценочные процедуры","Муниципальные оценочные процедуры","Оценочные процедуры по инициативе ОО","Всего","Федеральные оценочные процедуры","Региональные оценочные процедуры","Муниципальные оценочные процедуры","Оценочные процедуры по инициативе ОО","Всего","Федеральные оценочные процедуры","Региональные оценочные процедуры","Муниципальные оценочные процедуры","Оценочные процедуры по инициативе ОО","Всего","Федеральные оценочные процедуры","Региональные оценочные процедуры","Муниципальные оценочные процедуры","Оценочные процедуры по инициативе ОО","Всего","В первом полугодии 2025-2026 уч. года"]
["11 ИП класс"]
["Русский язык",{"$nulls":8},1,{"$nulls":4},1,{"$nulls":4},1]
["Литература",{"$nulls":3},1,{"$nulls":4},1,{"$nulls":4},1,null,1,null,null,1]
["Иностранный язык (английский)",{"$nulls":18},1]
["История",{"$nulls":8},1]
["Обществознание",{"$nulls":8},1]
["География",{"$nulls":8},1]
["Математика. Теория элементарных функций",{"$nulls":3},1,{"$nulls":12},1]
["Математика. Уравнения, неравенства и их конструкции",{"$nulls":3},1,{"$nulls":9},1]
["Математика. Тригонометрия"]
["Математика. Начала математического анализа",{"$nulls":18},1]
["Математика. Расширение понятия числа: комплексные числа",{"$nulls":18},1]
["Математика. Основы теории вероятностей"]
["Математика. Геометрия",{"$nulls":8},1]
["Информатика. Кодирование информации"]
["Информатика. Математические объекты информатики",{"$nulls":3},0,{"$nulls":4},1,{"$nulls":4},0,{"$nulls":4},0]
["Информатика. Цифровые технологии",{"$nulls":3},0,{"$nulls":4},0,{"$nulls":4},0,{"$nulls":4},1]
["Информатика. Компьютерное моделирование",{"$nulls":3},0,{"$nulls":4},2,{"$nulls":4},0,{"$nulls":4},1]
["Информатика. Алгоритмизация и программирование",{"$nulls":3},0,{"$nulls":4},0,{"$nulls":4},1,{"$nulls":4},1]
["Информатика. Теория алгоритмов",{"$nulls":3},0,{"$nulls":4},0,{"$nulls":4},0,{"$nulls":4},0]
["Информатика. Объектно-ориентированное программирование"]
["Химия",{"$nulls":8},1]
["Биология",{"$nulls":8},1,{"$nulls":9},1,1,1]
["Физика. Механика"]
["Физика. Молекулярная физика и термодинамика"]
["Физика. Электродинамика ",{"$nulls":8},1,{"$nulls":4},1,{"$nulls":4},1]
["Физика. Специальная теория относительности"]
["Физика. Квантовая физика"]
["Физика. Элементы астрономии и астрофизики"]
["Основы безопасности и защиты Родины",{"$nulls":18},1]
["Физическая культура",{"$nulls":18},1]
["Технология. Технологический проектный практикум"]
["Технология. Технопредпринимательство и экономика"]
["Информатика. Программирование на Пайтон",{"$nulls":3},0,{"$nulls":4},0,{"$nulls":4},0,{"$nulls":4},0]
["Информатика. Моделирование физических процессов (PyMung)",{"$nulls":3},0,{"$nulls":4},0,{"$nulls":4},0,{"$nulls":4},1]
["Информатика. Программирование на Джава",{"$nulls":3},0,{"$nulls":4},0,{"$nulls":4},0,{"$nulls":4},0]
["Информатика. Разработка веб приложений (Фласк)",{"$nulls":3},0,{"$nulls":4},0,{"$nulls":4},0,{"$nulls":4},0]
["Информатика. Разработка веб приложений (Джанго)",{"$nulls":3},0,{"$nulls":4},0,{"$nulls":4},0,{"$nulls":4},0]
["Информатика. Мобильная разработка",{"$nulls":3},0,{"$nulls":4},0,{"$nulls":4},0,{"$nulls":4},1]
["Информатика. Искусственный интеллект",{"$nulls":3},0,{"$nulls":4},0,{"$nulls":4},0,{"$nulls":4},0]
["Информатика. Информационная безопасность",{"$nulls":3},0,{"$nulls":4},0,{"$nulls":4},0,{"$nulls":4},1]
["Информатика. Разработка программных интерфейсов (Rest api)",{"$nulls":3},0,{"$nulls":4},0,{"$nulls":4},0,{"$nulls":4},1]
["Математика. Теория чисел"]
["Математика. Нестандартные методы решения уравнений, неравенств и их конструкций"]
["Физика. Решение нестандартных задач по физике"]
["Физика. Экспериментальная физика"]
["Физика. Введение в прикладную физику"]
["Физика. Компьютерное моделирование физических процессов"]
[]
[]
[]
["Период проведения оценочной процедуры","Сентябрь",{"$nulls":4},"Октябрь",{"$nulls":4},"Ноябрь",{"$nulls":4},"Декабрь",{"$nulls":4},"Всего"]
["Вид оценочных процедур","Федеральные оценочные процедуры","Региональные оценочные процедуры","Муниципальные оценочные процедуры","Оценочные процедуры по инициативе ОО","Всего","Федеральные оценочные процедуры","Региональные оценочные процедуры","Муниципальные оценочные процедуры","Оценочные процедуры по инициативе ОО","Всего","Федеральные оценочные процедуры","Региональные оценочные процедуры","Муниципальные оценочные процедуры","Оценочные процедуры по инициативе ОО","Всего","Федеральные оценочные процедуры","Региональные оценочные процедуры","Муниципальные оценочные процедуры","Оценочные процедуры по инициативе ОО","Всего","В первом полугодии 2025-2026 уч. года"]
["11 УМ класс"]
["Русский язык",{"$nulls":8},1,{"$nulls":9},1]
["Литература",{"$nulls":8},1,{"$nulls":4},1,null,1]
["Иностранный язык (английский)",{"$nulls":8},1,{"$nulls":4},1,{"$nulls":4},1]
["История",{"$nulls":3},1,1,{"$nulls":3},2,1,{"$nulls":3},0,{"$nulls":4},1,1,3]
["Обществознание. Философия"]
["Обществознание. Экономика"]
["Обществознание. Социология"]
["Обществознание. Политология"]
["Обществознание. Правоведение"]
["География",{"$nulls":8},1]
["Математика",{"$nulls":8},1,{"$nulls":7},1]
["Биология",{"$nulls":8},1,{"$nulls":9},1,1,1]
["Основы безопасности и защиты Родины",{"$nulls":18},1]
["Физическая культура",{"$nulls":18},1]
["Технология. Технологический проектный практикум"]
["Технология. Технопредпринимательство и экономика"]
["Обществознание. Избранные вопросы обществознания"]
["Обществознание. Основы менеджмента"]
["Иностранный язык. Деловой английский"]
["Иностранный язык. Основы перевода в сфере экономики и управления"]
["Математика. Сложные вопросы математики"]
[]
[]
[]
["Период проведения оценочной процедуры","Сентябрь",{"$nulls":4},"Октябрь",{"$nulls":4},"Ноябрь",{"$nulls":4},"Декабрь",{"$nulls":4},"Всего"]
["Вид оценочных процедур","Федеральные оценочные процедуры","Региональные оценочные процедуры","Муниципальные оценочные процедуры","Оценочные процедуры по инициативе ОО","Всего","Федеральные оценочные процедуры","Региональные оценочные процедуры","Муниципальные оценочные процедуры","Оценочные процедуры по инициативе ОО","Всего","Федеральные оценочные процедуры","Региональные оценочные процедуры","Муниципальные оценочные процедуры","Оценочные процедуры по инициативе ОО","Всего","Федеральные оценочные процедуры","Региональные оценочные процедуры","Муниципальные оценочные процедуры","Оценочные процедуры по инициативе ОО","Всего","В первом полугодии 2025-2026 уч. года"]
["11 З класс"]
["Русский язык",{"$nulls":8},1,{"$nulls":9},1]
["Литература",{"$nulls":8},1,{"$nulls":6},1,null,null,1]
["Иностранный язык (английский)",{"$nulls":18},1]
["История",{"$nulls":8},1]
["Обществознание",{"$nulls":8},1]
["География",{"$nulls":8},1]
["Математика",{"$nulls":8},1,{"$nulls":7},1]
["Информатика",{"$nulls":8},1]
["Химия",{"$nulls":8},1]
["Биология",{"$nulls":8},1,{"$nulls":9},1,1,1]
["Физика",{"$nulls":8},1]
["Основы безопасности и защиты Родины",{"$nulls":18},1]
["Физическая культура",{"$nulls":18},1]
["Технология. Технологический проектный практикум"]
["Технология. Технопредпринимательство и экономика"]